Service Area,Service Division,Expense Type,Expense Code,Detailed Expense Type,Payment Date,Transaction Number,Amount Exc Vat,Supplier Name
Assistant Chief Executive,Partnerships & Community Engagement Div.,Cap Exp on Grants & Other Financial Assistance (REFCUS),918004,Contributions to other bodies,01-Nov-2013,2662016,"1,184.00",FRAMWELLGATE MOOR PARISH COUNCIL.
Children and Adult Services,Childrens care,Third Party Payments,425040,Rendered by Voluntary Organisations,01-Nov-2013,2661936-13/1285,"3,100.00",ACORN HOUSE (FOSTERING SERVICES) LTD.
Children and Adult Services,Childrens care,Third Party Payments,425040,Rendered by Voluntary Organisations,01-Nov-2013,2661937-R31INV/00011606,"3,232.68",ACTION FOR CHILDREN.
Children and Adult Services,Childrens care,Third Party Payments,425040,Rendered by Voluntary Organisations,01-Nov-2013,2662019-24920,"2,700.00",FUTURES FOR CHILDREN LTD.
Children and Adult Services,Childrens care,Supplies and Services,338040,Services,01-Nov-2013,2662033-RES-10-2013-028,"3,320.00",HMCTS.
Children and Adult Services,Childrens care,Transport,240045,Car Allowances,01-Nov-2013,2662123-3176,"38,161.84",SOCIAL RESOURCE CENTRE LTD.
Children and Adult Services,Childrens care,Supplies and Services,384638,Miscellaneous Expenses,01-Nov-2013,2662072-0000015428,976.50,NORTH EAST AUTISM SOCIETY.
Children and Adult Services,Childrens care,Supplies and Services,384638,Miscellaneous Expenses,01-Nov-2013,2662072-0000015429,"5,181.75",NORTH EAST AUTISM SOCIETY.
Children and Adult Services,Childrens care,Supplies and Services,384638,Miscellaneous Expenses,01-Nov-2013,2662072-0000015438,504.00,NORTH EAST AUTISM SOCIETY.
Children and Adult Services,Childrens care,Supplies and Services,384638,Miscellaneous Expenses,01-Nov-2013,2662072-0000015440,630.00,NORTH EAST AUTISM SOCIETY.
Children and Adult Services,Childrens care,Supplies and Services,384638,Miscellaneous Expenses,01-Nov-2013,2662072-00015441,693.00,NORTH EAST AUTISM SOCIETY.
Children and Adult Services,Childrens care,Third Party Payments,486021,Service Level Agreements,01-Nov-2013,2662107-2752,"40,200.00",REACH OUT CARE SUPPORT SERVICES LTD.
Children and Adult Services,Early Intervention and Involvement,Supplies and Services,368046,Incentives to Industrialists,01-Nov-2013,2661962,"1,600.00",BRANDON CARRSIDE YOUTH & COMMUNITY PROJECT.
Children and Adult Services,Early Intervention and Involvement,Supplies and Services,368046,Incentives to Industrialists,01-Nov-2013,2661972,"1,500.00",CHILTON YOUTH CLUB.
Children and Adult Services,Early Intervention and Involvement,Supplies and Services,368046,Incentives to Industrialists,01-Nov-2013,2661982,"1,200.00",CONSETT YMCA.
Children and Adult Services,Early Intervention and Involvement,Supplies and Services,368046,Incentives to Industrialists,01-Nov-2013,2661988,670.00,COXHOE COMMUNITY PARTNERSHIP.
Children and Adult Services,Early Intervention and Involvement,Supplies and Services,368046,Incentives to Industrialists,01-Nov-2013,2661999,730.00,DJ EVANS YOUTH CLUB.
Children and Adult Services,Early Intervention and Involvement,Supplies and Services,368046,Incentives to Industrialists,01-Nov-2013,2662003,"1,050.00",DURHAM CITY CENTRE YOUTH PROJECT.
Children and Adult Services,Early Intervention and Involvement,Supplies and Services,368046,Incentives to Industrialists,01-Nov-2013,2662062,630.00,MID DURHAM PROJECTS CLUB.
Children and Adult Services,Early Intervention and Involvement,Supplies and Services,368046,Incentives to Industrialists,01-Nov-2013,2662081,620.00,OXHILL YOUTH CLUB.
Children and Adult Services,Early Intervention and Involvement,Supplies and Services,368046,Incentives to Industrialists,01-Nov-2013,2662115,"1,980.00",SACRISTON COMMUNITY ASSOCIATION.
Children and Adult Services,Early Intervention and Involvement,Supplies and Services,368046,Incentives to Industrialists,01-Nov-2013,2662118,"2,000.00",SEAHAM YOUTH CENTRE.
Children and Adult Services,Early Intervention and Involvement,Supplies and Services,368046,Incentives to Industrialists,01-Nov-2013,2662142,670.00,TEESDALE YMCA.
Children and Adult Services,Early Intervention and Involvement,Supplies and Services,368046,Incentives to Industrialists,01-Nov-2013,2662157-URN-10-2013-036,750.00,UPPER TEESDALE AGRICULTURAL SUPPORT SERVICES LTD.
Children and Adult Services,Education,Employees,040149,"Recruitment, Instruction and Training",01-Nov-2013,2662044-24,585.06,JOHN RYMASZEWSKI.
Children and Adult Services,Education,Supplies and Services,304259,Equipment and Materials,01-Nov-2013,2661994-2013102201,970.00,DEBASERS FILUMS LTD.
Children and Adult Services,Head of Adults,Income,720047,Fees and Charges,01-Nov-2013,2662133,678.26,SWINBURNE & JACKSON.
Children and Adult Services,Head of Adults,Premises,135005,Water Services,01-Nov-2013,2662077-314745440018003,548.00,NORTHUMBRIAN WATER LTD.
Children and Adult Services,Public Health,Third Party Payments,460802,Contract Payments,01-Nov-2013,2662001-A83004/JULY13,622.90,DRS KR & AL KAPOOR.
Children and Adult Services,Public Health,Third Party Payments,460803,Contract Payments,01-Nov-2013,2661957-FRA09/AUG/13,671.99,BOOTS THE CHEMISTS LTD.
Children and Adult Services,Public Health,Third Party Payments,460803,Contract Payments,01-Nov-2013,2661978,"1,190.49",CO-OPERATIVE PHARMACY.
Children and Adult Services,Public Health,Third Party Payments,460803,Contract Payments,01-Nov-2013,2662068-212,"120,023.25",NECA (SERVICES) LTD.
Children and Adult Services,Public Health,Third Party Payments,460803,Contract Payments,01-Nov-2013,2662144-FA121/SEPT/13,"1,249.38",TESCO PHARMACY.
Children and Adult Services,Public Health,Third Party Payments,460803,Contract Payments,01-Nov-2013,2661943-FDE75/SEPT/13,"1,573.82",ASDA PHARMACY.
Children and Adult Services,Public Health,Third Party Payments,460803,Contract Payments,01-Nov-2013,2661958-FF604/SEPT/13,"1,268.01",BOOTS THE CHEMISTS LTD.
Children and Adult Services,Public Health,Third Party Payments,460803,Contract Payments,01-Nov-2013,2661971-FLE10/SEPT/13,"1,053.50",CHEAPSIDE CHEMIST.
Children and Adult Services,Public Health,Third Party Payments,460803,Contract Payments,01-Nov-2013,2661979,"1,587.07",CO-OPERATIVE PHARMACY.
Children and Adult Services,Public Health,Third Party Payments,460803,Contract Payments,01-Nov-2013,2662027-FX194/APRIL/13,983.39,GREY (CHEMIST) LTD T/A THE STOREHOUSE PHARMACY.
Children and Adult Services,Public Health,Third Party Payments,460803,Contract Payments,01-Nov-2013,2662027-FX194/MAY/13,"1,024.94",GREY (CHEMIST) LTD T/A THE STOREHOUSE PHARMACY.
Children and Adult Services,Public Health,Third Party Payments,460803,Contract Payments,01-Nov-2013,2662042-FKG29/SEPT/13,"1,268.08",JF EILBECK CHEMIST LTD.
Children and Adult Services,Public Health,Third Party Payments,460803,Contract Payments,01-Nov-2013,2662091-FCQ82/SEPT/13,609.27,PELTON FELL PHARMACY.
Children and Adult Services,Public Health,Third Party Payments,460803,Contract Payments,01-Nov-2013,2662094-FC276JULY2013,551.90,PHILLIPS CHEMISTS LTD.
Children and Adult Services,Public Health,Third Party Payments,460803,Contract Payments,01-Nov-2013,2662161-FGF94/SEPT/13,547.75,WHITWORTH CHEMISTS LTD.
Corporate Resources,Centrally Administered Costs,Supplies and Services,378002,Levies,01-Nov-2013,2662009,"197,453.50",ENVIRONMENT AGENCY.
Corporate Resources,Corporate Finance,Supplies and Services,384199,Miscellaneous Expenses,01-Nov-2013,2661953-101237,"15,047.50",BEYOND SYSTEMS.
Corporate Resources,Financial Services,Supplies and Services,384199,Miscellaneous Expenses,01-Nov-2013,2662048-8013,"3,924.43",KAIZEN CONSULTANTS.
Corporate Resources,Human Resources,Supplies and Services,352001,Conference Expenses,01-Nov-2013,2662098-PMA1722,"3,428.80",PMA INTERNATIONAL LTD.
Corporate Resources,I.C.T. Services,Stock,926900,Stock in hand-Inventory system,01-Nov-2013,2662127-OP/L738745,"5,504.72",SPECIALIST COMPUTER CENTRES PLC.
Corporate Resources,I.C.T. Services,Stock,926900,Stock in hand-Inventory system,01-Nov-2013,2662127-OP/L739534,"9,646.22",SPECIALIST COMPUTER CENTRES PLC.
Corporate Resources,I.C.T. Services,Stock,926900,Stock in hand-Inventory system,01-Nov-2013,2662127-OP/L741925,"28,906.20",SPECIALIST COMPUTER CENTRES PLC.
Corporate Resources,I.C.T. Services,"Vehicles, Equipment, Furniture and Fittings",912701,Computer equipment,01-Nov-2013,2662127-OP/L741926,"1,600.00",SPECIALIST COMPUTER CENTRES PLC.
Corporate Resources,I.C.T. Services,Supplies and Services,332029,"Printing, Stationery and Gen Off Exps",01-Nov-2013,2662049-1109330311,"1,705.05",KONICA MINOLTA BUSINESS SOLUTIONS (UK) LTD.
Corporate Resources,I.C.T. Services,Supplies and Services,332029,"Printing, Stationery and Gen Off Exps",01-Nov-2013,2662101-597717,"2,347.60",POTTS PRINTERS LTD.
Corporate Resources,I.C.T. Services,Supplies and Services,332029,"Printing, Stationery and Gen Off Exps",01-Nov-2013,2662101-597781,"1,391.00",POTTS PRINTERS LTD.
Corporate Resources,I.C.T. Services,Supplies and Services,344033,Telephones,01-Nov-2013,2662158,"2,808.18",VODAFONE LTD.
Corporate Resources,I.C.T. Services,"Vehicles, Equipment, Furniture and Fittings",912701,Computer equipment,01-Nov-2013,2661993-400451,"1,174.53",DATACENTRE UK LTD.
Corporate Resources,I.C.T. Services,"Vehicles, Equipment, Furniture and Fittings",912701,Computer equipment,01-Nov-2013,2661993-400452,"1,329.63",DATACENTRE UK LTD.
Corporate Resources,I.C.T. Services,"Vehicles, Equipment, Furniture and Fittings",912701,Computer equipment,01-Nov-2013,2661993-400453,"1,511.13",DATACENTRE UK LTD.
Corporate Resources,I.C.T. Services,Debtors,930167,Debtor-Telephone Holding Account,01-Nov-2013,2662069-201478,"28,890.40",NETWORKS 2 BUSINESS LTD.
Corporate Resources,I.C.T. Services,Supplies and Services,342033,Computers and Communications,01-Nov-2013,2662125-INV00846936,600.00,SOFTCAT LTD.
Corporate Resources,Legal & Democratic Services,Premises,120021,Energy Costs,01-Nov-2013,2661959-D12924,899.28,BRADLEY HALL CHARTERED SURVEYORS CLIENT ACCOUNT.
Corporate Resources,Legal & Democratic Services,Supplies and Services,372009,Subscriptions,01-Nov-2013,2662145-AEA13/14,651.00,THE ASSOCIATION OF ELECTORAL ADMINISTRATORS.
Neighbourhood Services,Culture & Sport,Construction Work,908105,Construction work,01-Nov-2013,2662056-8731,520.00,LUCION ENVIRONMENTAL LLP LTD.
Neighbourhood Services,Culture & Sport,Supplies and Services,304252,Equipment and Materials,01-Nov-2013,2662089-2232,822.50,PEAKBODY FITNESS.
Neighbourhood Services,Culture & Sport,Premises,145023,Cleaning and Domestic Supplies,01-Nov-2013,2662121-264043,"1,348.30",SIS CHEMICALS.
Neighbourhood Services,Culture & Sport,Construction Work,908105,Construction work,01-Nov-2013,2662057-2460,707.00,LYNCH HEALTHCARE LTD.
Neighbourhood Services,Culture & Sport,Supplies and Services,384700,Miscellaneous Expenses,01-Nov-2013,2662139-38/13,"1,440.00",TANTOBIE ASSOC FOR SPORT & THE COMMUNITY.
Neighbourhood Services,Culture & Sport,Supplies and Services,312013,"Newspapers, Books and Periodicals",01-Nov-2013,2661945-4073128,527.18,ASKEWS & HOLTS LIBRARY SERVICES LTD.
Neighbourhood Services,Culture & Sport,Supplies and Services,312013,"Newspapers, Books and Periodicals",01-Nov-2013,2661945-4073264,552.64,ASKEWS & HOLTS LIBRARY SERVICES LTD.
Neighbourhood Services,Culture & Sport,Supplies and Services,312013,"Newspapers, Books and Periodicals",01-Nov-2013,2661945-4073289,536.79,ASKEWS & HOLTS LIBRARY SERVICES LTD.
Neighbourhood Services,Culture & Sport,Supplies and Services,312013,"Newspapers, Books and Periodicals",01-Nov-2013,2661945-4073319,505.20,ASKEWS & HOLTS LIBRARY SERVICES LTD.
Neighbourhood Services,Culture & Sport,Supplies and Services,312013,"Newspapers, Books and Periodicals",01-Nov-2013,2661945-4073352,505.31,ASKEWS & HOLTS LIBRARY SERVICES LTD.
Neighbourhood Services,Culture & Sport,Supplies and Services,384199,Miscellaneous Expenses,01-Nov-2013,2662087-DL169/13,"2,050.00",REDACTED - PAYMENT TO INDIVIDUAL
Neighbourhood Services,Culture & Sport,Supplies and Services,324001,Provisions,01-Nov-2013,2661966-EW54520353,846.10,CARLSBERG UK LTD.
Neighbourhood Services,Culture & Sport,Supplies and Services,338047,Services,01-Nov-2013,2662007-3488,"7,000.00",ENGLISH TOURING OPERA.
Neighbourhood Services,Direct Services,Supplies and Services,304259,Equipment and Materials,01-Nov-2013,2662029-182977,952.50,GUSTHARTS.
Neighbourhood Services,Direct Services,Supplies and Services,304259,Equipment and Materials,01-Nov-2013,2662126-1435043,581.70,SPALDINGS (UK) LTD.
Neighbourhood Services,Direct Services,Supplies and Services,338099,Services,01-Nov-2013,2662131-SA027-13,560.50,STRAY AID LTD.
Neighbourhood Services,Direct Services,Supplies and Services,304403,Equipment and Materials,01-Nov-2013,2662132-6227129,695.34,SUPPLIES TEAM LTD.
Neighbourhood Services,Direct Services,Supplies and Services,304221,Equipment and Materials,01-Nov-2013,2662096-4120/156238,619.21,PLUMBING TRADE SUPPLIES LTD.
Neighbourhood Services,Direct Services,Supplies and Services,304221,Equipment and Materials,01-Nov-2013,2662096-4120156308,619.21,PLUMBING TRADE SUPPLIES LTD.
Neighbourhood Services,Direct Services,Supplies and Services,304221,Equipment and Materials,01-Nov-2013,2662096-4120156310,619.21,PLUMBING TRADE SUPPLIES LTD.
Neighbourhood Services,Direct Services,Premises,145009,Cleaning and Domestic Supplies,01-Nov-2013,2661975-25Q,"1,320.00",CLEAN THRU NORTHERN LTD.
Neighbourhood Services,Direct Services,Third Party Payments,430100,Rendered by Private Contractors,01-Nov-2013,2661947-1389,"1,486.00",AWR ROOFING & ALUMIN RAINWATER SYSTEMS LTD.
Neighbourhood Services,Direct Services,Third Party Payments,430100,Rendered by Private Contractors,01-Nov-2013,2662100-900654735,"2,513.33",PORTAKABIN LTD.
Neighbourhood Services,Direct Services,Supplies and Services,304221,Equipment and Materials,01-Nov-2013,2661964-1650/0543858,722.42,BSS GROUP PLC.
Neighbourhood Services,Direct Services,Supplies and Services,304221,Equipment and Materials,01-Nov-2013,2662135-0940058,"1,277.04",T CROSSLING & CO LTD.
Neighbourhood Services,Direct Services,Supplies and Services,304221,Equipment and Materials,01-Nov-2013,2661969-14123,"1,370.63",CATHEDRAL LOCK & SAFE SERVICES LTD.
Neighbourhood Services,Direct Services,Supplies and Services,304221,Equipment and Materials,01-Nov-2013,2662011-13904,552.00,F WARREN (ELECTRICAL) LTD.
Neighbourhood Services,Direct Services,Third Party Payments,430100,Rendered by Private Contractors,01-Nov-2013,2662102-126089,578.38,PREMIER TRAFFIC MANAGEMENT LTD.
Neighbourhood Services,"Environment,Health & Consumer Protection",Supplies and Services,338099,Services,01-Nov-2013,2661948-17058,"1,190.00",AXLE WEIGHT TECHNOLOGY LTD.
Neighbourhood Services,Sport & Leisure,"Vehicles, Equipment, Furniture and Fittings",912529,Purchase-equipment,01-Nov-2013,2662030-026320,"4,995.00",HAGS-SMP LTD.
Neighbourhood Services,Technical Services,Stock,926004,Stock,01-Nov-2013,2661976-90127690,"13,278.49",CLEVELAND POTASH LTD.
Neighbourhood Services,Technical Services,Stock,926004,Stock,01-Nov-2013,2661976-90127691,"1,021.18",CLEVELAND POTASH LTD.
Neighbourhood Services,Technical Services,Stock,926004,Stock,01-Nov-2013,2661976-90127706,"3,681.03",CLEVELAND POTASH LTD.
Neighbourhood Services,Technical Services,Stock,926004,Stock,01-Nov-2013,2661976-90127707,"2,550.18",CLEVELAND POTASH LTD.
Neighbourhood Services,Technical Services,Stock,926004,Stock,01-Nov-2013,2661976-90127749,"8,684.40",CLEVELAND POTASH LTD.
Neighbourhood Services,Technical Services,Stock,926004,Stock,01-Nov-2013,2661976-90127750,"1,000.88",CLEVELAND POTASH LTD.
Neighbourhood Services,Technical Services,Stock,926900,Stock in hand-Inventory system,01-Nov-2013,2661946-SIN203948,636.60,ATF SUPPLIES LTD.
Neighbourhood Services,Technical Services,Stock,926900,Stock in hand-Inventory system,01-Nov-2013,2661949-INV082932,"1,400.00",AZTEC CHEMICALS LTD.
Neighbourhood Services,Technical Services,Stock,926900,Stock in hand-Inventory system,01-Nov-2013,2661956-8331561,"1,071.40",BOLD NU TEC INSULATION PRODUCTS & SERVICES LTD.
Neighbourhood Services,Technical Services,Stock,926900,Stock in hand-Inventory system,01-Nov-2013,2661970-0340196,560.00,CHAMBERLAIN DOORS LTD.
Neighbourhood Services,Technical Services,Stock,926900,Stock in hand-Inventory system,01-Nov-2013,2662014-OP/I273177,957.91,FLEMING & CO (MACHINERY) LTD.
Neighbourhood Services,Technical Services,Stock,926900,Stock in hand-Inventory system,01-Nov-2013,2662014-OP/I273496,"1,210.91",FLEMING & CO (MACHINERY) LTD.
Neighbourhood Services,Technical Services,Stock,926900,Stock in hand-Inventory system,01-Nov-2013,2662036-078545,"4,079.60",HYDRAM ENGINEERING LTD.
Neighbourhood Services,Technical Services,Stock,926900,Stock in hand-Inventory system,01-Nov-2013,2662037-1050/13,"1,552.16",IC BRINDLE & CO LTD.
Neighbourhood Services,Technical Services,Stock,926900,Stock in hand-Inventory system,01-Nov-2013,2662043-NI023211,"12,068.10",JOHN MACLEAN & SONS ELECTRICAL (DINGWALL) LTD.
Neighbourhood Services,Technical Services,Stock,926900,Stock in hand-Inventory system,01-Nov-2013,2662043-NI023212,"33,471.90",JOHN MACLEAN & SONS ELECTRICAL (DINGWALL) LTD.
Neighbourhood Services,Technical Services,Stock,926900,Stock in hand-Inventory system,01-Nov-2013,2662047-STI390485,667.92,JT DOVE LTD.
Neighbourhood Services,Technical Services,Stock,926900,Stock in hand-Inventory system,01-Nov-2013,2662084-XL099952,705.60,PARK ELECTRICAL DISTRIBUTORS LTD.
Neighbourhood Services,Technical Services,Stock,926900,Stock in hand-Inventory system,01-Nov-2013,2662084-XL100048,816.00,PARK ELECTRICAL DISTRIBUTORS LTD.
Neighbourhood Services,Technical Services,Stock,926900,Stock in hand-Inventory system,01-Nov-2013,2662135-0938627,912.00,T CROSSLING & CO LTD.
Neighbourhood Services,Technical Services,Stock,926900,Stock in hand-Inventory system,01-Nov-2013,2662149-N/IN107465,523.34,THOMAS OWEN & SONS (NEWCASTLE) LTD.
Neighbourhood Services,Technical Services,Third Party Payments,430100,Rendered by Private Contractors,01-Nov-2013,2662102-126088,"20,157.02",PREMIER TRAFFIC MANAGEMENT LTD.
Neighbourhood Services,Technical Services,Supplies and Services,304221,Equipment and Materials,01-Nov-2013,2661931-9030138587,676.94,LAFARGE TARMAC TRADING LTD.
Neighbourhood Services,Technical Services,Supplies and Services,304221,Equipment and Materials,01-Nov-2013,2661931-9030150882,577.75,LAFARGE TARMAC TRADING LTD.
Neighbourhood Services,Technical Services,Supplies and Services,304221,Equipment and Materials,01-Nov-2013,2661931-9030175550,626.80,LAFARGE TARMAC TRADING LTD.
Neighbourhood Services,Technical Services,Supplies and Services,304221,Equipment and Materials,01-Nov-2013,2661935-4100390011,"3,600.59",A HILL & SONS LTD.
Neighbourhood Services,Technical Services,Supplies and Services,304221,Equipment and Materials,01-Nov-2013,2662032-SIN7035860,"3,074.00",HCS DRAIN SERVICES LTD.
Neighbourhood Services,Technical Services,Supplies and Services,304221,Equipment and Materials,01-Nov-2013,2662110-22110,"1,875.00",RJ UTILITY SERVICES LTD.
Neighbourhood Services,Technical Services,Supplies and Services,304221,Equipment and Materials,01-Nov-2013,2662110-22112,"4,931.00",RJ UTILITY SERVICES LTD.
Neighbourhood Services,Technical Services,Supplies and Services,304221,Equipment and Materials,01-Nov-2013,2662130-056460,"2,160.98",STONEGRAVE AGGREGATES LTD.
Neighbourhood Services,Technical Services,Supplies and Services,304221,Equipment and Materials,01-Nov-2013,2662136-0000060743,"1,747.00",TA PLASTIC SUPPLIES LTD.
Neighbourhood Services,Technical Services,Third Party Payments,430100,Rendered by Private Contractors,01-Nov-2013,2662102-125336,"5,173.38",PREMIER TRAFFIC MANAGEMENT LTD.
Neighbourhood Services,Technical Services,Third Party Payments,430100,Rendered by Private Contractors,01-Nov-2013,2662102-125680,"12,040.56",PREMIER TRAFFIC MANAGEMENT LTD.
Neighbourhood Services,Technical Services,Third Party Payments,430100,Rendered by Private Contractors,01-Nov-2013,2662106-2580/130936,"10,124.32",RAINTON CONSTRUCTION LTD.
RED HRA,HRA Capital,Construction Work,908105,Construction work,01-Nov-2013,2661938-10723,800.00,ADVANTAGE UTILITIES SERVICES LTD.
RED HRA,HRA Capital,Construction Work,908105,Construction work,01-Nov-2013,2662061-181204,"59,668.93",MGM LTD.
RED HRA,HRA Capital,Construction Work,908105,Construction work,01-Nov-2013,2662022,"92,113.37",GENTOO CONSTRUCTION LTD.
RED HRA,HRA Capital,Construction Work,908105,Construction work,01-Nov-2013,2661980-182449,"1,611.96",COAST & COUNTRY HOUSING LTD.
RED HRA,HRA Capital,Construction Work,908105,Construction work,01-Nov-2013,2661980-182592,"42,983.31",COAST & COUNTRY HOUSING LTD.
RED HRA,HRA Capital,Construction Work,908105,Construction work,01-Nov-2013,2662010-111250,"65,466.32",ESH CONSTRUCTION LTD FORMERLY LUMSDEN & CARROLL CONSTRUCTION LTD.
RED HRA,HRA Capital,Other Expenses,914001,Other capital expenses,01-Nov-2013,2661995-108858,"2,794.94",DEERNESS FENCING LTD.
RED HRA,HRA Centrally Managed,Creditors,952184,Creditor-tenants contents insurance,01-Nov-2013,2662059-6223324,"1,397.24",MARSH LTD UK.
Regeneration & Economic Development,Economic Development and Housing,Supplies and Services,384899,Miscellaneous Expenses,01-Nov-2013,2661954,"10,000.00",BISHOP AUCKLAND TOWN TEAM.
Regeneration & Economic Development,Economic Development and Housing,Premises,120021,Energy Costs,01-Nov-2013,2661986-08732051,756.16,CORONA ENERGY RETAIL 2 LTD.
Regeneration & Economic Development,Economic Development and Housing,Premises,120009,Energy Costs,01-Nov-2013,2662078-NNO7HK6M,885.99,NPOWER.
Regeneration & Economic Development,Economic Development and Housing,Premises,120009,Energy Costs,01-Nov-2013,2662138-04796361,958.74,TALKTALK BUSINESS.
Regeneration & Economic Development,Economic Development and Housing,Supplies and Services,304337,Equipment and Materials,01-Nov-2013,2661939-518059,518.50,ALBERT HARRISON & CO LTD.
Regeneration & Economic Development,Economic Development and Housing,Supplies and Services,304337,Equipment and Materials,01-Nov-2013,2661991-50357,801.20,DANSK SMYKKEKUNST A/S.
Regeneration & Economic Development,Economic Development and Housing,Supplies and Services,324117,Provisions,01-Nov-2013,2661933-36464703,"1,121.05",3663.
Regeneration & Economic Development,Economic Development and Housing,Employees,040149,"Recruitment, Instruction and Training",01-Nov-2013,2662156-91243741,"1,840.00",UNIVERSITY OF NORTHUMBRIA.
Regeneration & Economic Development,Economic Development and Housing,Construction Work,908113,Capital - Landscaping,01-Nov-2013,2661961-140140,"59,159.63",BRAMBLEDOWN LANDSCAPE SERVICES LTD.
Regeneration & Economic Development,Economic Development and Housing,Construction Work,908105,Construction work,01-Nov-2013,2662154-RS/70662CERT05,"100,075.13",TURNEY WYLDE (CONSTRUCTION) LTD.
Regeneration & Economic Development,Economic Development and Housing,Cap Exp on Grants & Other Financial Assistance (REFCUS),918401,Capital grants,01-Nov-2013,2662006-184GE,"3,076.00",ELLIOT HIRD & PARTNERS LTD.
Regeneration & Economic Development,Economic Development and Housing,Cap Exp on Grants & Other Financial Assistance (REFCUS),918401,Capital grants,01-Nov-2013,2662006-208GE,"2,128.00",ELLIOT HIRD & PARTNERS LTD.
Regeneration & Economic Development,Economic Development and Housing,Cap Exp on Grants & Other Financial Assistance (REFCUS),918401,Capital grants,01-Nov-2013,2662058-056,"2,175.50",M & R DEVELOPMENTS & CONTRACTORS LTD..
Regeneration & Economic Development,Economic Development and Housing,Cap Exp on Grants & Other Financial Assistance (REFCUS),918401,Capital grants,01-Nov-2013,2662058-RED-10-2013-057,"5,750.00",M & R DEVELOPMENTS & CONTRACTORS LTD..
Regeneration & Economic Development,Economic Development and Housing,Cap Exp on Grants & Other Financial Assistance (REFCUS),918401,Capital grants,01-Nov-2013,2662090-62717,"3,833.00",PEART ACCESS RAMPS.
Regeneration & Economic Development,Economic Development and Housing,Cap Exp on Grants & Other Financial Assistance (REFCUS),918401,Capital grants,01-Nov-2013,2662151-DFG186/13,"4,153.83",THYSSENKRUPP ENCASA LTD.
Regeneration & Economic Development,Economic Development and Housing,Cap Exp on Grants & Other Financial Assistance (REFCUS),918401,Capital grants,01-Nov-2013,2662151-SIP124632,"10,839.40",THYSSENKRUPP ENCASA LTD.
Regeneration & Economic Development,Economic Development and Housing,Cap Exp on Grants & Other Financial Assistance (REFCUS),918401,Capital grants,01-Nov-2013,2662151-SIP124789,"1,740.00",THYSSENKRUPP ENCASA LTD.
Regeneration & Economic Development,"Spatial Policy, Planning, Assets & Environment",Supplies and Services,384700,Miscellaneous Expenses,01-Nov-2013,2662028-064,"2,519.71",GROUNDWORK NORTH EAST.
Regeneration & Economic Development,"Spatial Policy, Planning, Assets & Environment",Supplies and Services,384700,Miscellaneous Expenses,01-Nov-2013,2662028-065,"18,207.76",GROUNDWORK NORTH EAST.
Regeneration & Economic Development,"Spatial Policy, Planning, Assets & Environment",Supplies and Services,384700,Miscellaneous Expenses,01-Nov-2013,2662028-066,"2,572.12",GROUNDWORK NORTH EAST.
Regeneration & Economic Development,"Spatial Policy, Planning, Assets & Environment",Supplies and Services,384700,Miscellaneous Expenses,01-Nov-2013,2662028-067,"6,349.69",GROUNDWORK NORTH EAST.
Regeneration & Economic Development,"Spatial Policy, Planning, Assets & Environment",Supplies and Services,384199,Miscellaneous Expenses,01-Nov-2013,2661998-2038,"7,500.00",DINSDALE MOORLAND SERVICES.
Regeneration & Economic Development,Strategy Programmes and Performance,Employees,040149,"Recruitment, Instruction and Training",01-Nov-2013,2662147-13/238,800.00,THE CENTRE FOR CHANGE MANAGEMENT LTD.
Regeneration & Economic Development,Transport and Contracted Services,Other Expenses,914001,Other capital expenses,01-Nov-2013,2662008-18706,"19,551.00",ENVIRO TECHNOLOGY SERVICES PLC.
Assistant Chief Executive,Partnerships & Community Engagement Div.,Supplies and Services,384085,Miscellaneous Expenses,04-Nov-2013,2662312,500.00,KIDS CLUB.
Children and Adult Services,Childrens care,Third Party Payments,425021,Rendered by Voluntary Organisations,04-Nov-2013,2662288-INV-0011,"23,761.70",INTERACT CARE LTD.
Children and Adult Services,Childrens care,Transport,230005,Contract Hire,04-Nov-2013,2662222-0001111,975.00,COLORS TAXIS LTD.
Children and Adult Services,Childrens care,Supplies and Services,364352,Grants to Voluntary Organisations,04-Nov-2013,2662279-3/RO/FLAT5,"1,033.44",HOME GROUP LTD.
Children and Adult Services,Childrens care,Supplies and Services,336005,Advertising,04-Nov-2013,2662413-2668,550.00,THE CRACK LTD.
Children and Adult Services,Childrens care,Employees,080025,Agency Staff,04-Nov-2013,2662223-532225,"164,049.23",COMENSURA LTD.
Children and Adult Services,Childrens care,Supplies and Services,384638,Miscellaneous Expenses,04-Nov-2013,2662351-0000015444,504.00,NORTH EAST AUTISM SOCIETY.
Children and Adult Services,Childrens care,Supplies and Services,384638,Miscellaneous Expenses,04-Nov-2013,2662351-0000015446,630.00,NORTH EAST AUTISM SOCIETY.
Children and Adult Services,Childrens care,Supplies and Services,384638,Miscellaneous Expenses,04-Nov-2013,2662351-0000015448,"1,039.50",NORTH EAST AUTISM SOCIETY.
Children and Adult Services,Childrens care,Supplies and Services,384638,Miscellaneous Expenses,04-Nov-2013,2662351-0000015450,630.00,NORTH EAST AUTISM SOCIETY.
Children and Adult Services,Commissioning inc Supporting People,Transport,230005,Contract Hire,04-Nov-2013,2662315-1996,"1,080.00",LANGLEY PARK COMMUNITY TRANSPORT.
Children and Adult Services,Early Intervention and Involvement,Third Party Payments,479101,Purchase of Care,04-Nov-2013,2662219-3910001450,"2,159.16",CO DURHAM & DARLINGTON NHS FOUNDATION TRUST.
Children and Adult Services,Early Intervention and Involvement,Premises,125009,Rents,04-Nov-2013,2662436-261952,612.00,WHITTLE JONES (GROUP) LTD.
Children and Adult Services,Education,Construction Work,908105,Construction work,04-Nov-2013,2662172-146062,"1,399.00",ALBANY OFFICE EQUIPMENT (WHOLESALE) LTD.
Children and Adult Services,Education,Transport,230005,Contract Hire,04-Nov-2013,2662204-JULY22,555.00,CAROLINE C SYKES.
Children and Adult Services,Head of Adults,Transfer Payments,515201,Social Services Clients,04-Nov-2013,2662425,590.80,UNIQUE HOME CARE.
Children and Adult Services,Planning & Service Strategy,Supplies and Services,332047,"Printing, Stationery and Gen Off Exps",04-Nov-2013,2662357-91282884,"1,010.65",NORTHGATE INFORMATION SOLUTIONS UK LTD.
Children and Adult Services,Planning & Service Strategy,Supplies and Services,332047,"Printing, Stationery and Gen Off Exps",04-Nov-2013,2662357-91282885,"2,921.09",NORTHGATE INFORMATION SOLUTIONS UK LTD.
Children and Adult Services,Public Health,Third Party Payments,460802,Contract Payments,04-Nov-2013,2662213,"7,247.57",CLAYPATH & UNIVERSITY MEDICAL GROUP.
Children and Adult Services,Public Health,Third Party Payments,460802,Contract Payments,04-Nov-2013,2662399,"1,283.69",SOUTHDENE MEDICAL CENTRE.
Children and Adult Services,Public Health,Third Party Payments,460803,Contract Payments,04-Nov-2013,2662176-FGV/JULY/2013,685.64,ALLIANCE PHARMACY.
Children and Adult Services,Public Health,Third Party Payments,460803,Contract Payments,04-Nov-2013,2662240-A83004/AUG13,581.50,DRS KR & AL KAPOOR.
Children and Adult Services,Public Health,Third Party Payments,460803,Contract Payments,04-Nov-2013,2662259-FK668/SEPT/13,"1,144.27",FARAH CHEMISTS LTD.
Children and Adult Services,Public Health,Third Party Payments,460803,Contract Payments,04-Nov-2013,2662322-FGI33/SEPT/13,947.10,M WHITFIELD LTD.
Children and Adult Services,Public Health,Third Party Payments,460803,Contract Payments,04-Nov-2013,2662322-FGL33/MAY/13,"1,376.34",M WHITFIELD LTD.
Corporate Resources,Financial Services,Supplies and Services,338019,Services,04-Nov-2013,2662378-6416,796.25,PRINT SEARCH CHESTER LTD.
Corporate Resources,Financial Services,Supplies and Services,342051,Computers and Communications,04-Nov-2013,2662212-M/RB018604,"3,500.00",CIVICA UK LTD.
Corporate Resources,I.C.T. Services,Stock,926900,Stock in hand-Inventory system,04-Nov-2013,2662400-OP/L742693,"28,906.20",SPECIALIST COMPUTER CENTRES PLC.
Corporate Resources,I.C.T. Services,Supplies and Services,304245,Equipment and Materials,04-Nov-2013,2662442-968652627,585.08,XEROX OFFICE SUPPLIES.
Corporate Resources,I.C.T. Services,Debtors,930174,MFD - Paper Holdings,04-Nov-2013,2662426,"23,123.80",UNITED CARLTON OFFICE SYSTEMS LTD.
Corporate Resources,I.C.T. Services,"Vehicles, Equipment, Furniture and Fittings",912701,Computer equipment,04-Nov-2013,2662234-7402065555,"45,638.34",DELL COMPUTER CORPORATION LTD.
Corporate Resources,I.C.T. Services,"Vehicles, Equipment, Furniture and Fittings",912701,Computer equipment,04-Nov-2013,2662235-7402064324,"68,322.02",DELL COMPUTER CORPORATION LTD.
Corporate Resources,I.C.T. Services,"Vehicles, Equipment, Furniture and Fittings",912701,Computer equipment,04-Nov-2013,2662235-7402064370,"55,906.40",DELL COMPUTER CORPORATION LTD.
Corporate Resources,I.C.T. Services,"Vehicles, Equipment, Furniture and Fittings",912701,Computer equipment,04-Nov-2013,2662235-7402064830,"53,244.73",DELL COMPUTER CORPORATION LTD.
Corporate Resources,I.C.T. Services,"Vehicles, Equipment, Furniture and Fittings",912701,Computer equipment,04-Nov-2013,2662235-7402064925,"55,906.40",DELL COMPUTER CORPORATION LTD.
Corporate Resources,I.C.T. Services,"Vehicles, Equipment, Furniture and Fittings",912701,Computer equipment,04-Nov-2013,2662235-7402064977,"93,023.85",DELL COMPUTER CORPORATION LTD.
Corporate Resources,I.C.T. Services,Debtors,930168,Debtor - Mobile Telephone Holding Account,04-Nov-2013,2662431-68805481,"12,142.27",VODAFONE CORPORATE LTD.
Corporate Resources,I.C.T. Services,Debtors,930168,Debtor - Mobile Telephone Holding Account,04-Nov-2013,2662431-68806246,"56,218.90",VODAFONE CORPORATE LTD.
Corporate Resources,I.C.T. Services,Debtors,930168,Debtor - Mobile Telephone Holding Account,04-Nov-2013,2662431-68808083,"2,202.45",VODAFONE CORPORATE LTD.
Corporate Resources,I.C.T. Services,Supplies and Services,342033,Computers and Communications,04-Nov-2013,2662386-DE3333334,580.00,RM EDUCATION PLC.
Corporate Resources,I.C.T. Services,Stock,926900,Stock in hand-Inventory system,04-Nov-2013,2662287-1522986,"2,984.86",INSIGHT DIRECT (UK) LTD.
Corporate Resources,Legal & Democratic Services,Premises,125009,Rents,04-Nov-2013,2662192-D12933,"4,039.88",BRADLEY HALL CHARTERED SURVEYORS CLIENT ACCOUNT.
Corporate Resources,Legal & Democratic Services,Supplies and Services,338057,Services,04-Nov-2013,2662238-PB10,677.60,DR BARRETT.
Corporate Resources,Legal & Democratic Services,Supplies and Services,338057,Services,04-Nov-2013,2662239-PB9,677.60,DR BARRETT.
Corporate Resources,Legal & Democratic Services,Supplies and Services,338057,Services,04-Nov-2013,2662252-1192,580.80,ELYSIAN PATHOLOGY SERVICES LTD.
Neighbourhood Services,Culture & Sport,Supplies and Services,324117,Provisions,04-Nov-2013,2662203-EW54567595,544.41,CARLSBERG UK LTD.
Neighbourhood Services,Culture & Sport,Third Party Payments,430100,Rendered by Private Contractors,04-Nov-2013,2662224-PS22825,"5,750.00",COMPETITION LINE UK LTD.
Neighbourhood Services,Culture & Sport,Third Party Payments,430100,Rendered by Private Contractors,04-Nov-2013,2662224-PS22824,"34,727.34",COMPETITION LINE UK LTD.
Neighbourhood Services,Culture & Sport,Supplies and Services,338066,Services,04-Nov-2013,2662428-9000253906,"1,200.00",UNIVERSITY OF NEWCASTLE UPON TYNE.
Neighbourhood Services,Culture & Sport,Supplies and Services,304259,Equipment and Materials,04-Nov-2013,2662440-278464,"1,482.88",WM SMITH & SONS (BARNARD CASTLE) LTD.
Neighbourhood Services,Culture & Sport,Supplies and Services,340001,Postages,04-Nov-2013,2662388-1801517263,775.00,ROYAL MAIL GROUP PLC.
Neighbourhood Services,Culture & Sport,Supplies and Services,338047,Services,04-Nov-2013,2662427-IN13039123,815.38,UNIVERSAL PICTURES INTERNATIONAL UK & EIRE LTD.
Neighbourhood Services,Culture & Sport,Supplies and Services,338047,Services,04-Nov-2013,2662342-SEPT/OCT2013,"1,100.00",MRS SHARON KERRIDGE.
Neighbourhood Services,Culture & Sport,Supplies and Services,338047,Services,04-Nov-2013,2662293-740,"2,726.99",JAMIE WILSON PRODUCTIONS LTD.
Neighbourhood Services,Culture & Sport,Supplies and Services,338047,Services,04-Nov-2013,2662296-2385,"5,973.11",JOE BROWN PRODUCTIONS LTD.
Neighbourhood Services,Culture & Sport,Supplies and Services,338047,Services,04-Nov-2013,2662371-20133472,810.13,PICTUREHOUSE CINEMAS LTD.
Neighbourhood Services,Culture & Sport,Supplies and Services,338047,Services,04-Nov-2013,2662371-20133573,"2,140.42",PICTUREHOUSE CINEMAS LTD.
Neighbourhood Services,Direct Services,Transport,230005,Contract Hire,04-Nov-2013,2662319-100117,"1,785.00",LONDONDERRY GARAGE LTD.
Neighbourhood Services,Direct Services,Stock,926004,Stock,04-Nov-2013,2662209-1351687,"20,150.76",CERTAS ENERGY UK LTD.
Neighbourhood Services,Direct Services,Stock,926004,Stock,04-Nov-2013,2662381-36557,562.00,QPS PLASTICS LTD.
Neighbourhood Services,Direct Services,Transport,210057,Repair and Maintenance of Vehicles,04-Nov-2013,2662200-168029,"6,952.30",BUNCE (ASHBURY) LTD.
Neighbourhood Services,Direct Services,Transport,210057,Repair and Maintenance of Vehicles,04-Nov-2013,2662200-168030,870.00,BUNCE (ASHBURY) LTD.
Neighbourhood Services,Direct Services,Transport,210057,Repair and Maintenance of Vehicles,04-Nov-2013,2662207-278292,"1,450.26",CARRS BILLINGTON AGRICULTURE.
Neighbourhood Services,Direct Services,Transport,210057,Repair and Maintenance of Vehicles,04-Nov-2013,2662389-00229019,704.85,S JENNINGS LTD.
Neighbourhood Services,Direct Services,Stock,926004,Stock,04-Nov-2013,2662207-278295,859.67,CARRS BILLINGTON AGRICULTURE.
Neighbourhood Services,Direct Services,Stock,926004,Stock,04-Nov-2013,2662207-278533,"1,096.42",CARRS BILLINGTON AGRICULTURE.
Neighbourhood Services,Direct Services,Stock,926004,Stock,04-Nov-2013,2662209-1365269,"11,765.25",CERTAS ENERGY UK LTD.
Neighbourhood Services,Direct Services,Stock,926004,Stock,04-Nov-2013,2662209-1365273,"2,097.11",CERTAS ENERGY UK LTD.
Neighbourhood Services,Direct Services,Supplies and Services,304221,Equipment and Materials,04-Nov-2013,2662309-01,"1,472.40",KANE INTERNATIONAL LTD.
Neighbourhood Services,Direct Services,Supplies and Services,304221,Equipment and Materials,04-Nov-2013,2662309-02,"1,472.40",KANE INTERNATIONAL LTD.
Neighbourhood Services,Direct Services,Supplies and Services,304221,Equipment and Materials,04-Nov-2013,2662309-03,"1,472.40",KANE INTERNATIONAL LTD.
Neighbourhood Services,Direct Services,Supplies and Services,304221,Equipment and Materials,04-Nov-2013,2662374-4120155871,619.21,PLUMBING TRADE SUPPLIES LTD.
Neighbourhood Services,Direct Services,Supplies and Services,304221,Equipment and Materials,04-Nov-2013,2662374-4120155872,619.21,PLUMBING TRADE SUPPLIES LTD.
Neighbourhood Services,Direct Services,Supplies and Services,304221,Equipment and Materials,04-Nov-2013,2662374-4120156396,619.21,PLUMBING TRADE SUPPLIES LTD.
Neighbourhood Services,Direct Services,Supplies and Services,304221,Equipment and Materials,04-Nov-2013,2662374-4120156400,619.21,PLUMBING TRADE SUPPLIES LTD.
Neighbourhood Services,Direct Services,Premises,145023,Cleaning and Domestic Supplies,04-Nov-2013,2662271-06/486629,972.60,GREENHAM TRADING LTD.
Neighbourhood Services,Direct Services,Premises,145023,Cleaning and Domestic Supplies,04-Nov-2013,2662271-06/486679,617.50,GREENHAM TRADING LTD.
Neighbourhood Services,Direct Services,Supplies and Services,304221,Equipment and Materials,04-Nov-2013,2662395-129798,632.09,SIKA LIQUID PLASTICS LTD.
Neighbourhood Services,Direct Services,Supplies and Services,304221,Equipment and Materials,04-Nov-2013,2662198-1650/05050967,550.75,BSS GROUP PLC.
Neighbourhood Services,Direct Services,Supplies and Services,304221,Equipment and Materials,04-Nov-2013,2662199-1650/0501501,758.65,BSS GROUP PLC.
Neighbourhood Services,Direct Services,Supplies and Services,304221,Equipment and Materials,04-Nov-2013,2662424-1005483,"3,546.16",UFW LTD.
Neighbourhood Services,Direct Services,Supplies and Services,304221,Equipment and Materials,04-Nov-2013,2662424-1005484,"3,546.16",UFW LTD.
Neighbourhood Services,Direct Services,Third Party Payments,430100,Rendered by Private Contractors,04-Nov-2013,2662241-50244,"1,404.00",DUNNINGHAM DECORATORS LTD.
Neighbourhood Services,Direct Services,Supplies and Services,304221,Equipment and Materials,04-Nov-2013,2662246-059-129262,591.50,EDMUNDSON ELECTRICAL LTD.
Neighbourhood Services,"Environment,Health & Consumer Protection",Employees,040149,"Recruitment, Instruction and Training",04-Nov-2013,2662282-0768,600.00,HSF TRAINING LTD.
Neighbourhood Services,Projects and Business services,Third Party Payments,430100,Rendered by Private Contractors,04-Nov-2013,2662173-HL144410,829.87,ALCONTROL LABORATORIES.
Neighbourhood Services,Projects and Business services,Third Party Payments,430119,Rendered by Private Contractors,04-Nov-2013,2662276-84378,"4,301.75",HARPERS ENVIRONMENTAL LTD.
Neighbourhood Services,Projects and Business services,Third Party Payments,430119,Rendered by Private Contractors,04-Nov-2013,2662276-84379,"1,857.94",HARPERS ENVIRONMENTAL LTD.
Neighbourhood Services,Technical Services,Third Party Payments,460502,Contract Payments,04-Nov-2013,2662326-010453,"36,623.20",METEO GROUP UK LTD.
Neighbourhood Services,Technical Services,Stock,926004,Stock,04-Nov-2013,2662216-90127821,"2,242.95",CLEVELAND POTASH LTD.
Neighbourhood Services,Technical Services,Supplies and Services,342051,Computers and Communications,04-Nov-2013,2662227-21307279,"1,540.00",CSC (UK) LTD.
Neighbourhood Services,Technical Services,Stock,926900,Stock in hand-Inventory system,04-Nov-2013,2662221-142161,"1,109.52",COLAS LTD.
Neighbourhood Services,Technical Services,Stock,926900,Stock in hand-Inventory system,04-Nov-2013,2662221-142167,612.00,COLAS LTD.
Neighbourhood Services,Technical Services,Stock,926900,Stock in hand-Inventory system,04-Nov-2013,2662409-0920409,"2,263.50",T CROSSLING & CO LTD.
Neighbourhood Services,Technical Services,Stock,926900,Stock in hand-Inventory system,04-Nov-2013,2662415-N/IN107863,"3,531.41",THOMAS OWEN & SONS (NEWCASTLE) LTD.
Neighbourhood Services,Technical Services,Stock,926900,Stock in hand-Inventory system,04-Nov-2013,2662415-N/IN107987,"2,030.96",THOMAS OWEN & SONS (NEWCASTLE) LTD.
Neighbourhood Services,Technical Services,Stock,926900,Stock in hand-Inventory system,04-Nov-2013,2662415-N/IN107989,655.68,THOMAS OWEN & SONS (NEWCASTLE) LTD.
Neighbourhood Services,Technical Services,Stock,926900,Stock in hand-Inventory system,04-Nov-2013,2662421-95393,548.00,TOFCO LTD.
Neighbourhood Services,Technical Services,Stock,926900,Stock in hand-Inventory system,04-Nov-2013,2662441-84936943,"1,963.38",WOLSELEY UK LTD.
Neighbourhood Services,Technical Services,Premises,150015,Apportioned Exps of Operational Blds,04-Nov-2013,2662435-212003,705.28,WERNICK HIRE LTD.
Neighbourhood Services,Technical Services,Supplies and Services,304221,Equipment and Materials,04-Nov-2013,2662385-21492,"1,496.00",RJ UTILITY SERVICES LTD.
Neighbourhood Services,Technical Services,Supplies and Services,304221,Equipment and Materials,04-Nov-2013,2662385-22108,"1,467.00",RJ UTILITY SERVICES LTD.
Neighbourhood Services,Technical Services,Supplies and Services,304221,Equipment and Materials,04-Nov-2013,2662385-22109,"2,211.00",RJ UTILITY SERVICES LTD.
Neighbourhood Services,Technical Services,Supplies and Services,304221,Equipment and Materials,04-Nov-2013,2662392-25215921327,"1,029.60",SIG FIXINGS.
Neighbourhood Services,Technical Services,Supplies and Services,304221,Equipment and Materials,04-Nov-2013,2662394-207596,"3,508.12",SIGNPOST SOLUTIONS LTD.
Neighbourhood Services,Technical Services,Supplies and Services,304221,Equipment and Materials,04-Nov-2013,2662406-056503,507.44,STONEGRAVE AGGREGATES LTD.
Neighbourhood Services,Technical Services,Supplies and Services,304221,Equipment and Materials,04-Nov-2013,2662406-056548,"1,286.82",STONEGRAVE AGGREGATES LTD.
Neighbourhood Services,Technical Services,Supplies and Services,304357,Equipment and Materials,04-Nov-2013,2662270-21909,500.00,GRAB & DELIVER LTD.
Neighbourhood Services,Technical Services,Supplies and Services,304357,Equipment and Materials,04-Nov-2013,2662358-SL01929840INV,675.80,NORTHGATE VEHICLE HIRE LTD.
Neighbourhood Services,Technical Services,Supplies and Services,304357,Equipment and Materials,04-Nov-2013,2662439-N71150,"1,057.56",WILLIAMSON CONSTRUCTION EQUIPMENT LTD.
Neighbourhood Services,Technical Services,Third Party Payments,430100,Rendered by Private Contractors,04-Nov-2013,2662221-I13D0238,"27,736.32",COLAS LTD.
Neighbourhood Services,Technical Services,Third Party Payments,430100,Rendered by Private Contractors,04-Nov-2013,2662274-SC5050,"14,669.86",HALL CONSTRUCTION SERVICES LTD.
Neighbourhood Services,Technical Services,Third Party Payments,430100,Rendered by Private Contractors,04-Nov-2013,2662390-529,738.00,SCHMUCK WHORLTON LTD.
Neighbourhood Services,Technical Services,Supplies and Services,304357,Equipment and Materials,04-Nov-2013,2662433-36041,570.00,W MARLEY AGRICULTURAL CONTRACTORS LTD.
Neighbourhood Services,Technical Services,Supplies and Services,304357,Equipment and Materials,04-Nov-2013,2662433-36042,608.00,W MARLEY AGRICULTURAL CONTRACTORS LTD.
Neighbourhood Services,Technical Services,Supplies and Services,312009,"Newspapers, Books and Periodicals",04-Nov-2013,2662420-20130905,"4,550.00",TINY GIANTS PRODUCTIONS LTD.
Neighbourhood Services,Technical Services,Construction Work,908105,Construction work,04-Nov-2013,2662205,700.00,REDACTED - PAYMENT TO INDIVIDUAL
RED HRA,Housing Revenue Account,Supplies and Services,344033,Telephones,04-Nov-2013,2662431-12335131,"1,702.56",VODAFONE CORPORATE LTD.
RED HRA,Housing Revenue Account,Employees,040149,"Recruitment, Instruction and Training",04-Nov-2013,2662189-22179,"1,500.00",BISHOP AUCKLAND COLLEGE.
RED HRA,Housing Revenue Account,Supplies and Services,338027,Services,04-Nov-2013,2662372-13127,"15,262.50",PIMSS DATA SYSTEMS LTD.
RED HRA,HRA Capital,Construction Work,908105,Construction work,04-Nov-2013,2662407-LTS/524/021,"2,698.50",SUNTER LTD.
RED HRA,HRA Capital,Construction Work,908105,Construction work,04-Nov-2013,2662251-ED/07/13/73,"2,531.25",ELLIOTT DENT LTD.
Regeneration & Economic Development,Economic Development and Housing,Supplies and Services,340001,Postages,04-Nov-2013,2662347-RED-10-2013-043,800.00,NEOPOST LTD CREDIFON RCB ACCOUNT.
Regeneration & Economic Development,Economic Development and Housing,Premises,120009,Energy Costs,04-Nov-2013,2662361-NNO7HD8T,"1,626.55",NPOWER.
Regeneration & Economic Development,Economic Development and Housing,Premises,120009,Energy Costs,04-Nov-2013,2662362-NNO7HD8V,"1,042.64",NPOWER.
Regeneration & Economic Development,Economic Development and Housing,Premises,120009,Energy Costs,04-Nov-2013,2662361-NNO7HD8P,"1,131.99",NPOWER.
Regeneration & Economic Development,Economic Development and Housing,Premises,120009,Energy Costs,04-Nov-2013,2662361-NNO7HD8H,"3,648.70",NPOWER.
Regeneration & Economic Development,Economic Development and Housing,Supplies and Services,384700,Miscellaneous Expenses,04-Nov-2013,2662280-WS,"1,000.00",HOWLISH HALL NURSING HOME.
Regeneration & Economic Development,Economic Development and Housing,Supplies and Services,372009,Subscriptions,04-Nov-2013,2662281-PSNET04341,"1,000.00",HQN LTD.
Regeneration & Economic Development,Economic Development and Housing,Supplies and Services,384899,Miscellaneous Expenses,04-Nov-2013,2662327-PV/MTPP/14/2013,"4,547.80",MID TEESDALE PROJECT PARTNERSHIP.
Regeneration & Economic Development,Economic Development and Housing,Other Expenses,914006,Tenants Allowances,04-Nov-2013,2662329-RED-10-2013-049,"2,875.95",REDACTED - PAYMENT TO INDIVIDUAL
Regeneration & Economic Development,Economic Development and Housing,Cap Exp on Grants & Other Financial Assistance (REFCUS),918401,Capital grants,04-Nov-2013,2662228-RED-10-2013-054,"1,872.00",CUMMINGS CONTRACTORS.
Regeneration & Economic Development,Economic Development and Housing,Cap Exp on Grants & Other Financial Assistance (REFCUS),918401,Capital grants,04-Nov-2013,2662250-RED-10-2013-051,"2,390.00",ELLIOT HIRD & PARTNERS LTD.
Regeneration & Economic Development,Economic Development and Housing,Cap Exp on Grants & Other Financial Assistance (REFCUS),918401,Capital grants,04-Nov-2013,2662310-RED-10-2013-055,919.10,KASON CONSTRUCTION LTD.
Regeneration & Economic Development,Economic Development and Housing,Cap Exp on Grants & Other Financial Assistance (REFCUS),918401,Capital grants,04-Nov-2013,2662418-RED-10-2013-050,"1,563.00",THYSSENKRUPP ENCASA LTD.
Regeneration & Economic Development,Economic Development and Housing,Cap Exp on Grants & Other Financial Assistance (REFCUS),918401,Capital grants,04-Nov-2013,2662419-RED-10-2013-053,830.00,THYSSENKRUPP ENCASA LTD.
Regeneration & Economic Development,"Spatial Policy, Planning, Assets & Environment",Supplies and Services,384199,Miscellaneous Expenses,04-Nov-2013,2662307-353,"1,020.00",JW BAINBRIDGE CONTRACTORS LTD.
Regeneration & Economic Development,Transport and Contracted Services,Construction Work,908105,Construction work,04-Nov-2013,2662201-NO20214,"2,489.08",BUS SHELTERS LTD.
Assistant Chief Executive,Partnerships & Community Engagement Div.,Supplies and Services,384199,Miscellaneous Expenses,05-Nov-2013,2663580-1742,500.00,VISIT COUNTY DURHAM.
Children and Adult Services,Childrens care,Supplies and Services,338044,Services,05-Nov-2013,2663151-110937,"1,924.00",CARTER BROWN ASSOCIATES.
Children and Adult Services,Childrens care,Transport,230005,Contract Hire,05-Nov-2013,2663496-71236,544.00,SHOTTON PRIVATE HIRE.
Children and Adult Services,Childrens care,Supplies and Services,332001,"Printing, Stationery and Gen Off Exps",05-Nov-2013,2663462-87630408,684.06,RICOH UK LTD.
Children and Adult Services,Childrens care,Third Party Payments,440016,Other Third Party Payments,05-Nov-2013,2662959-910103,"1,056.00",REDACTED - PAYMENT TO INDIVIDUAL
Children and Adult Services,Childrens care,Supplies and Services,364352,Grants to Voluntary Organisations,05-Nov-2013,2663460-02672,700.00,RIAS RI ACCOMMODATION & SUPPORT LTD.
Children and Adult Services,Childrens care,Supplies and Services,364352,Grants to Voluntary Organisations,05-Nov-2013,2663460-02675,700.00,RIAS RI ACCOMMODATION & SUPPORT LTD.
Children and Adult Services,Childrens care,Supplies and Services,364352,Grants to Voluntary Organisations,05-Nov-2013,2663460-02676,700.00,RIAS RI ACCOMMODATION & SUPPORT LTD.
Children and Adult Services,Childrens care,Third Party Payments,440029,Other Third Party Payments,05-Nov-2013,2662707-908746,531.89,REDACTED - PAYMENT TO INDIVIDUAL
Children and Adult Services,Childrens care,Premises,120021,Energy Costs,05-Nov-2013,2663135-131621845,579.24,BRITISH GAS TRADING LTD.
Children and Adult Services,Childrens care,Supplies and Services,338035,Services,05-Nov-2013,2663407-18489,701.00,OCN NORTH EAST REGION.
Children and Adult Services,Childrens care,Supplies and Services,304259,Equipment and Materials,05-Nov-2013,2663246-290839,615.60,GAILARDE LTD.
Children and Adult Services,Childrens care,Supplies and Services,338078,Services,05-Nov-2013,2663449-3645,"14,673.60",QW SECURITY LTD.
Children and Adult Services,Commissioning inc Supporting People,Third Party Payments,479111,Purchase of Care,05-Nov-2013,2663455-LD1112013,"54,087.00",REAL LIVES REAL CHOICES.
Children and Adult Services,Commissioning inc Supporting People,Third Party Payments,479111,Purchase of Care,05-Nov-2013,2663078-OP/I057118,"10,000.00",ACTION FOR BLIND PEOPLE.
Children and Adult Services,Early Intervention and Involvement,Supplies and Services,384199,Miscellaneous Expenses,05-Nov-2013,2663214-20011201,"3,000.00",DURHAM POLICE & CRIME COMMISSIONER.
Children and Adult Services,Early Intervention and Involvement,Third Party Payments,479101,Purchase of Care,05-Nov-2013,2663169-3910001446,"10,118.03",CO DURHAM & DARLINGTON NHS FOUNDATION TRUST.
Children and Adult Services,Early Intervention and Involvement,Supplies and Services,384199,Miscellaneous Expenses,05-Nov-2013,2663401-SL01975008INV,713.00,NORTHGATE VEHICLE HIRE LTD.
Children and Adult Services,Early Intervention and Involvement,Supplies and Services,368046,Incentives to Industrialists,05-Nov-2013,2663420,"1,400.00",PELTON FELL COMMUNITY PARTNERSHIP.
Children and Adult Services,Education,Supplies and Services,312009,"Newspapers, Books and Periodicals",05-Nov-2013,2663426-1492700,941.47,PETERS LTD.
Children and Adult Services,Education,Transport,230007,Contract Hire,05-Nov-2013,2663528-0052/4079,"1,311.00",TA TRAVEL.
Children and Adult Services,Education,Construction Work,908105,Construction work,05-Nov-2013,2663085-145991,"1,254.26",ALBANY OFFICE EQUIPMENT (WHOLESALE) LTD.
Children and Adult Services,Education,Transport,230007,Contract Hire,05-Nov-2013,2663130-0395,641.63,BRIANS MINIBUSES.
Children and Adult Services,Education,Transport,230007,Contract Hire,05-Nov-2013,2663528-0052/3080,"1,691.00",TA TRAVEL.
Children and Adult Services,Education,Transport,230007,Contract Hire,05-Nov-2013,2663528-2110,931.00,TA TRAVEL.
Children and Adult Services,Education,Transport,230008,Contract Hire,05-Nov-2013,2663548-006/13,"1,354.70",TL TAXIS.
Children and Adult Services,Education,Transport,230007,Contract Hire,05-Nov-2013,2663592-CONS/OCT/131,"3,868.60",WEARDALE MOTOR SERVICES LTD.
Children and Adult Services,Education,Transport,230007,Contract Hire,05-Nov-2013,2663592-CONS/OCT/132,"3,887.00",WEARDALE MOTOR SERVICES LTD.
Children and Adult Services,Education,Transport,230007,Contract Hire,05-Nov-2013,2663374-002-24/10/13,648.00,MR THOMAS G GRIFFITHS T/A TNL TAXIS.
Children and Adult Services,Education,Transport,230009,Contract Hire,05-Nov-2013,2663531-10/2013/085,564.00,TARNS TAXIS LTD.
Children and Adult Services,Education,Transport,230007,Contract Hire,05-Nov-2013,2663534-DCC/2013/38,"1,273.00",TAYLOR`S TAXIS.
Children and Adult Services,Education,Transport,230007,Contract Hire,05-Nov-2013,2663070-26,988.00,AALPHA TAXIS.
Children and Adult Services,Education,Transport,230007,Contract Hire,05-Nov-2013,2663534-DCC/2013/39,504.00,TAYLOR`S TAXIS.
Children and Adult Services,Education,Transport,230007,Contract Hire,05-Nov-2013,2663549-2108,"2,242.00",TM TRAVEL.
Children and Adult Services,Education,Transport,230007,Contract Hire,05-Nov-2013,2663549-2111,"7,942.00",TM TRAVEL.
Children and Adult Services,Education,Transport,230008,Contract Hire,05-Nov-2013,2663071-10/2/13,"1,062.00",ABA TAXIS.
Children and Adult Services,Education,Transport,230007,Contract Hire,05-Nov-2013,2663556-2513,606.00,TRANSPORT.ADVENTURE.XI.
Children and Adult Services,Education,Transport,230009,Contract Hire,05-Nov-2013,2663556-2213-25/10/13,722.00,TRANSPORT.ADVENTURE.XI.
Children and Adult Services,Education,Transport,230007,Contract Hire,05-Nov-2013,2663103-521013,570.00,AVALON TAXIS.
Children and Adult Services,Education,Transport,230007,Contract Hire,05-Nov-2013,2663540-5038AT03,"1,995.00",TED WILFORD COACHES.
Children and Adult Services,Education,Transport,230008,Contract Hire,05-Nov-2013,2663069-AA844,"1,425.00",AA MINIBUS HIRE.
Children and Adult Services,Education,Transport,230007,Contract Hire,05-Nov-2013,2663549-2112,"1,121.00",TM TRAVEL.
Children and Adult Services,Education,Transport,230007,Contract Hire,05-Nov-2013,2663366-12,799.00,MR BW YOUNG.
Children and Adult Services,Education,Transport,230007,Contract Hire,05-Nov-2013,2663549-2113,"1,805.00",TM TRAVEL.
Children and Adult Services,Education,Transport,230007,Contract Hire,05-Nov-2013,2663102-03081,676.80,ATLAS TAXIS CONSETT.
Children and Adult Services,Education,Transport,230008,Contract Hire,05-Nov-2013,2663308-11013,"1,072.50",KEVIN EDMUNDSON.
Children and Adult Services,Education,Transport,230008,Contract Hire,05-Nov-2013,2663175-212,"1,724.63",CONNORS MINI BUSES.
Children and Adult Services,Education,Transport,230008,Contract Hire,05-Nov-2013,2663175-213,"1,399.54",CONNORS MINI BUSES.
Children and Adult Services,Education,Transport,230008,Contract Hire,05-Nov-2013,2663112-25,"1,520.00",BEELINE TAXIS.
Children and Adult Services,Education,Transport,230008,Contract Hire,05-Nov-2013,2663534-DCC/2013/36,"1,503.09",TAYLOR`S TAXIS.
Children and Adult Services,Education,Transport,230008,Contract Hire,05-Nov-2013,2663436-920,"1,260.00",PODA LTD.
Children and Adult Services,Education,Transport,230008,Contract Hire,05-Nov-2013,2663069-AA845,"1,198.90",AA MINIBUS HIRE.
Children and Adult Services,Education,Transport,230008,Contract Hire,05-Nov-2013,2663103-251013,760.00,AVALON TAXIS.
Children and Adult Services,Education,Transport,230008,Contract Hire,05-Nov-2013,2663128-BZ00073,"1,045.00",BREZ`S TAXIS.
Children and Adult Services,Education,Transport,230008,Contract Hire,05-Nov-2013,2663367-52-YY-25,"1,206.00",MR GS ANDERSON.
Children and Adult Services,Education,Transport,230008,Contract Hire,05-Nov-2013,2663065-DCC/N077/02,"1,140.00",@CAB TAXIS.
Children and Adult Services,Education,Transport,230008,Contract Hire,05-Nov-2013,2663531-10/2013/082,820.00,TARNS TAXIS LTD.
Children and Adult Services,Education,Transport,230008,Contract Hire,05-Nov-2013,2663066-OCT13,"1,128.00",A & P TAXIS.
Children and Adult Services,Education,Transport,230008,Contract Hire,05-Nov-2013,2663068-A220746,"1,278.40",A MURRAY TRAVEL.
Children and Adult Services,Education,Transport,230008,Contract Hire,05-Nov-2013,2663148-BIL0028,"1,146.80",CA MUSGROVE.
Children and Adult Services,Education,Transport,230008,Contract Hire,05-Nov-2013,2663072-0146,"1,748.00",ABC & OUSTON CABS.
Children and Adult Services,Education,Transport,230008,Contract Hire,05-Nov-2013,2663073-34-25/10/13,"1,070.00",ABLE NOVAK TAXIS.
Children and Adult Services,Education,Transport,230008,Contract Hire,05-Nov-2013,2663079-26/13,977.60,ADVANCE TRAVEL.
Children and Adult Services,Education,Transport,230008,Contract Hire,05-Nov-2013,2663101-DCC5OCT13,"1,598.00",ATLAS TAXIS BISHOP AUCKLAND.
Children and Adult Services,Education,Transport,230008,Contract Hire,05-Nov-2013,2663193-W027A,"1,673.20",DALELINK PRIVATE HIRE.
Children and Adult Services,Education,Transport,230008,Contract Hire,05-Nov-2013,2663530-8,807.50,TALLA`S TAXIS.
Children and Adult Services,Education,Transport,230008,Contract Hire,05-Nov-2013,2663531-10/2013/083,"1,222.00",TARNS TAXIS LTD.
Children and Adult Services,Education,Transport,230008,Contract Hire,05-Nov-2013,2663101-DCC11OCT13,"1,571.00",ATLAS TAXIS BISHOP AUCKLAND.
Children and Adult Services,Education,Transport,230008,Contract Hire,05-Nov-2013,2663117-74,665.00,BL TAXIS.
Children and Adult Services,Education,Transport,230008,Contract Hire,05-Nov-2013,2663560-02,789.60,TRIDENT TAXIS.
Children and Adult Services,Education,Transport,230008,Contract Hire,05-Nov-2013,2663101-DCC4OCT13,"1,805.00",ATLAS TAXIS BISHOP AUCKLAND.
Children and Adult Services,Education,Transport,230008,Contract Hire,05-Nov-2013,2663101-DCC6OCT13,"3,040.00",ATLAS TAXIS BISHOP AUCKLAND.
Children and Adult Services,Education,Transport,230008,Contract Hire,05-Nov-2013,2663274-061OCT13,"1,550.40",I CLYDESDALE T/A BURNOPFIELD TAXIS.
Children and Adult Services,Education,Transport,230008,Contract Hire,05-Nov-2013,2663534-DCC/2013/37,"2,033.00",TAYLOR`S TAXIS.
Children and Adult Services,Education,Transport,230008,Contract Hire,05-Nov-2013,2663562-033,798.00,TRUDY`S.
Children and Adult Services,Education,Transport,230008,Contract Hire,05-Nov-2013,2663592-PH/OCT/13,"4,823.10",WEARDALE MOTOR SERVICES LTD.
Children and Adult Services,Education,Transport,230008,Contract Hire,05-Nov-2013,2663073-35-25/10/13,"1,330.00",ABLE NOVAK TAXIS.
Children and Adult Services,Education,Transport,230008,Contract Hire,05-Nov-2013,2663129-1013,"2,430.48",BRIAN WAKE.
Children and Adult Services,Education,Transport,230006,Contract Hire,05-Nov-2013,2663590-813,"1,168.00",WAYNE`S TAXIS.
Children and Adult Services,Head of Adults,Transport,230005,Contract Hire,05-Nov-2013,2663520,"1,170.96",STEPHEN COXON.
Children and Adult Services,Head of Adults,Transport,230005,Contract Hire,05-Nov-2013,2663590-810,500.00,WAYNE`S TAXIS.
Children and Adult Services,Head of Adults,Transport,230005,Contract Hire,05-Nov-2013,2663101-DCC1OCT13,"1,990.00",ATLAS TAXIS BISHOP AUCKLAND.
Children and Adult Services,Head of Adults,Transport,230005,Contract Hire,05-Nov-2013,2663101-DCC8OCT13,"2,567.00",ATLAS TAXIS BISHOP AUCKLAND.
Children and Adult Services,Head of Adults,Transport,230005,Contract Hire,05-Nov-2013,2663305-WV079002,560.00,KEITH HAMMOND T/A FERRYHILL VILLAGE TRAVEL.
Children and Adult Services,Head of Adults,Transport,230005,Contract Hire,05-Nov-2013,2663339-1013,"1,078.00",MAG`S CARS.
Children and Adult Services,Head of Adults,Transport,230005,Contract Hire,05-Nov-2013,2663346-39-31/10/13,"1,173.00",MAURICE & SONS.
Children and Adult Services,Head of Adults,Transport,230005,Contract Hire,05-Nov-2013,2663414-5358,"2,380.50",OVERLANDER LTD.
Children and Adult Services,Head of Adults,Transport,230005,Contract Hire,05-Nov-2013,2663075-82,528.00,ACE TAXIS..
Children and Adult Services,Head of Adults,Transport,230005,Contract Hire,05-Nov-2013,2663361-358,784.00,MOLLYS TAXIS.
Children and Adult Services,Head of Adults,Transport,230005,Contract Hire,05-Nov-2013,2663305-WV083002,750.00,KEITH HAMMOND T/A FERRYHILL VILLAGE TRAVEL.
Children and Adult Services,Head of Adults,Premises,108099,Service Repairs and Maintenance,05-Nov-2013,2663499-6840,"2,054.00",SIGMA CATERING EQUIPMENT LTD.
Children and Adult Services,Planning & Service Strategy,Supplies and Services,338089,Services,05-Nov-2013,2663273-0850,600.00,HSF TRAINING LTD.
Children and Adult Services,Public Health,Third Party Payments,460802,Contract Payments,05-Nov-2013,2663158,962.66,CHEVERLEY PARK MEDICAL CENTRE.
Children and Adult Services,Public Health,Third Party Payments,460802,Contract Payments,05-Nov-2013,2663162,810.00,CLAYPATH & UNIVERSITY MEDICAL GROUP.
Children and Adult Services,Public Health,Third Party Payments,460802,Contract Payments,05-Nov-2013,2663203-176/14-DDC02,"12,000.00",DISC LTD.
Children and Adult Services,Public Health,Third Party Payments,460803,Contract Payments,05-Nov-2013,2663170-FVF01/SEPT/13,895.78,CO-OPERATIVE PHARMACY.
Children and Adult Services,Public Health,Third Party Payments,460803,Contract Payments,05-Nov-2013,2663336-FF093/AUG/13,"1,124.81",M & M PHARMACIES LTD.
Children and Adult Services,Public Health,Third Party Payments,460803,Contract Payments,05-Nov-2013,2663290-FEM40/SEPT/13,"2,027.68",JF EILBECK CHEMIST LTD.
Children and Adult Services,Public Health,Third Party Payments,460803,Contract Payments,05-Nov-2013,2663335-FMH31/AUG/13,"2,339.34",M & M PHARMACIES LTD.
Children and Adult Services,Public Health,Third Party Payments,460803,Contract Payments,05-Nov-2013,2663543,"1,043.50",THE CARODOC PRACTICE.
Corporate Resources,Financial Services,Supplies and Services,340001,Postages,05-Nov-2013,2663474-9045044223,"13,549.52",ROYAL MAIL GROUP PLC.
Corporate Resources,Financial Services,Supplies and Services,304335,Equipment and Materials,05-Nov-2013,2663525-6162306,873.00,SUPPLIES TEAM LTD.
Corporate Resources,Human Resources,Supplies and Services,338210,Services,05-Nov-2013,2663237-93187624,933.33,FIRSTASSIST SERVICES LTD.
Corporate Resources,I.C.T. Services,"Vehicles, Equipment, Furniture and Fittings",912701,Computer equipment,05-Nov-2013,2663200-7402067026,"1,425.00",DELL COMPUTER CORPORATION LTD.
Corporate Resources,I.C.T. Services,"Vehicles, Equipment, Furniture and Fittings",912701,Computer equipment,05-Nov-2013,2663200-7402064030,"24,451.26",DELL COMPUTER CORPORATION LTD.
Corporate Resources,I.C.T. Services,"Vehicles, Equipment, Furniture and Fittings",912701,Computer equipment,05-Nov-2013,2663200-7402065991,"1,931.04",DELL COMPUTER CORPORATION LTD.
Corporate Resources,I.C.T. Services,Debtors,930168,Debtor - Mobile Telephone Holding Account,05-Nov-2013,2663584-69496791,905.89,VODAFONE LTD.
Corporate Resources,I.C.T. Services,Stock,926900,Stock in hand-Inventory system,05-Nov-2013,2663525-6188772,980.49,SUPPLIES TEAM LTD.
Corporate Resources,Legal & Democratic Services,Creditors,952027,Creditor-lab grp-deds frm memb all,05-Nov-2013,2663211,"1,173.15",DURHAM COUNTY COUNCIL LABOUR GROUP.
Dedicated Schools Grant,Dedicated Schools Grant,Transport,230010,Contract Hire,05-Nov-2013,2663084-615516,918.00,ALANS CABS.
Dedicated Schools Grant,Dedicated Schools Grant,Transport,230010,Contract Hire,05-Nov-2013,2663186,"1,143.00",CRAIG`S CABS.
Dedicated Schools Grant,Dedicated Schools Grant,Transport,230010,Contract Hire,05-Nov-2013,2663557-13002,730.00,TRAVEL 6.
Dedicated Schools Grant,Dedicated Schools Grant,Supplies and Services,338035,Services,05-Nov-2013,2663091-10259313,686.55,AQA EDUCATION.
Dedicated Schools Grant,Dedicated Schools Grant,Premises,145023,Cleaning and Domestic Supplies,05-Nov-2013,2663589-WS/13/09/092,627.00,WATER SOLUTIONS (EUROPE) LTD.
Neighbourhood Services,Culture & Sport,Supplies and Services,304259,Equipment and Materials,05-Nov-2013,2663541-9779,533.00,TEESDALE EVENT & SITE SERVICES LTD.
Neighbourhood Services,Culture & Sport,Supplies and Services,324117,Provisions,05-Nov-2013,2663150-EW54579371,940.87,CARLSBERG UK LTD.
Neighbourhood Services,Culture & Sport,Supplies and Services,312013,"Newspapers, Books and Periodicals",05-Nov-2013,2663099-4073466,530.81,ASKEWS & HOLTS LIBRARY SERVICES LTD.
Neighbourhood Services,Culture & Sport,Supplies and Services,312013,"Newspapers, Books and Periodicals",05-Nov-2013,2663099-4080371,644.16,ASKEWS & HOLTS LIBRARY SERVICES LTD.
Neighbourhood Services,Culture & Sport,Supplies and Services,312013,"Newspapers, Books and Periodicals",05-Nov-2013,2663099-4080510,684.88,ASKEWS & HOLTS LIBRARY SERVICES LTD.
Neighbourhood Services,Culture & Sport,Supplies and Services,338047,Services,05-Nov-2013,2663083-9712,639.14,ALAN BRODIE REPRESENTATION LTD.
Neighbourhood Services,Culture & Sport,Supplies and Services,338047,Services,05-Nov-2013,2663259-FBC667,600.00,GROWLING CLOWN.
Neighbourhood Services,Culture & Sport,Supplies and Services,338047,Services,05-Nov-2013,2663300,"9,957.69",JONATHAN WALKER-KANE.
Neighbourhood Services,Culture & Sport,Supplies and Services,338047,Services,05-Nov-2013,2663409-42096,"3,780.74",OFF THE KERB PRODUCTIONS.
Neighbourhood Services,Culture & Sport,Supplies and Services,338047,Services,05-Nov-2013,2663570-123112/2,"2,000.00",UNITED AGENTS.
Neighbourhood Services,Direct Services,Supplies and Services,304259,Equipment and Materials,05-Nov-2013,2663431-60367127,517.11,PHS GROUP PLC.
Neighbourhood Services,Direct Services,Supplies and Services,338066,Services,05-Nov-2013,2663110-1209694,"1,300.00",BDO LLP.
Neighbourhood Services,Direct Services,Supplies and Services,304221,Equipment and Materials,05-Nov-2013,2663600-84810159,"1,704.48",WOLSELEY UK LTD.
Neighbourhood Services,Direct Services,Supplies and Services,304221,Equipment and Materials,05-Nov-2013,2663600-84971171,"1,132.53",WOLSELEY UK LTD.
Neighbourhood Services,Direct Services,Supplies and Services,304221,Equipment and Materials,05-Nov-2013,2663600-84971304,633.53,WOLSELEY UK LTD.
Neighbourhood Services,Direct Services,Supplies and Services,338078,Services,05-Nov-2013,2663449-3570,740.00,QW SECURITY LTD.
Neighbourhood Services,Direct Services,Third Party Payments,430100,Rendered by Private Contractors,05-Nov-2013,2663281-342/1,"3,770.00",ISOLER LTD.
Neighbourhood Services,Direct Services,Supplies and Services,304221,Equipment and Materials,05-Nov-2013,2663351-0000049235,"1,118.14",MIKROFILL SYSTEMS LTD.
Neighbourhood Services,Direct Services,Supplies and Services,304221,Equipment and Materials,05-Nov-2013,2663228-INV-0165707,"1,368.50",EOGB ENERGY PRODUCTS LTD.
Neighbourhood Services,Direct Services,Supplies and Services,304221,Equipment and Materials,05-Nov-2013,2663332-3202255,"2,151.16",LONDON GENERAL SALES LTD.
Neighbourhood Services,Direct Services,Supplies and Services,304221,Equipment and Materials,05-Nov-2013,2663288-4511/0109878,766.26,JEWSON LTD.
Neighbourhood Services,Direct Services,Supplies and Services,324117,Provisions,05-Nov-2013,2663126-6363405,808.40,BRAMBLES FOODS LTD.
Neighbourhood Services,Direct Services,Supplies and Services,324117,Provisions,05-Nov-2013,2663301-N99015,"2,142.62",JR HOLLAND FOOD SERVICES LTD.
Neighbourhood Services,Direct Services,Supplies and Services,324117,Provisions,05-Nov-2013,2663301-N99014,"1,390.36",JR HOLLAND FOOD SERVICES LTD.
Neighbourhood Services,"Environment,Health & Consumer Protection",Employees,040149,"Recruitment, Instruction and Training",05-Nov-2013,2663277-IOSINV3633,"3,950.00",INSTITUTE OF SWIMMING.
Neighbourhood Services,"Environment,Health & Consumer Protection",Third Party Payments,430100,Rendered by Private Contractors,05-Nov-2013,2663429-006664,502.24,PHOENIX SECURITY UK LTD.
Neighbourhood Services,Projects and Business services,Third Party Payments,430119,Rendered by Private Contractors,05-Nov-2013,2663262-84268,"1,856.09",HARPERS ENVIRONMENTAL LTD.
Neighbourhood Services,Technical Services,Supplies and Services,338027,Services,05-Nov-2013,2663100-13026633,865.50,ATKINS GLOBAL.
Neighbourhood Services,Technical Services,Supplies and Services,338027,Services,05-Nov-2013,2663100-13030883,"1,634.00",ATKINS GLOBAL.
Neighbourhood Services,Technical Services,Supplies and Services,338027,Services,05-Nov-2013,2663100-13030901,997.75,ATKINS GLOBAL.
Neighbourhood Services,Technical Services,Supplies and Services,338027,Services,05-Nov-2013,2663100-13030906,"5,900.00",ATKINS GLOBAL.
Neighbourhood Services,Technical Services,Stock,926900,Stock in hand-Inventory system,05-Nov-2013,2663302-STI386527,"1,131.10",JT DOVE LTD.
Neighbourhood Services,Technical Services,Stock,926900,Stock in hand-Inventory system,05-Nov-2013,2663302-STI391362,"1,485.20",JT DOVE LTD.
Neighbourhood Services,Technical Services,Stock,926900,Stock in hand-Inventory system,05-Nov-2013,2663416-XL100355,936.00,PARK ELECTRICAL DISTRIBUTORS LTD.
Neighbourhood Services,Technical Services,Stock,926900,Stock in hand-Inventory system,05-Nov-2013,2663502-284829,"2,240.00",SMITH BROS (CAER CONAN) WHOLESALE LTD.
Neighbourhood Services,Technical Services,Stock,926900,Stock in hand-Inventory system,05-Nov-2013,2663508-7008993119,934.30,SPEEDY ASSET SERVICES LTD.
Neighbourhood Services,Technical Services,Stock,926900,Stock in hand-Inventory system,05-Nov-2013,2663600-84971193,"1,165.44",WOLSELEY UK LTD.
Neighbourhood Services,Technical Services,Supplies and Services,304221,Equipment and Materials,05-Nov-2013,2663465-22111,"6,324.00",RJ UTILITY SERVICES LTD.
Neighbourhood Services,Technical Services,Supplies and Services,304221,Equipment and Materials,05-Nov-2013,2663495-578839,699.49,SHERBURN STONE CO LTD.
Neighbourhood Services,Technical Services,Supplies and Services,304221,Equipment and Materials,05-Nov-2013,2663495-578840,"4,942.08",SHERBURN STONE CO LTD.
Neighbourhood Services,Technical Services,Supplies and Services,304221,Equipment and Materials,05-Nov-2013,2663587-16068,726.80,WARD TIMBER LTD.
Neighbourhood Services,Technical Services,Supplies and Services,304221,Equipment and Materials,05-Nov-2013,2663596-628,700.00,WILF HUSBAND PLANT HIRE.
Neighbourhood Services,Technical Services,Supplies and Services,304357,Equipment and Materials,05-Nov-2013,2663247,"9,926.53",GAP GROUP LTD.
Neighbourhood Services,Technical Services,Supplies and Services,304357,Equipment and Materials,05-Nov-2013,2663401-SL01974992INV,675.80,NORTHGATE VEHICLE HIRE LTD.
Neighbourhood Services,Technical Services,Third Party Payments,430100,Rendered by Private Contractors,05-Nov-2013,2663381-NC11/C235/BW,"6,214.79",NEDCO CONTRACTS (NE) LTD.
Neighbourhood Services,Technical Services,Third Party Payments,430100,Rendered by Private Contractors,05-Nov-2013,2663447-60212,"1,078.65",PROTECTOR SECURITY GROUP LTD.
Neighbourhood Services,Technical Services,Third Party Payments,430100,Rendered by Private Contractors,05-Nov-2013,2663447-60414,"1,028.16",PROTECTOR SECURITY GROUP LTD.
Neighbourhood Services,Technical Services,Supplies and Services,304357,Equipment and Materials,05-Nov-2013,2663585-34860A,600.00,W MARLEY AGRICULTURAL CONTRACTORS LTD.
Neighbourhood Services,Technical Services,Construction Work,908105,Construction work,05-Nov-2013,2663299,700.00,REDACTED - PAYMENT TO INDIVIDUAL
RED HRA,Housing Revenue Account,Supplies and Services,344033,Telephones,05-Nov-2013,2663584-12319423,"4,057.14",VODAFONE LTD.
RED HRA,HRA Capital,Construction Work,908105,Construction work,05-Nov-2013,2663137-957322,"2,530.00",BRITISH TELECOMMUNICATIONS PLC.
RED HRA,HRA Capital,Construction Work,908105,Construction work,05-Nov-2013,2663328-RV9994,"3,798.00",LIDDLE DOORS LTD.
RED HRA,HRA Capital,Construction Work,908105,Construction work,05-Nov-2013,2663328-RV9996,"1,729.00",LIDDLE DOORS LTD.
RED HRA,HRA Capital,Construction Work,908105,Construction work,05-Nov-2013,2663608-28930,"1,236.54",YWC GROUP LTD.
RED HRA,HRA Capital,Construction Work,908105,Construction work,05-Nov-2013,2663608-29479,"1,513.60",YWC GROUP LTD.
RED HRA,HRA Capital,Construction Work,908105,Construction work,05-Nov-2013,2663216-3177,"4,070.62",EAST DURHAM HOMES.
Regeneration & Economic Development,Economic Development and Housing,Supplies and Services,384437,Miscellaneous Expenses,05-Nov-2013,2663558-OrderNo1315618,"3,435.23",TRAVELEX GLOBAL BUSINESS PAYMENTS LTD.
Regeneration & Economic Development,Economic Development and Housing,Premises,120021,Energy Costs,05-Nov-2013,2663133-161407757,"2,549.87",BRITISH GAS BUSINESS.
Regeneration & Economic Development,Economic Development and Housing,Premises,120021,Energy Costs,05-Nov-2013,2663133-250423695,"2,808.34",BRITISH GAS BUSINESS.
Regeneration & Economic Development,Economic Development and Housing,Supplies and Services,384071,Miscellaneous Expenses,05-Nov-2013,2663558-OrderNo1315620,979.40,TRAVELEX GLOBAL BUSINESS PAYMENTS LTD.
Regeneration & Economic Development,Economic Development and Housing,Employees,040001,"Recruitment, Instruction and Training",05-Nov-2013,2663561-1077520,648.00,TRINITY MIRROR PUBLISHING LTD.
Regeneration & Economic Development,Economic Development and Housing,Supplies and Services,384700,Miscellaneous Expenses,05-Nov-2013,2663147,"1,000.00",C & D METALWORKERS LTD.
Regeneration & Economic Development,Economic Development and Housing,Supplies and Services,384700,Miscellaneous Expenses,05-Nov-2013,2663312,"1,250.60",KUTZ CLS LTD.
Regeneration & Economic Development,Economic Development and Housing,Third Party Payments,440999,Other Third Party Payments,05-Nov-2013,2663297-999406,"1,586.00",JOHNSTON PUBLISHING LTD.
Regeneration & Economic Development,Economic Development and Housing,Premises,125009,Rents,05-Nov-2013,2663115-3893,"3,794.25",BISHOP AUCKLAND COMMUNITY PARTNERSHIP.
Regeneration & Economic Development,Economic Development and Housing,Construction Work,908105,Construction work,05-Nov-2013,2663399,693.00,NORTHERN POWERGRID (NORTHEAST) LTD.
Regeneration & Economic Development,Economic Development and Housing,Other Expenses,914006,Tenants Allowances,05-Nov-2013,2663373-RED-10-2013-085,"4,381.41",REDACTED - PAYMENT TO INDIVIDUAL
Regeneration & Economic Development,Economic Development and Housing,Fees,901001,Internal fees,05-Nov-2013,2663546-SITRH/0005759,675.00,THREE RIVERS HOUSING ASSOCIATION LTD.
Regeneration & Economic Development,Economic Development and Housing,Cap Exp on Grants & Other Financial Assistance (REFCUS),918401,Capital grants,05-Nov-2013,2663546-SITRH/0005758,711.54,THREE RIVERS HOUSING ASSOCIATION LTD.
Regeneration & Economic Development,"Spatial Policy, Planning, Assets & Environment",Supplies and Services,384199,Miscellaneous Expenses,05-Nov-2013,2663573-91248490,600.00,UNIVERSITY OF NORTHUMBRIA.
Regeneration & Economic Development,"Spatial Policy, Planning, Assets & Environment",Supplies and Services,384700,Miscellaneous Expenses,05-Nov-2013,2663394-RED-10-2013-068,"4,396.52",NORTH OF ENGLAND CIVIC TRUST.
Regeneration & Economic Development,"Spatial Policy, Planning, Assets & Environment",Supplies and Services,384199,Miscellaneous Expenses,05-Nov-2013,2663340-4100393746,"2,691.00",MAKING TRAX.
Regeneration & Economic Development,Transport and Contracted Services,Supplies and Services,338027,Services,05-Nov-2013,2663303-COM4741,600.00,JW WOOD.
Regeneration & Economic Development,Transport and Contracted Services,Employees,040149,"Recruitment, Instruction and Training",05-Nov-2013,2663386-50056459,"1,000.00",NEW COLLEGE DURHAM.
Assistant Chief Executive,Partnerships & Community Engagement Div.,Transfer Payments,525030,Other,06-Nov-2013,225294-ACE,"1,843.72",MIDDLESTONE MOOR COMMUNITY CENTRE.
Assistant Chief Executive,Partnerships & Community Engagement Div.,Supplies and Services,338029,Services,06-Nov-2013,2663637,"1,300.00",BEAMISH MUSEUM LTD.
Assistant Chief Executive,Partnerships & Community Engagement Div.,Supplies and Services,384086,Miscellaneous Expenses,06-Nov-2013,225208,"1,685.35",CATCHGATE RAOB CLUB.
Children and Adult Services,Childrens care,Third Party Payments,425020,Rendered by Voluntary Organisations,06-Nov-2013,2663905-1140726,"2,817.50",ST CUTHBERTS CARE.
Children and Adult Services,Childrens care,Third Party Payments,425040,Rendered by Voluntary Organisations,06-Nov-2013,2663689-630093925,"4,079.43",CORE ASSETS FOSTERING LTD.
Children and Adult Services,Childrens care,Third Party Payments,425040,Rendered by Voluntary Organisations,06-Nov-2013,2663689-630093941,"4,079.43",CORE ASSETS FOSTERING LTD.
Children and Adult Services,Childrens care,Third Party Payments,425040,Rendered by Voluntary Organisations,06-Nov-2013,2663689-630093969,"4,079.43",CORE ASSETS FOSTERING LTD.
Children and Adult Services,Childrens care,Third Party Payments,425040,Rendered by Voluntary Organisations,06-Nov-2013,2663689-630096682,"3,947.83",CORE ASSETS FOSTERING LTD.
Children and Adult Services,Childrens care,Third Party Payments,425040,Rendered by Voluntary Organisations,06-Nov-2013,2663689-630097158,"3,947.83",CORE ASSETS FOSTERING LTD.
Children and Adult Services,Childrens care,Third Party Payments,425040,Rendered by Voluntary Organisations,06-Nov-2013,2663689-630097167,"3,947.83",CORE ASSETS FOSTERING LTD.
Children and Adult Services,Childrens care,Third Party Payments,425040,Rendered by Voluntary Organisations,06-Nov-2013,2663727-0000048625,"3,128.70",FIVE RIVERS CHILD CARE LTD.
Children and Adult Services,Childrens care,Supplies and Services,338040,Services,06-Nov-2013,225263-RES-10-2013-043,"3,320.00",HMCTS.
Children and Adult Services,Childrens care,Supplies and Services,338040,Services,06-Nov-2013,225263-RES-11-2013-009,"3,320.00",HMCTS.
Children and Adult Services,Childrens care,Third Party Payments,486032,Service Level Agreements,06-Nov-2013,2663615-R81IN2/00003149,"1,416.53",ACTION FOR CHILDREN.
Children and Adult Services,Childrens care,Third Party Payments,486044,Service Level Agreements,06-Nov-2013,2663682-3910001739,"3,187.13",CO DURHAM & DARLINGTON NHS FOUNDATION TRUST.
Children and Adult Services,Childrens care,Supplies and Services,364352,Grants to Voluntary Organisations,06-Nov-2013,2663880-1069,"2,325.15",ROCSOLID.
Children and Adult Services,Childrens care,Supplies and Services,364353,Grants to Voluntary Organisations,06-Nov-2013,2663794,962.73,REDACTED - PAYMENT TO INDIVIDUAL
Children and Adult Services,Childrens care,Employees,080025,Agency Staff,06-Nov-2013,2663687-532421,"143,380.97",COMENSURA LTD.
Children and Adult Services,Childrens care,Supplies and Services,336005,Advertising,06-Nov-2013,2663875-SNE007007,"3,500.00",REAL RADIO (NORTH EAST) LTD.
Children and Adult Services,Childrens care,Supplies and Services,384302,Miscellaneous Expenses,06-Nov-2013,2663707-3338,"1,445.00",DIGGERLAND.
Children and Adult Services,Commissioning inc Supporting People,Third Party Payments,479111,Purchase of Care,06-Nov-2013,225226,"3,244.95",DERWENTSIDE MIND.
Children and Adult Services,Early Intervention and Involvement,Supplies and Services,384199,Miscellaneous Expenses,06-Nov-2013,2663832-SINV0008697,968.38,NORTH MUSIC TRUST.
Children and Adult Services,Early Intervention and Involvement,Supplies and Services,304221,Equipment and Materials,06-Nov-2013,225288-SSTL001MB,"1,020.00",MASON & BONE PAINTING CONTRACTORS LTD.
Children and Adult Services,Early Intervention and Involvement,Supplies and Services,308011,Furniture,06-Nov-2013,2663738-051294,977.50,GODFREY SYRETT LTD.
Children and Adult Services,Early Intervention and Involvement,Supplies and Services,384302,Miscellaneous Expenses,06-Nov-2013,225260-12,"1,000.00",HAZELWELL COMMUNITY CENTRE.
Children and Adult Services,Early Intervention and Involvement,Supplies and Services,384302,Miscellaneous Expenses,06-Nov-2013,225326,500.00,REDACTED - PAYMENT TO INDIVIDUAL
Children and Adult Services,Early Intervention and Involvement,Supplies and Services,364999,Grants to Voluntary Organisations,06-Nov-2013,2663910-GRANTOCT13,"5,870.00",STANLEY YOUTH CENTRE.
Children and Adult Services,Education,Transport,230007,Contract Hire,06-Nov-2013,2663610-101314,741.00,24/7 TAXI SERVICES LTD.
Children and Adult Services,Education,Transport,230007,Contract Hire,06-Nov-2013,2663630-03079,504.00,ATLAS TAXIS CONSETT.
Children and Adult Services,Education,Transport,230007,Contract Hire,06-Nov-2013,2663612-M7/SBB,601.60,AABAT TAXIS.
Children and Adult Services,Education,Transport,230007,Contract Hire,06-Nov-2013,2663941-4380,608.00,WEARDALE PRIVATE HIRE.
Children and Adult Services,Education,Transport,230007,Contract Hire,06-Nov-2013,2663846-5355,"1,377.50",OVERLANDER LTD.
Children and Adult Services,Education,Transport,230007,Contract Hire,06-Nov-2013,2663611-A1DCC/504,840.69,A1 TAXIS.
Children and Adult Services,Education,Transport,230007,Contract Hire,06-Nov-2013,2663671-73,"1,425.00",CASTLE CARS.
Children and Adult Services,Education,Transport,230008,Contract Hire,06-Nov-2013,2663610-101303,"1,235.00",24/7 TAXI SERVICES LTD.
Children and Adult Services,Education,Transport,230008,Contract Hire,06-Nov-2013,2663610-101315,798.00,24/7 TAXI SERVICES LTD.
Children and Adult Services,Education,Transport,230008,Contract Hire,06-Nov-2013,2663610-101305,543.00,24/7 TAXI SERVICES LTD.
Children and Adult Services,Education,Transport,230008,Contract Hire,06-Nov-2013,2663805-101306,893.00,MARK & JOHN CHISHOLM T/A (CHEVRON).
Children and Adult Services,Education,Transport,230007,Contract Hire,06-Nov-2013,2663768-610,787.50,J YOUNG T/A VIP TAXIS.
Children and Adult Services,Education,Transport,230007,Contract Hire,06-Nov-2013,2663768-625,712.50,J YOUNG T/A VIP TAXIS.
Children and Adult Services,Education,Transport,230008,Contract Hire,06-Nov-2013,2663867-35,828.00,PRESTYS HACKNEY & PRIVATE HIRE TAXIS.
Children and Adult Services,Education,Transport,230007,Contract Hire,06-Nov-2013,2663850-1253,"2,280.00",PAUL WATSON TRAVEL.
Children and Adult Services,Education,Transport,230008,Contract Hire,06-Nov-2013,2663681-OCT102,"1,045.00",CM TAXIS.
Children and Adult Services,Education,Transport,230007,Contract Hire,06-Nov-2013,2663630-03077,707.94,ATLAS TAXIS CONSETT.
Children and Adult Services,Education,Transport,230007,Contract Hire,06-Nov-2013,2663941-4381,"3,667.00",WEARDALE PRIVATE HIRE.
Children and Adult Services,Education,Transport,230007,Contract Hire,06-Nov-2013,2663850-1252,"2,470.00",PAUL WATSON TRAVEL.
Children and Adult Services,Education,Transport,230007,Contract Hire,06-Nov-2013,2663865-259,"1,216.00",PREMIER PRIVATE HIRE.
Children and Adult Services,Education,Transport,230007,Contract Hire,06-Nov-2013,2663937-94,884.00,WALTONS TAXIS.
Children and Adult Services,Education,Transport,230006,Contract Hire,06-Nov-2013,2663612-L41/SG,"1,469.27",AABAT TAXIS.
Children and Adult Services,Education,Transport,230007,Contract Hire,06-Nov-2013,2663700-1288,"1,045.00",DA TAXIS.
Children and Adult Services,Education,Transport,230007,Contract Hire,06-Nov-2013,2663770-25/10/2013C,"1,140.00",JL EBDON.
Children and Adult Services,Education,Transport,230008,Contract Hire,06-Nov-2013,2663638-10,"1,504.00",BEELINE PRIVATE HIRE.
Children and Adult Services,Education,Transport,230007,Contract Hire,06-Nov-2013,2663695-4029/10/13,"1,881.00",COUNTY COACHES.
Children and Adult Services,Education,Transport,230007,Contract Hire,06-Nov-2013,2663684-C/7901,"4,464.00",COCHRANES T/A KELVIN TRAVEL.
Children and Adult Services,Education,Transport,230007,Contract Hire,06-Nov-2013,2663869-946,"1,862.00",PYGALL COACH HIRE.
Children and Adult Services,Education,Transport,230013,Contract Hire,06-Nov-2013,2663681-OCT101-25/10/13,988.00,CM TAXIS.
Children and Adult Services,Education,Transport,230007,Contract Hire,06-Nov-2013,2663768-617,760.00,J YOUNG T/A VIP TAXIS.
Children and Adult Services,Education,Transport,230007,Contract Hire,06-Nov-2013,2663869-944,"8,740.00",PYGALL COACH HIRE.
Children and Adult Services,Education,Transport,230007,Contract Hire,06-Nov-2013,2663684-C/7898,"5,166.00",COCHRANES T/A KELVIN TRAVEL.
Children and Adult Services,Education,Transport,230007,Contract Hire,06-Nov-2013,2663684-C/7899,"2,223.00",COCHRANES T/A KELVIN TRAVEL.
Children and Adult Services,Education,Transport,230007,Contract Hire,06-Nov-2013,2663684-C/7900,"2,493.00",COCHRANES T/A KELVIN TRAVEL.
Children and Adult Services,Education,Transport,230007,Contract Hire,06-Nov-2013,2663869-945,"2,700.00",PYGALL COACH HIRE.
Children and Adult Services,Education,Transport,230007,Contract Hire,06-Nov-2013,2663768-618,"1,254.00",J YOUNG T/A VIP TAXIS.
Children and Adult Services,Education,Transport,230007,Contract Hire,06-Nov-2013,2663897-4266-10-13,"1,044.00",SIMON ELLIFF.
Children and Adult Services,Education,Transport,230007,Contract Hire,06-Nov-2013,2663941-4382,"3,491.81",WEARDALE PRIVATE HIRE.
Children and Adult Services,Education,Transport,230008,Contract Hire,06-Nov-2013,2663701-036,"1,176.50",DA TRAVEL.
Children and Adult Services,Education,Transport,230008,Contract Hire,06-Nov-2013,2663768-622,"1,900.00",J YOUNG T/A VIP TAXIS.
Children and Adult Services,Education,Transport,230007,Contract Hire,06-Nov-2013,2663630-03080,752.00,ATLAS TAXIS CONSETT.
Children and Adult Services,Education,Supplies and Services,384199,Miscellaneous Expenses,06-Nov-2013,2663885-4583,"21,562.50",S & D TRAINING.
Children and Adult Services,Education,Transport,230008,Contract Hire,06-Nov-2013,2663616-1-25/10/13,540.00,ADAM BARNES T/A PAUL`S TAXIS.
Children and Adult Services,Education,Transport,230008,Contract Hire,06-Nov-2013,2663814-MEAD10-13,"2,320.50",MR CT WALKER T/A COLIN`S TAXIS.
Children and Adult Services,Education,Transport,230008,Contract Hire,06-Nov-2013,2663610-101302,"1,155.00",24/7 TAXI SERVICES LTD.
Children and Adult Services,Education,Transport,230008,Contract Hire,06-Nov-2013,2663610-101310,"1,656.00",24/7 TAXI SERVICES LTD.
Children and Adult Services,Education,Transport,230008,Contract Hire,06-Nov-2013,2663768-623,"1,075.00",J YOUNG T/A VIP TAXIS.
Children and Adult Services,Education,Transport,230008,Contract Hire,06-Nov-2013,2663688-214,"1,842.43",CONNORS MINI BUSES.
Children and Adult Services,Education,Transport,230008,Contract Hire,06-Nov-2013,2663688-215,"1,427.85",CONNORS MINI BUSES.
Children and Adult Services,Education,Transport,230008,Contract Hire,06-Nov-2013,2663610-101307,"1,776.00",24/7 TAXI SERVICES LTD.
Children and Adult Services,Education,Transport,230008,Contract Hire,06-Nov-2013,2663612-L43/SJ,"1,068.20",AABAT TAXIS.
Children and Adult Services,Education,Transport,230008,Contract Hire,06-Nov-2013,2663701-035,"1,532.00",DA TRAVEL.
Children and Adult Services,Education,Transport,230008,Contract Hire,06-Nov-2013,2663770-25/10/2013D,"1,780.00",JL EBDON.
Children and Adult Services,Education,Transport,230008,Contract Hire,06-Nov-2013,2663814-WAL110-13,"2,190.42",MR CT WALKER T/A COLIN`S TAXIS.
Children and Adult Services,Education,Transport,230008,Contract Hire,06-Nov-2013,2663814-WAL210-13,"2,280.00",MR CT WALKER T/A COLIN`S TAXIS.
Children and Adult Services,Education,Transport,230008,Contract Hire,06-Nov-2013,2663864-131050,"1,054.70",PRATTS TAXIS.
Children and Adult Services,Education,Transport,230008,Contract Hire,06-Nov-2013,2663638-1,"1,892.97",BEELINE PRIVATE HIRE.
Children and Adult Services,Education,Transport,230008,Contract Hire,06-Nov-2013,2663688-211,"1,770.80",CONNORS MINI BUSES.
Children and Adult Services,Education,Transport,230008,Contract Hire,06-Nov-2013,2663817-W076OCT13,"1,330.00",MR PHILIP YOUNG.
Children and Adult Services,Education,Transport,230008,Contract Hire,06-Nov-2013,2663610-101304,855.00,24/7 TAXI SERVICES LTD.
Children and Adult Services,Education,Transport,230008,Contract Hire,06-Nov-2013,2663643-1082,"1,311.00",BOBBY DOVE.
Children and Adult Services,Education,Transport,230008,Contract Hire,06-Nov-2013,2663854-363,900.00,PETERLEE EXECUTIVE CARS.
Children and Adult Services,Education,Transport,230008,Contract Hire,06-Nov-2013,2663854-370,576.00,PETERLEE EXECUTIVE CARS.
Children and Adult Services,Education,Transport,230008,Contract Hire,06-Nov-2013,2663856-0266,"1,190.00",PETER`S PRIVATE HIRE/PETER BEST.
Children and Adult Services,Education,Transport,230008,Contract Hire,06-Nov-2013,2663610-101306,"1,235.00",24/7 TAXI SERVICES LTD.
Children and Adult Services,Education,Transport,230008,Contract Hire,06-Nov-2013,2663610-101316,"2,167.50",24/7 TAXI SERVICES LTD.
Children and Adult Services,Education,Transport,230008,Contract Hire,06-Nov-2013,2663675-KJ012-25/10/13,"1,352.00",CHIPPERS TAXIS.
Children and Adult Services,Education,Transport,230008,Contract Hire,06-Nov-2013,2663805-101305,988.00,MARK & JOHN CHISHOLM T/A (CHEVRON).
Children and Adult Services,Education,Transport,230008,Contract Hire,06-Nov-2013,2663814-WINDS10-13,"2,647.35",MR CT WALKER T/A COLIN`S TAXIS.
Children and Adult Services,Education,Transport,230008,Contract Hire,06-Nov-2013,2663816-NU/10/13,950.00,MR J AGAR T/A PARK TAXIS.
Children and Adult Services,Education,Transport,230008,Contract Hire,06-Nov-2013,2663638-9,"1,034.00",BEELINE PRIVATE HIRE.
Children and Adult Services,Education,Transport,230008,Contract Hire,06-Nov-2013,2663852-DCC03,"1,504.00",PAUL`S TAXIS..
Children and Adult Services,Education,Transport,230008,Contract Hire,06-Nov-2013,2663854-369,"1,064.00",PETERLEE EXECUTIVE CARS.
Children and Adult Services,Education,Transport,230008,Contract Hire,06-Nov-2013,2663864-131049,"1,271.25",PRATTS TAXIS.
Children and Adult Services,Education,Transport,230008,Contract Hire,06-Nov-2013,2663621-36,"1,292.00",ANDY CABS.
Children and Adult Services,Education,Transport,230008,Contract Hire,06-Nov-2013,2663697-37,"1,165.50",D CROOK.
Children and Adult Services,Education,Transport,230008,Contract Hire,06-Nov-2013,2663699-DI201310,630.00,D&I TAXIS.
Children and Adult Services,Education,Transport,230008,Contract Hire,06-Nov-2013,2663700-1285,"1,316.00",DA TAXIS.
Children and Adult Services,Education,Transport,230008,Contract Hire,06-Nov-2013,2663700-1287,"1,316.00",DA TAXIS.
Children and Adult Services,Education,Transport,230008,Contract Hire,06-Nov-2013,2663768-624,"1,596.00",J YOUNG T/A VIP TAXIS.
Children and Adult Services,Education,Transport,230008,Contract Hire,06-Nov-2013,2663770-25/10/2013B,"1,198.00",JL EBDON.
Children and Adult Services,Education,Transport,230008,Contract Hire,06-Nov-2013,2663846-5356,"1,494.60",OVERLANDER LTD.
Children and Adult Services,Education,Transport,230008,Contract Hire,06-Nov-2013,2663897-W132-10-13,864.00,SIMON ELLIFF.
Children and Adult Services,Education,Transport,230008,Contract Hire,06-Nov-2013,2663938-000628,"1,494.00",WATSON OF SPENNYMOOR.
Children and Adult Services,Education,Transport,230008,Contract Hire,06-Nov-2013,2663939-805,"1,692.00",WAYNE`S TAXIS.
Children and Adult Services,Education,Transport,230008,Contract Hire,06-Nov-2013,2663612-L40/SF,"1,109.20",AABAT TAXIS.
Children and Adult Services,Education,Transport,230008,Contract Hire,06-Nov-2013,2663612-L42/SH,979.00,AABAT TAXIS.
Children and Adult Services,Education,Transport,230008,Contract Hire,06-Nov-2013,2663612-M2/SV,"1,297.20",AABAT TAXIS.
Children and Adult Services,Education,Transport,230008,Contract Hire,06-Nov-2013,2663700-1284,"1,309.00",DA TAXIS.
Children and Adult Services,Education,Transport,230008,Contract Hire,06-Nov-2013,2663700-1289,"1,560.40",DA TAXIS.
Children and Adult Services,Education,Transport,230008,Contract Hire,06-Nov-2013,2663770-25/10/2013A,"1,260.00",JL EBDON.
Children and Adult Services,Education,Transport,230008,Contract Hire,06-Nov-2013,2663939-804,"1,800.00",WAYNE`S TAXIS.
Children and Adult Services,Education,Transport,230008,Contract Hire,06-Nov-2013,2663939-806,"1,584.00",WAYNE`S TAXIS.
Children and Adult Services,Education,Transport,230008,Contract Hire,06-Nov-2013,2663700-1286,"1,744.20",DA TAXIS.
Children and Adult Services,Education,Transport,230008,Contract Hire,06-Nov-2013,2663768-619,988.00,J YOUNG T/A VIP TAXIS.
Children and Adult Services,Education,Transport,230008,Contract Hire,06-Nov-2013,2663864-131051,"2,915.74",PRATTS TAXIS.
Children and Adult Services,Education,Transport,230008,Contract Hire,06-Nov-2013,2663768-621,"2,014.00",J YOUNG T/A VIP TAXIS.
Children and Adult Services,Education,Supplies and Services,338089,Services,06-Nov-2013,2663719,702.25,ELLY BARNES.
Children and Adult Services,Education,Transport,230006,Contract Hire,06-Nov-2013,2663610-101311,539.00,24/7 TAXI SERVICES LTD.
Children and Adult Services,Education,Transport,230006,Contract Hire,06-Nov-2013,2663610-101312,"1,065.00",24/7 TAXI SERVICES LTD.
Children and Adult Services,Education,Transport,230006,Contract Hire,06-Nov-2013,2663612-L44/SR,717.40,AABAT TAXIS.
Children and Adult Services,Education,Transport,230006,Contract Hire,06-Nov-2013,2663630-03082,858.84,ATLAS TAXIS CONSETT.
Children and Adult Services,Education,Transport,230006,Contract Hire,06-Nov-2013,2663667-F56802,525.00,C & R TAXIS.
Children and Adult Services,Education,Transport,230006,Contract Hire,06-Nov-2013,2663701-037,"1,300.00",DA TRAVEL.
Children and Adult Services,Education,Transport,230006,Contract Hire,06-Nov-2013,2663854-371,"1,406.00",PETERLEE EXECUTIVE CARS.
Children and Adult Services,Education,Transport,230006,Contract Hire,06-Nov-2013,2663897-F536-10-13,"2,508.00",SIMON ELLIFF.
Children and Adult Services,Education,Transport,230006,Contract Hire,06-Nov-2013,2663941-4384,"1,374.08",WEARDALE PRIVATE HIRE.
Children and Adult Services,Education,Transport,230006,Contract Hire,06-Nov-2013,2663944-429916,585.00,WENDYS` TAXIS.
Children and Adult Services,Education,Third Party Payments,440999,Other Third Party Payments,06-Nov-2013,2663926-2290,"3,900.00",TINARTS.
Children and Adult Services,Head of Adults,Transport,230005,Contract Hire,06-Nov-2013,2663838-0047,"1,260.00",NORTHVIEW PRIVATE HIRE.
Children and Adult Services,Head of Adults,Transport,230005,Contract Hire,06-Nov-2013,2663838-0048,840.00,NORTHVIEW PRIVATE HIRE.
Children and Adult Services,Head of Adults,Supplies and Services,384616,Miscellaneous Expenses,06-Nov-2013,2663874,"12,498.56",REAL LIFE OPTIONS.
Children and Adult Services,Head of Adults,Third Party Payments,478101,Purchase of Care,06-Nov-2013,225290-3738,"1,238.04",MEDI QUIPMENT SERVICES LTD.
Children and Adult Services,Head of Adults,Supplies and Services,384999,Miscellaneous Expenses,06-Nov-2013,2663623,730.00,ANNFIELD PLAIN COMMUNITY CENTRE.
Children and Adult Services,Planning & Service Strategy,Supplies and Services,332047,"Printing, Stationery and Gen Off Exps",06-Nov-2013,2663919-6260660,"4,360.00",SUPPLIES TEAM LTD.
Children and Adult Services,Public Health,Third Party Payments,460802,Contract Payments,06-Nov-2013,225328,"6,056.38",PEASEWAY PARTNERSHIP.
Children and Adult Services,Public Health,Third Party Payments,460802,Contract Payments,06-Nov-2013,2663648-8866,"2,163.07",BOOTS THE CHEMISTS LTD.
Children and Adult Services,Public Health,Third Party Payments,460802,Contract Payments,06-Nov-2013,225234-A83020/Q1/2013,"1,825.00",DR GD HOLBROOK.
Children and Adult Services,Public Health,Third Party Payments,460802,Contract Payments,06-Nov-2013,225329,"1,780.00",PELTON & FELLROSE MEDICAL GROUP.
Children and Adult Services,Public Health,Supplies and Services,342051,Computers and Communications,06-Nov-2013,225200-18213,"31,000.00",BLITHE COMPUTER SYSTEMS.
Children and Adult Services,Public Health,Third Party Payments,460803,Contract Payments,06-Nov-2013,225278-FET02/SEPT/13,"1,070.34",LLOYDS PHARMACY.
Children and Adult Services,Public Health,Third Party Payments,460803,Contract Payments,06-Nov-2013,225279-FHM85/SEPT/13,"1,719.00",LLOYDS PHARMACY.
Children and Adult Services,Public Health,Third Party Payments,460803,Contract Payments,06-Nov-2013,225280-FD810/SEPT/13,819.82,LLOYDS PHARMACY.
Children and Adult Services,Public Health,Third Party Payments,460803,Contract Payments,06-Nov-2013,225280-FXL31/SEPT/13,"1,287.67",LLOYDS PHARMACY.
Children and Adult Services,Public Health,Third Party Payments,460803,Contract Payments,06-Nov-2013,225281-FRR32/SEPT/13,"1,240.80",LLOYDS PHARMACY.
Children and Adult Services,Public Health,Third Party Payments,460803,Contract Payments,06-Nov-2013,225281,"1,293.53",LLOYDS PHARMACY.
Children and Adult Services,Public Health,Third Party Payments,460803,Contract Payments,06-Nov-2013,225291-FVH83/SEPT/13,602.18,MEIKLES CHEMISTS.
Children and Adult Services,Public Health,Premises,145009,Cleaning and Domestic Supplies,06-Nov-2013,225331-13282,540.00,QUALITY CLEANING SERVICES (NORTHERN) LTD.
Children and Adult Services,Public Health,Third Party Payments,460803,Contract Payments,06-Nov-2013,225269,"1,770.34",JF EILBECK CHEMIST LTD.
Children and Adult Services,Public Health,Third Party Payments,460803,Contract Payments,06-Nov-2013,225277-FFC99/SEPT/13,686.77,LLOYDS PHARMACY.
Children and Adult Services,Public Health,Third Party Payments,460803,Contract Payments,06-Nov-2013,225278-FET02/AUG/13,"1,467.88",LLOYDS PHARMACY.
Children and Adult Services,Public Health,Third Party Payments,460803,Contract Payments,06-Nov-2013,225328,"1,431.00",PEASEWAY PARTNERSHIP.
Children and Adult Services,Public Health,Third Party Payments,460803,Contract Payments,06-Nov-2013,225329,"1,107.50",PELTON & FELLROSE MEDICAL GROUP.
Children and Adult Services,Public Health,Third Party Payments,460803,Contract Payments,06-Nov-2013,2663645-FH756/SEPT/13,741.90,BOOTS THE CHEMISTS LTD.
Children and Adult Services,Public Health,Third Party Payments,460803,Contract Payments,06-Nov-2013,2663772-FJL38/AUG/13,"1,670.03",JOHN LOW LTD.
Children and Adult Services,Public Health,Third Party Payments,460803,Contract Payments,06-Nov-2013,2663803-FH490/SEPT/13,622.22,M & M PHARMACIES LTD.
Children and Adult Services,Public Health,Third Party Payments,460803,Contract Payments,06-Nov-2013,2663857-FYV47/SEPT/13,567.10,PHILLIPS CHEMISTS LTD.
Children and Adult Services,Public Health,Third Party Payments,460803,Contract Payments,06-Nov-2013,2663894-FJW29/SEPT/13,"1,444.81",SHOTTON PHARMACY.
Corporate Resources,Corporate Finance,Supplies and Services,372009,Subscriptions,06-Nov-2013,2663636-9000163640,"3,000.00",BARNSLEY METROPOLITAN BOROUGH COUNCIL.
Corporate Resources,Corporate Finance,Supplies and Services,342051,Computers and Communications,06-Nov-2013,225360-11860,"3,157.32",WEALDEN COMPUTING SERVICES LTD.
Corporate Resources,Financial Services,Supplies and Services,364993,Grants to Voluntary Organisations,06-Nov-2013,225199,500.00,BISHOP AUCKLAND SCHOOLS FOOTBALL ASSOCIATION.
Corporate Resources,Financial Services,Supplies and Services,364993,Grants to Voluntary Organisations,06-Nov-2013,225336,"2,000.00",RUTH FIRST EDUCATIONAL TRUST.
Corporate Resources,I.C.T. Services,Stock,926900,Stock in hand-Inventory system,06-Nov-2013,2663901-OP/L743435,"1,280.00",SPECIALIST COMPUTER CENTRES PLC.
Corporate Resources,I.C.T. Services,Stock,926900,Stock in hand-Inventory system,06-Nov-2013,2663934-2332449,"15,625.00",VIGLEN LTD.
Corporate Resources,I.C.T. Services,Supplies and Services,342051,Computers and Communications,06-Nov-2013,2663706-3772,"8,500.00",DIAL SOLUTIONS LTD.
Corporate Resources,I.C.T. Services,Supplies and Services,342051,Computers and Communications,06-Nov-2013,2663666-357080,"3,840.00",BYTES SOFTWARE SERVICES.
Corporate Resources,I.C.T. Services,Supplies and Services,344014,Telephones,06-Nov-2013,2663936-69483479,700.00,VODAFONE CORPORATE LTD.
Corporate Resources,I.C.T. Services,Debtors,930168,Debtor - Mobile Telephone Holding Account,06-Nov-2013,2663936-69485572,"8,323.68",VODAFONE CORPORATE LTD.
Corporate Resources,I.C.T. Services,Supplies and Services,304303,Equipment and Materials,06-Nov-2013,2663743-INV0150242,"2,082.00",GV MULTI MEDIA LTD.
Corporate Resources,I.C.T. Services,Supplies and Services,304303,Equipment and Materials,06-Nov-2013,2663780-36253,"3,395.00",KBR IT & NETWORKING SOLUTIONS.
Corporate Resources,I.C.T. Services,Supplies and Services,304303,Equipment and Materials,06-Nov-2013,2663780-36254,"3,953.00",KBR IT & NETWORKING SOLUTIONS.
Corporate Resources,I.C.T. Services,Supplies and Services,304639,Equipment and Materials,06-Nov-2013,2663743-INV0151336,"3,620.26",GV MULTI MEDIA LTD.
Corporate Resources,I.C.T. Services,Stock,926900,Stock in hand-Inventory system,06-Nov-2013,2663704-7402068071,"1,695.00",DELL COMPUTER CORPORATION LTD.
Corporate Resources,I.C.T. Services,Stock,926900,Stock in hand-Inventory system,06-Nov-2013,2663743-INV0151319,"3,060.00",GV MULTI MEDIA LTD.
Corporate Resources,I.C.T. Services,Supplies and Services,304639,Equipment and Materials,06-Nov-2013,2663708-146861107,538.10,DIVERSEY LTD.
Corporate Resources,Legal & Democratic Services,Premises,125009,Rents,06-Nov-2013,2663652-D12934,914.29,BRADLEY HALL CHARTERED SURVEYORS CLIENT ACCOUNT.
Corporate Resources,Legal & Democratic Services,Supplies and Services,332029,"Printing, Stationery and Gen Off Exps",06-Nov-2013,2663617-IS1226529,"5,299.82",ADARE INSPIRED COMMUNICATIONS.
Corporate Resources,Legal & Democratic Services,Supplies and Services,332029,"Printing, Stationery and Gen Off Exps",06-Nov-2013,2663617-IS1226530,"1,665.30",ADARE INSPIRED COMMUNICATIONS.
Corporate Resources,Legal & Democratic Services,Supplies and Services,340001,Postages,06-Nov-2013,2663718-ERS1301107,"4,851.99",ELECTORAL REFORM SERVICES LTD.
Corporate Resources,Legal & Democratic Services,Supplies and Services,340001,Postages,06-Nov-2013,2663882-9045348013,"11,315.36",ROYAL MAIL GROUP PLC.
Dedicated Schools Grant,Dedicated Schools Grant,Transport,230010,Contract Hire,06-Nov-2013,2663675-SN002,"1,075.00",CHIPPERS TAXIS.
Dedicated Schools Grant,Dedicated Schools Grant,Transport,230010,Contract Hire,06-Nov-2013,2663805-101302,"1,578.00",MARK & JOHN CHISHOLM T/A (CHEVRON).
Dedicated Schools Grant,Dedicated Schools Grant,Transport,230010,Contract Hire,06-Nov-2013,2663805-101310,"1,195.00",MARK & JOHN CHISHOLM T/A (CHEVRON).
Dedicated Schools Grant,Dedicated Schools Grant,Employees,080025,Agency Staff,06-Nov-2013,2663725-105400,923.00,FIRST CLASS SUPPLY & TRAINING LTD.
Dedicated Schools Grant,Dedicated Schools Grant,Employees,080025,Agency Staff,06-Nov-2013,2663725-105564,"1,118.00",FIRST CLASS SUPPLY & TRAINING LTD.
Dedicated Schools Grant,Dedicated Schools Grant,Employees,080025,Agency Staff,06-Nov-2013,2663860-11943,"1,915.00",PK EDUCATION.
Dedicated Schools Grant,Dedicated Schools Grant,Employees,080025,Agency Staff,06-Nov-2013,2663860-12087,"1,915.00",PK EDUCATION.
Dedicated Schools Grant,Dedicated Schools Grant,Transport,230008,Contract Hire,06-Nov-2013,2663805-101309,928.00,MARK & JOHN CHISHOLM T/A (CHEVRON).
Dedicated Schools Grant,Dedicated Schools Grant,Transport,230010,Contract Hire,06-Nov-2013,2663770-25/10/2013F,540.00,JL EBDON.
Dedicated Schools Grant,Dedicated Schools Grant,Transport,230010,Contract Hire,06-Nov-2013,2663805-101303,"1,600.00",MARK & JOHN CHISHOLM T/A (CHEVRON).
Dedicated Schools Grant,Dedicated Schools Grant,Transport,230010,Contract Hire,06-Nov-2013,2663805-101304,"1,440.00",MARK & JOHN CHISHOLM T/A (CHEVRON).
Dedicated Schools Grant,Dedicated Schools Grant,Supplies and Services,324001,Provisions,06-Nov-2013,2663715-0000031281,"1,080.00",EAST DURHAM COLLEGE.
Dedicated Schools Grant,Dedicated Schools Grant,Supplies and Services,384199,Miscellaneous Expenses,06-Nov-2013,2663885-4594,960.00,S & D TRAINING.
Dedicated Schools Grant,Dedicated Schools Grant,Transport,230011,Contract Hire,06-Nov-2013,2663612-M4/SQ,744.00,AABAT TAXIS.
Dedicated Schools Grant,Dedicated Schools Grant,Transport,230011,Contract Hire,06-Nov-2013,2663698-76,645.60,D MCDONNELL.
Neighbourhood Services,Culture & Sport,Supplies and Services,304221,Equipment and Materials,06-Nov-2013,2663618-9785,849.15,ALISON BLACK LTD T/A SPORTMAX.
Neighbourhood Services,Culture & Sport,Supplies and Services,304259,Equipment and Materials,06-Nov-2013,2663932-2157893,"1,058.50",VEOLIA ES (UK) LTD.
Neighbourhood Services,Culture & Sport,Supplies and Services,338099,Services,06-Nov-2013,2663914-DS1,800.00,STEVE BLACK ENTERPRISES LTD.
Neighbourhood Services,Culture & Sport,Supplies and Services,384199,Miscellaneous Expenses,06-Nov-2013,2663640-00025R,899.02,BISHOP CATERING LTD.
Neighbourhood Services,Culture & Sport,Supplies and Services,324001,Provisions,06-Nov-2013,2663849-22/2957309,682.78,PALMER & HARVEY MCLEAN LTD.
Neighbourhood Services,Culture & Sport,Supplies and Services,338099,Services,06-Nov-2013,225215-000805,"1,949.99",CLEARVIEW TECHNICAL LTD.
Neighbourhood Services,Culture & Sport,Supplies and Services,338099,Services,06-Nov-2013,225215-000806,"1,585.00",CLEARVIEW TECHNICAL LTD.
Neighbourhood Services,Culture & Sport,Supplies and Services,336005,Advertising,06-Nov-2013,2663613-SH010,725.00,ACCESS POINT LTD.
Neighbourhood Services,Direct Services,Supplies and Services,384199,Miscellaneous Expenses,06-Nov-2013,2663866-125978,"2,350.00",PREMIER TRAFFIC MANAGEMENT LTD.
Neighbourhood Services,Direct Services,Supplies and Services,338066,Services,06-Nov-2013,225318,515.00,REDACTED - PAYMENT TO INDIVIDUAL
Neighbourhood Services,Direct Services,Supplies and Services,338066,Services,06-Nov-2013,2663709,"1,402.50","DR BRIAN LAMBERT, DR IAN BRUNT, & DR RACHEL NG."
Neighbourhood Services,Direct Services,Supplies and Services,304221,Equipment and Materials,06-Nov-2013,2663759-B33/0059575,655.77,HOWDENS JOINERY LTD.
Neighbourhood Services,Direct Services,Supplies and Services,304221,Equipment and Materials,06-Nov-2013,2663759-B33/0059691,"1,106.05",HOWDENS JOINERY LTD.
Neighbourhood Services,Direct Services,Supplies and Services,304221,Equipment and Materials,06-Nov-2013,2663759-B33/0059738,832.07,HOWDENS JOINERY LTD.
Neighbourhood Services,Direct Services,Supplies and Services,304221,Equipment and Materials,06-Nov-2013,2663759-B33/0059941,610.97,HOWDENS JOINERY LTD.
Neighbourhood Services,Direct Services,Supplies and Services,304221,Equipment and Materials,06-Nov-2013,2663759-B33/0059942,815.28,HOWDENS JOINERY LTD.
Neighbourhood Services,Direct Services,Supplies and Services,304221,Equipment and Materials,06-Nov-2013,2663759-B33/0060122,803.36,HOWDENS JOINERY LTD.
Neighbourhood Services,Direct Services,Third Party Payments,430100,Rendered by Private Contractors,06-Nov-2013,2663884-OCT02713,650.00,RW CHICKEN (SCAFFOLDING) LTD.
Neighbourhood Services,Direct Services,Third Party Payments,430100,Rendered by Private Contractors,06-Nov-2013,2663884-OCT02813,"1,260.00",RW CHICKEN (SCAFFOLDING) LTD.
Neighbourhood Services,Direct Services,Third Party Payments,430100,Rendered by Private Contractors,06-Nov-2013,2663884-OCT02913,"3,989.50",RW CHICKEN (SCAFFOLDING) LTD.
Neighbourhood Services,Direct Services,Third Party Payments,430100,Rendered by Private Contractors,06-Nov-2013,2663739-17074,"3,365.00",GRC (LEGAL SERVICES) LTD T/A GRC BAILIFFS.
Neighbourhood Services,Direct Services,Premises,125009,Rents,06-Nov-2013,225364-254886,"3,750.00",WHITTLE JONES (GROUP) LTD.
Neighbourhood Services,Direct Services,Supplies and Services,384956,Miscellaneous Expenses,06-Nov-2013,2663721-YO1141863,"9,510.15",ENVIRONMENT AGENCY.
Neighbourhood Services,Direct Services,Supplies and Services,304221,Equipment and Materials,06-Nov-2013,2663742-J3912,"1,002.00",GROVE REED.
Neighbourhood Services,Direct Services,Supplies and Services,304221,Equipment and Materials,06-Nov-2013,2663778-NBI104925,571.01,JT DOVE LTD.
Neighbourhood Services,Direct Services,Third Party Payments,430100,Rendered by Private Contractors,06-Nov-2013,2663633-28165,"1,451.00",AYCLIFFE FABRICATIONS LTD.
Neighbourhood Services,Direct Services,Supplies and Services,304221,Equipment and Materials,06-Nov-2013,2663801-3207677,"2,965.29",LONDON GENERAL SALES LTD.
Neighbourhood Services,"Environment,Health & Consumer Protection",Employees,040149,"Recruitment, Instruction and Training",06-Nov-2013,2663676-42875,598.00,CIMSPA.
Neighbourhood Services,"Environment,Health & Consumer Protection",Supplies and Services,338099,Services,06-Nov-2013,225362-114SEP162013,"2,500.00",WEIGHBRIDGE TESTING SERVICES.
Neighbourhood Services,Projects and Business services,Supplies and Services,340001,Postages,06-Nov-2013,2663882-9045323191,"2,306.72",ROYAL MAIL GROUP PLC.
Neighbourhood Services,Projects and Business services,Supplies and Services,384956,Miscellaneous Expenses,06-Nov-2013,2663721-Y01141861,"4,493.11",ENVIRONMENT AGENCY.
Neighbourhood Services,Projects and Business services,Supplies and Services,384956,Miscellaneous Expenses,06-Nov-2013,2663721-Y01141885,"2,564.09",ENVIRONMENT AGENCY.
Neighbourhood Services,Projects and Business services,Supplies and Services,384956,Miscellaneous Expenses,06-Nov-2013,2663721-Y01142327,"3,191.22",ENVIRONMENT AGENCY.
Neighbourhood Services,Technical Services,Third Party Payments,460502,Contract Payments,06-Nov-2013,225357-20100872,"4,235.00",VAISALA LTD.
Neighbourhood Services,Technical Services,Construction Work,908202,Capital - Public Utilities - Telephones Services,06-Nov-2013,2663844-A122812,"7,920.72",OPENREACH LLU.
Neighbourhood Services,Technical Services,Stock,926900,Stock in hand-Inventory system,06-Nov-2013,225190-INV082928,"1,400.00",AZTEC CHEMICALS LTD.
Neighbourhood Services,Technical Services,Stock,926900,Stock in hand-Inventory system,06-Nov-2013,225206-9209,710.00,CAEDMON NETS.
Neighbourhood Services,Technical Services,Stock,926900,Stock in hand-Inventory system,06-Nov-2013,225285-0000100243,"10,040.00",MALLATITE LTD.
Neighbourhood Services,Technical Services,Stock,926900,Stock in hand-Inventory system,06-Nov-2013,2663773-NI022818,"11,385.00",JOHN MACLEAN & SONS ELECTRICAL (DINGWALL) LTD.
Neighbourhood Services,Technical Services,Stock,926900,Stock in hand-Inventory system,06-Nov-2013,2663778-STI390875,"1,727.80",JT DOVE LTD.
Neighbourhood Services,Technical Services,Stock,926900,Stock in hand-Inventory system,06-Nov-2013,2663778-STI390971,684.00,JT DOVE LTD.
Neighbourhood Services,Technical Services,Stock,926900,Stock in hand-Inventory system,06-Nov-2013,2663778-STI391023,581.40,JT DOVE LTD.
Neighbourhood Services,Technical Services,Stock,926900,Stock in hand-Inventory system,06-Nov-2013,2663778-STI391077,716.06,JT DOVE LTD.
Neighbourhood Services,Technical Services,Stock,926900,Stock in hand-Inventory system,06-Nov-2013,2663778-STI391090,625.50,JT DOVE LTD.
Neighbourhood Services,Technical Services,Stock,926900,Stock in hand-Inventory system,06-Nov-2013,2663877-42574,602.00,RIGHT OFFICE INTERIORS LTD.
Neighbourhood Services,Technical Services,Stock,926900,Stock in hand-Inventory system,06-Nov-2013,2663899-182537,"1,243.80",SNAPFAST.
Neighbourhood Services,Technical Services,Stock,926900,Stock in hand-Inventory system,06-Nov-2013,2663921-0943848,"1,810.80",T CROSSLING & CO LTD.
Neighbourhood Services,Technical Services,Supplies and Services,304221,Equipment and Materials,06-Nov-2013,225184-3172,"2,017.50",ALTHON LTD.
Neighbourhood Services,Technical Services,Supplies and Services,304221,Equipment and Materials,06-Nov-2013,2663634-0381,"14,271.00",B FITZGIBBON & SON LTD.
Neighbourhood Services,Technical Services,Supplies and Services,304221,Equipment and Materials,06-Nov-2013,2663811-718090145,"2,098.50",MOBILE MINI UK LTD.
Neighbourhood Services,Technical Services,Supplies and Services,304221,Equipment and Materials,06-Nov-2013,2663811-718090524,"3,559.50",MOBILE MINI UK LTD.
Neighbourhood Services,Technical Services,Supplies and Services,304357,Equipment and Materials,06-Nov-2013,2663954-3560,802.00,YOULL CONSTRUCTION LTD.
Neighbourhood Services,Technical Services,Third Party Payments,430100,Rendered by Private Contractors,06-Nov-2013,2663685-I13D0239,"10,903.80",COLAS LTD.
Neighbourhood Services,Technical Services,Third Party Payments,430100,Rendered by Private Contractors,06-Nov-2013,2663686-2727,"43,724.12",COLORADO CONSTRUCTION & ENGINEERING LTD
Neighbourhood Services,Technical Services,Third Party Payments,430100,Rendered by Private Contractors,06-Nov-2013,2663744-SC5030,"16,177.36",HALL CONSTRUCTION SERVICES LTD.
Neighbourhood Services,Technical Services,Creditors,952029,Creditor-returnable bonds,06-Nov-2013,225369,"1,000.00",CECIL M YUILL LTD.
Neighbourhood Services,Technical Services,Supplies and Services,338027,Services,06-Nov-2013,225247-40444,"1,319.80",EXP CONSULTING.
RED HRA,Housing Revenue Account,Construction Work,908105,Construction work,06-Nov-2013,2663863-181206,591.91,PLUMBING TRADE SUPPLIES LTD.
RED HRA,Housing Revenue Account,Supplies and Services,384999,Miscellaneous Expenses,06-Nov-2013,2663717-3176,"10,292.84",EAST DURHAM HOMES.
RED HRA,Housing Revenue Account,Supplies and Services,338027,Services,06-Nov-2013,2663733-GDC/13/140,"5,845.64",GERALD DAVIES CONSULTING LTD.
RED HRA,Housing Revenue Account,Supplies and Services,338027,Services,06-Nov-2013,2663764-10933,945.00,IPB COMMUNICATIONS LTD.
RED HRA,HRA Capital,Construction Work,908105,Construction work,06-Nov-2013,2663717-3172,"8,539.65",EAST DURHAM HOMES.
RED HRA,HRA Capital,Construction Work,908105,Construction work,06-Nov-2013,2663807-CON67688,650.00,MIS ENVIRONMENTAL LTD.
RED HRA,HRA Capital,Construction Work,908105,Construction work,06-Nov-2013,2663717-3173,"20,021.58",EAST DURHAM HOMES.
RED HRA,HRA Capital,Construction Work,908105,Construction work,06-Nov-2013,2663717-3171,"6,191.75",EAST DURHAM HOMES.
RED HRA,HRA Capital,Construction Work,908105,Construction work,06-Nov-2013,2663717-3168,"7,344.17",EAST DURHAM HOMES.
RED HRA,HRA Centrally Managed,Supplies and Services,384999,Miscellaneous Expenses,06-Nov-2013,225268,843.61,REDACTED - PAYMENT TO INDIVIDUAL
RED HRA,HRA Centrally Managed,Supplies and Services,384999,Miscellaneous Expenses,06-Nov-2013,225297,955.99,REDACTED - PAYMENT TO INDIVIDUAL
RED HRA,HRA Centrally Managed,Supplies and Services,384999,Miscellaneous Expenses,06-Nov-2013,225298,"1,046.31",REDACTED - PAYMENT TO INDIVIDUAL
RED HRA,HRA Centrally Managed,Supplies and Services,384999,Miscellaneous Expenses,06-Nov-2013,225309,859.09,REDACTED - PAYMENT TO INDIVIDUAL
RED HRA,HRA Centrally Managed,Supplies and Services,384999,Miscellaneous Expenses,06-Nov-2013,225311,"1,304.13",REDACTED - PAYMENT TO INDIVIDUAL
RED HRA,HRA Centrally Managed,Supplies and Services,384999,Miscellaneous Expenses,06-Nov-2013,225312,667.17,REDACTED - PAYMENT TO INDIVIDUAL
RED HRA,HRA Centrally Managed,Supplies and Services,384999,Miscellaneous Expenses,06-Nov-2013,225324,700.00,REDACTED - PAYMENT TO INDIVIDUAL
Regeneration & Economic Development,District Capital Schemes,Other Expenses,914006,Tenants Allowances,06-Nov-2013,2663793-RED-11-2013-030,"4,795.94",REDACTED - PAYMENT TO INDIVIDUAL
Regeneration & Economic Development,Economic Development and Housing,Supplies and Services,384437,Miscellaneous Expenses,06-Nov-2013,2663753-010131,"2,795.00",HODGSONS COACH OPERATORS LTD.
Regeneration & Economic Development,Economic Development and Housing,Supplies and Services,344033,Telephones,06-Nov-2013,2663858-002810724,"1,309.53",PHONE CO-OP.
Regeneration & Economic Development,Economic Development and Housing,Supplies and Services,340001,Postages,06-Nov-2013,2663728-IN0817048,"1,907.20",FP TELESET.
Regeneration & Economic Development,Economic Development and Housing,Supplies and Services,308011,Furniture,06-Nov-2013,2663826-7838,"1,192.50",NELSONS OF DURHAM.
Regeneration & Economic Development,Economic Development and Housing,Employees,040149,"Recruitment, Instruction and Training",06-Nov-2013,2663931-119092743-004,"1,800.00",UNIVERSITY OF SUNDERLAND.
Regeneration & Economic Development,Economic Development and Housing,Other Expenses,914006,Tenants Allowances,06-Nov-2013,225303-096,"4,700.00",REDACTED - PAYMENT TO INDIVIDUAL
Regeneration & Economic Development,Economic Development and Housing,Other Expenses,914006,Tenants Allowances,06-Nov-2013,225314-097,"4,700.00",REDACTED - PAYMENT TO INDIVIDUAL
Regeneration & Economic Development,Economic Development and Housing,Other Expenses,914006,Tenants Allowances,06-Nov-2013,2663810-RED-11-2013-029,"4,656.09",REDACTED - PAYMENT TO INDIVIDUAL
Regeneration & Economic Development,Economic Development and Housing,Cap Exp on Grants & Other Financial Assistance (REFCUS),918401,Capital grants,06-Nov-2013,225266-6431,"10,000.00",HPS MAINTENANCE & RESTORATION.
Regeneration & Economic Development,Economic Development and Housing,Cap Exp on Grants & Other Financial Assistance (REFCUS),918401,Capital grants,06-Nov-2013,225282-797,"4,377.12",LORMOR & HALL CONSTRUCTION.
Regeneration & Economic Development,"Spatial Policy, Planning, Assets & Environment",Supplies and Services,336005,Advertising,06-Nov-2013,2663828-4174531,"1,042.03",NEWSQUEST (YORKSHIRE & NORTH EAST) LTD.
Regeneration & Economic Development,"Spatial Policy, Planning, Assets & Environment",Supplies and Services,336005,Advertising,06-Nov-2013,2663828-4200993,"1,107.16",NEWSQUEST (YORKSHIRE & NORTH EAST) LTD.
Regeneration & Economic Development,"Spatial Policy, Planning, Assets & Environment",Supplies and Services,336005,Advertising,06-Nov-2013,2663828-4227741,"1,215.70",NEWSQUEST (YORKSHIRE & NORTH EAST) LTD.
Regeneration & Economic Development,"Spatial Policy, Planning, Assets & Environment",Supplies and Services,338091,Services,06-Nov-2013,225223-438893,"2,992.50",DE MONTFORT UNIVERSITY.
Regeneration & Economic Development,"Spatial Policy, Planning, Assets & Environment",Supplies and Services,384199,Miscellaneous Expenses,06-Nov-2013,225335-118-13/14,"5,280.00",RS CONTRACTING LTD.
Regeneration & Economic Development,"Spatial Policy, Planning, Assets & Environment","Vehicles, Equipment, Furniture and Fittings",912701,Computer equipment,06-Nov-2013,2663704-7402052442,"23,449.77",DELL COMPUTER CORPORATION LTD.
Regeneration & Economic Development,Transport and Contracted Services,Employees,040149,"Recruitment, Instruction and Training",06-Nov-2013,2663915-9811,520.00,SUNDERLAND NORTH COMMUNITY BUSINESS CENTRE.
Regeneration & Economic Development,Transport and Contracted Services,Supplies and Services,336005,Advertising,06-Nov-2013,2663951-INV130561,"1,430.21",WORKWEAR EXPRESS LTD.
Regeneration & Economic Development,Transport and Contracted Services,Supplies and Services,384899,Miscellaneous Expenses,06-Nov-2013,2663859-11624/14,"20,600.00",PIONEERING CARE PARTNERSHIP.
Regeneration & Economic Development,Transport and Contracted Services,Third Party Payments,430106,Rendered by Private Contractors,06-Nov-2013,2663712-0510,"6,958.10",DUNN MOTOR TRACTION LTD T/A YOUR BUS.
Regeneration & Economic Development,Transport and Contracted Services,Third Party Payments,430106,Rendered by Private Contractors,06-Nov-2013,2663712-0511,"3,800.80",DUNN MOTOR TRACTION LTD T/A YOUR BUS.
Regeneration & Economic Development,Transport and Contracted Services,Third Party Payments,430106,Rendered by Private Contractors,06-Nov-2013,2663712-0512,"20,400.00",DUNN MOTOR TRACTION LTD T/A YOUR BUS.
Children and Adult Services,Childrens care,Supplies and Services,338040,Services,07-Nov-2013,2664890,"13,280.00",HMCTS.
Children and Adult Services,Childrens care,Supplies and Services,338040,Services,07-Nov-2013,2664891,"3,320.00",HMCTS.
Children and Adult Services,Childrens care,Supplies and Services,384540,Miscellaneous Expenses,07-Nov-2013,2664829-03315,"1,063.96",GAUDIO LTD.
Children and Adult Services,Childrens care,Third Party Payments,440062,Other Third Party Payments,07-Nov-2013,2664551-1378970H,"2,001.20",CASTLE CARE TEESDALE LTD.
Children and Adult Services,Childrens care,Third Party Payments,440062,Other Third Party Payments,07-Nov-2013,2664602-1375367H,659.87,COMFORT CALL LTD.
Children and Adult Services,Childrens care,Third Party Payments,440062,Other Third Party Payments,07-Nov-2013,2664602-1375745H,831.75,COMFORT CALL LTD.
Children and Adult Services,Childrens care,Third Party Payments,440062,Other Third Party Payments,07-Nov-2013,2664602-1375881H,"1,907.48",COMFORT CALL LTD.
Children and Adult Services,Childrens care,Third Party Payments,440062,Other Third Party Payments,07-Nov-2013,2664625-1377305H,"1,242.08",DALE CARE LTD.
Children and Adult Services,Childrens care,Third Party Payments,440062,Other Third Party Payments,07-Nov-2013,2664625-1378608H,"1,863.12",DALE CARE LTD.
Children and Adult Services,Childrens care,Third Party Payments,440062,Other Third Party Payments,07-Nov-2013,2664625-1379158H,820.66,DALE CARE LTD.
Children and Adult Services,Childrens care,Third Party Payments,440062,Other Third Party Payments,07-Nov-2013,2664807-1378687H,"1,140.00",REDACTED - PAYMENT TO INDIVIDUAL
Children and Adult Services,Childrens care,Third Party Payments,440062,Other Third Party Payments,07-Nov-2013,2664807-1378688H,"1,140.00",REDACTED - PAYMENT TO INDIVIDUAL
Children and Adult Services,Childrens care,Third Party Payments,472101,Purchase of Care,07-Nov-2013,2664537-1375242H,903.85,CAREWATCH (DURHAM & EASINGTON) FASTFLOW ACC.
Children and Adult Services,Childrens care,Third Party Payments,472101,Purchase of Care,07-Nov-2013,2665641-1376054H,754.12,SOCIAL RESOURCE CENTRE LTD.
Children and Adult Services,Childrens care,Third Party Payments,486021,Service Level Agreements,07-Nov-2013,2665530-2732,"4,731.97",REACH OUT CARE SUPPORT SERVICES LTD.
Children and Adult Services,Childrens care,Transfer Payments,515201,Social Services Clients,07-Nov-2013,2663961-1376385H,510.00,REDACTED - PAYMENT TO INDIVIDUAL
Children and Adult Services,Childrens care,Transfer Payments,515201,Social Services Clients,07-Nov-2013,2663963-1376816H,"1,232.00",REDACTED - PAYMENT TO INDIVIDUAL
Children and Adult Services,Childrens care,Transfer Payments,515201,Social Services Clients,07-Nov-2013,2663979-1376954H,"1,110.00",REDACTED - PAYMENT TO INDIVIDUAL
Children and Adult Services,Childrens care,Transfer Payments,515201,Social Services Clients,07-Nov-2013,2663980-1376016H,"1,485.00",REDACTED - PAYMENT TO INDIVIDUAL
Children and Adult Services,Childrens care,Transfer Payments,515201,Social Services Clients,07-Nov-2013,2663985-1377575H,"2,048.00",REDACTED - PAYMENT TO INDIVIDUAL
Children and Adult Services,Childrens care,Transfer Payments,515201,Social Services Clients,07-Nov-2013,2663989-1376186H,978.00,REDACTED - PAYMENT TO INDIVIDUAL
Children and Adult Services,Childrens care,Transfer Payments,515201,Social Services Clients,07-Nov-2013,2664004-1377893H,630.00,REDACTED - PAYMENT TO INDIVIDUAL
Children and Adult Services,Childrens care,Transfer Payments,515201,Social Services Clients,07-Nov-2013,2664010-1378454H,900.00,REDACTED - PAYMENT TO INDIVIDUAL
Children and Adult Services,Childrens care,Transfer Payments,515201,Social Services Clients,07-Nov-2013,2664050-1377404H,572.00,REDACTED - PAYMENT TO INDIVIDUAL
Children and Adult Services,Childrens care,Transfer Payments,515201,Social Services Clients,07-Nov-2013,2664052-1376835H,"1,204.00",REDACTED - PAYMENT TO INDIVIDUAL
Children and Adult Services,Childrens care,Transfer Payments,515201,Social Services Clients,07-Nov-2013,2664062-1376865H,"1,328.00",REDACTED - PAYMENT TO INDIVIDUAL
Children and Adult Services,Childrens care,Transfer Payments,515201,Social Services Clients,07-Nov-2013,2664138-1376224H,720.00,REDACTED - PAYMENT TO INDIVIDUAL
Children and Adult Services,Childrens care,Transfer Payments,515201,Social Services Clients,07-Nov-2013,2664189-1376274H,"1,260.00",REDACTED - PAYMENT TO INDIVIDUAL
Children and Adult Services,Childrens care,Transfer Payments,515201,Social Services Clients,07-Nov-2013,2664202-1377467H,664.00,REDACTED - PAYMENT TO INDIVIDUAL
Children and Adult Services,Childrens care,Transfer Payments,515201,Social Services Clients,07-Nov-2013,2664231-1376124H,960.00,REDACTED - PAYMENT TO INDIVIDUAL
Children and Adult Services,Childrens care,Transfer Payments,515201,Social Services Clients,07-Nov-2013,2664272-1377817H,"7,418.50",REDACTED - PAYMENT TO INDIVIDUAL
Children and Adult Services,Childrens care,Transfer Payments,515201,Social Services Clients,07-Nov-2013,2664285-1376214H,540.00,REDACTED - PAYMENT TO INDIVIDUAL
Children and Adult Services,Childrens care,Transfer Payments,515201,Social Services Clients,07-Nov-2013,2664314-1376278H,960.00,REDACTED - PAYMENT TO INDIVIDUAL
Children and Adult Services,Childrens care,Transfer Payments,515201,Social Services Clients,07-Nov-2013,2664346-1375614H,960.00,REDACTED - PAYMENT TO INDIVIDUAL
Children and Adult Services,Childrens care,Transfer Payments,515201,Social Services Clients,07-Nov-2013,2664392-1375364H,510.00,REDACTED - PAYMENT TO INDIVIDUAL
Children and Adult Services,Childrens care,Transfer Payments,515201,Social Services Clients,07-Nov-2013,2664392-1375365H,996.00,REDACTED - PAYMENT TO INDIVIDUAL
Children and Adult Services,Childrens care,Transfer Payments,515201,Social Services Clients,07-Nov-2013,2664394-1375760H,"1,024.00",REDACTED - PAYMENT TO INDIVIDUAL
Children and Adult Services,Childrens care,Transfer Payments,515201,Social Services Clients,07-Nov-2013,2664454-1375177H,510.00,REDACTED - PAYMENT TO INDIVIDUAL
Children and Adult Services,Childrens care,Transfer Payments,515201,Social Services Clients,07-Nov-2013,2664454-1375334H,510.00,REDACTED - PAYMENT TO INDIVIDUAL
Children and Adult Services,Childrens care,Transfer Payments,515201,Social Services Clients,07-Nov-2013,2664465-1376912H,736.00,REDACTED - PAYMENT TO INDIVIDUAL
Children and Adult Services,Childrens care,Transfer Payments,515201,Social Services Clients,07-Nov-2013,2664529-1377523H,"1,200.00",REDACTED - PAYMENT TO INDIVIDUAL
Children and Adult Services,Childrens care,Transfer Payments,515201,Social Services Clients,07-Nov-2013,2664531-1376465H,"1,920.00",REDACTED - PAYMENT TO INDIVIDUAL
Children and Adult Services,Childrens care,Transfer Payments,515201,Social Services Clients,07-Nov-2013,2664563-1377043H,"5,340.00",REDACTED - PAYMENT TO INDIVIDUAL
Children and Adult Services,Childrens care,Transfer Payments,515201,Social Services Clients,07-Nov-2013,2664569-1375043H,720.00,REDACTED - PAYMENT TO INDIVIDUAL
Children and Adult Services,Childrens care,Transfer Payments,515201,Social Services Clients,07-Nov-2013,2664574-1378148H,660.00,REDACTED - PAYMENT TO INDIVIDUAL
Children and Adult Services,Childrens care,Transfer Payments,515201,Social Services Clients,07-Nov-2013,2664627-1376032H,"1,230.00",REDACTED - PAYMENT TO INDIVIDUAL
Children and Adult Services,Childrens care,Transfer Payments,515201,Social Services Clients,07-Nov-2013,2664646-1376230H,784.00,REDACTED - PAYMENT TO INDIVIDUAL
Children and Adult Services,Childrens care,Transfer Payments,515201,Social Services Clients,07-Nov-2013,2664767-1375911H,"1,144.00",REDACTED - PAYMENT TO INDIVIDUAL
Children and Adult Services,Childrens care,Transfer Payments,515201,Social Services Clients,07-Nov-2013,2664818-1375621H,"1,114.00",REDACTED - PAYMENT TO INDIVIDUAL
Children and Adult Services,Childrens care,Transfer Payments,515201,Social Services Clients,07-Nov-2013,2664835-1377974H,660.00,REDACTED - PAYMENT TO INDIVIDUAL
Children and Adult Services,Childrens care,Transfer Payments,515201,Social Services Clients,07-Nov-2013,2664921-1376738H,600.00,REDACTED - PAYMENT TO INDIVIDUAL
Children and Adult Services,Childrens care,Transfer Payments,515201,Social Services Clients,07-Nov-2013,2664926-1376855H,540.00,REDACTED - PAYMENT TO INDIVIDUAL
Children and Adult Services,Childrens care,Transfer Payments,515201,Social Services Clients,07-Nov-2013,2664933-1377510H,600.00,REDACTED - PAYMENT TO INDIVIDUAL
Children and Adult Services,Childrens care,Transfer Payments,515201,Social Services Clients,07-Nov-2013,2665031-1376100H,600.00,REDACTED - PAYMENT TO INDIVIDUAL
Children and Adult Services,Childrens care,Transfer Payments,515201,Social Services Clients,07-Nov-2013,2665044-1377543H,630.00,REDACTED - PAYMENT TO INDIVIDUAL
Children and Adult Services,Childrens care,Transfer Payments,515201,Social Services Clients,07-Nov-2013,2665070-1376105H,555.00,REDACTED - PAYMENT TO INDIVIDUAL
Children and Adult Services,Childrens care,Transfer Payments,515201,Social Services Clients,07-Nov-2013,2665093-1375326H,600.00,REDACTED - PAYMENT TO INDIVIDUAL
Children and Adult Services,Childrens care,Transfer Payments,515201,Social Services Clients,07-Nov-2013,2665135-1377843H,"1,920.00",REDACTED - PAYMENT TO INDIVIDUAL
Children and Adult Services,Childrens care,Transfer Payments,515201,Social Services Clients,07-Nov-2013,2665230-1376456H,525.00,REDACTED - PAYMENT TO INDIVIDUAL
Children and Adult Services,Childrens care,Transfer Payments,515201,Social Services Clients,07-Nov-2013,2665255-1377055H,962.00,REDACTED - PAYMENT TO INDIVIDUAL
Children and Adult Services,Childrens care,Transfer Payments,515201,Social Services Clients,07-Nov-2013,2665322-1376344H,"1,038.00",REDACTED - PAYMENT TO INDIVIDUAL
Children and Adult Services,Childrens care,Transfer Payments,515201,Social Services Clients,07-Nov-2013,2665356-1375543H,"1,338.00",REDACTED - PAYMENT TO INDIVIDUAL
Children and Adult Services,Childrens care,Transfer Payments,515201,Social Services Clients,07-Nov-2013,2665444-1376386H,"3,132.00",REDACTED - PAYMENT TO INDIVIDUAL
Children and Adult Services,Childrens care,Transfer Payments,515201,Social Services Clients,07-Nov-2013,2665522-1376878H,542.00,REDACTED - PAYMENT TO INDIVIDUAL
Children and Adult Services,Childrens care,Transfer Payments,515201,Social Services Clients,07-Nov-2013,2665579-1376829H,600.00,REDACTED - PAYMENT TO INDIVIDUAL
Children and Adult Services,Childrens care,Transfer Payments,515201,Social Services Clients,07-Nov-2013,2665609-1376309H,632.00,REDACTED - PAYMENT TO INDIVIDUAL
Children and Adult Services,Childrens care,Transfer Payments,515201,Social Services Clients,07-Nov-2013,2665822-1375808H,692.00,REDACTED - PAYMENT TO INDIVIDUAL
Children and Adult Services,Childrens care,Transfer Payments,515202,Social Services Clients,07-Nov-2013,2664634-1376564H,"1,144.00",REDACTED - PAYMENT TO INDIVIDUAL
Children and Adult Services,Childrens care,Transfer Payments,515202,Social Services Clients,07-Nov-2013,2665354-1375964H,918.00,REDACTED - PAYMENT TO INDIVIDUAL
Children and Adult Services,Commissioning inc Supporting People,Third Party Payments,472113,Purchase of Care,07-Nov-2013,2664625-1372577H,991.72,DALE CARE LTD.
Children and Adult Services,Commissioning inc Supporting People,Third Party Payments,472113,Purchase of Care,07-Nov-2013,2664625-1376239H,696.32,DALE CARE LTD.
Children and Adult Services,Commissioning inc Supporting People,Third Party Payments,472113,Purchase of Care,07-Nov-2013,2664625-1376588H,960.08,DALE CARE LTD.
Children and Adult Services,Commissioning inc Supporting People,Third Party Payments,473111,Purchase of Care,07-Nov-2013,2664448-D/OP42OCT13,"4,750.00",ASSOCIATION OF TEESDALE DAY CLUBS.
Children and Adult Services,CYPS - Local Authority,Supplies and Services,332047,"Printing, Stationery and Gen Off Exps",07-Nov-2013,2665693-6251985,660.00,SUPPLIES TEAM LTD.
Children and Adult Services,Early Intervention and Involvement,Supplies and Services,384871,Miscellaneous Expenses,07-Nov-2013,2664732-009,585.00,ECLIPSE FITNESS & PERSONAL TRAINING.
Children and Adult Services,Education,Transfer Payments,510026,School Children,07-Nov-2013,2664834,"50,000.00",GIANT STEPS LTD.
Children and Adult Services,Education,Construction Work,908105,Construction work,07-Nov-2013,2665585-897,"3,508.00",SAFE STRIP UK LTD.
Children and Adult Services,Education,Construction Work,908105,Construction work,07-Nov-2013,2665638-ESH,"20,357.00",SIR ROBERT MCALPINE LTD.
Children and Adult Services,Education,Construction Work,908105,Construction work,07-Nov-2013,2665638-BR,"22,799.06",SIR ROBERT MCALPINE LTD.
Children and Adult Services,Education,Third Party Payments,440999,Other Third Party Payments,07-Nov-2013,2664606-1624,"3,754.00",COUNDON & LEEHOLME COMMUNITY PARTNERSHIP.
Children and Adult Services,Education,Supplies and Services,384199,Miscellaneous Expenses,07-Nov-2013,2665425-329,"6,000.00",NORTH EAST ENVIRONMENT NETWORK LTD.
Children and Adult Services,Financing-Adult Services,Debtors,930024,Debtor-free nursing care,07-Nov-2013,2664614-2128567,941.05,CRAIGARRAN CARE HOME WITH NURSING.
Children and Adult Services,Financing-Adult Services,Debtors,930024,Debtor-free nursing care,07-Nov-2013,2664667-2128423,501.90,DEFOE COURT.
Children and Adult Services,Financing-Adult Services,Debtors,930024,Debtor-free nursing care,07-Nov-2013,2664803-2128461,596.00,FOUR SEASONS HEALTH CARE..
Children and Adult Services,Financing-Adult Services,Debtors,930024,Debtor-free nursing care,07-Nov-2013,2664803-2131358,517.58,FOUR SEASONS HEALTH CARE..
Children and Adult Services,Financing-Adult Services,Debtors,930024,Debtor-free nursing care,07-Nov-2013,2664822-2129690,"1,364.53",GAINFORD CARE HOMES LTD.
Children and Adult Services,Financing-Adult Services,Debtors,930024,Debtor-free nursing care,07-Nov-2013,2664822-2131202,846.95,GAINFORD CARE HOMES LTD.
Children and Adult Services,Financing-Adult Services,Debtors,930024,Debtor-free nursing care,07-Nov-2013,2664859-2131190,643.06,GUARDIAN CARE HOMES (WEST) LTD.
Children and Adult Services,Financing-Adult Services,Debtors,930024,Debtor-free nursing care,07-Nov-2013,2664915-2131309,"2,195.80",JACK DORMAND.
Children and Adult Services,Financing-Adult Services,Debtors,930024,Debtor-free nursing care,07-Nov-2013,2664915-2131311,533.26,JACK DORMAND.
Children and Adult Services,Financing-Adult Services,Debtors,930024,Debtor-free nursing care,07-Nov-2013,2664915-2131312,548.95,JACK DORMAND.
Children and Adult Services,Financing-Adult Services,Debtors,930024,Debtor-free nursing care,07-Nov-2013,2665072-2129278,604.40,KIMBLESWORTH NURSING HOME.
Children and Adult Services,Financing-Adult Services,Debtors,930024,Debtor-free nursing care,07-Nov-2013,2665091-2131150,"3,136.85",LEAZES HALL RESIDENTIAL & NURSING HOME.
Children and Adult Services,Financing-Adult Services,Debtors,930024,Debtor-free nursing care,07-Nov-2013,2665147-2128290,"2,164.43",LYONS COURT CARE HOME.
Children and Adult Services,Financing-Adult Services,Debtors,930024,Debtor-free nursing care,07-Nov-2013,2665528-2129058,604.40,RAYSON HOMES LTD.
Children and Adult Services,Financing-Adult Services,Debtors,930024,Debtor-free nursing care,07-Nov-2013,2665536-2131297,501.89,REDWORTH HOUSE.
Children and Adult Services,Financing-Adult Services,Debtors,930024,Debtor-free nursing care,07-Nov-2013,2665602-2129901,"3,293.70",SANDRINGHAM CARE HOME.
Children and Adult Services,Financing-Adult Services,Debtors,930024,Debtor-free nursing care,07-Nov-2013,2665711-2128215,604.40,TAMARIS HEALTHCARE LTD.
Children and Adult Services,Financing-Adult Services,Debtors,930024,Debtor-free nursing care,07-Nov-2013,2665711-2129749,941.06,TAMARIS HEALTHCARE LTD.
Children and Adult Services,Financing-Adult Services,Debtors,930024,Debtor-free nursing care,07-Nov-2013,2665716-2128457,604.40,TAMARIS HEALTHCARE LTD.
Children and Adult Services,Financing-Adult Services,Debtors,930024,Debtor-free nursing care,07-Nov-2013,2665716-2128459,604.40,TAMARIS HEALTHCARE LTD.
Children and Adult Services,Financing-Adult Services,Debtors,930024,Debtor-free nursing care,07-Nov-2013,2665725-2128962,"1,066.53",TENLANDS NURSING HOME.
Children and Adult Services,Financing-Adult Services,Debtors,930024,Debtor-free nursing care,07-Nov-2013,2665818-2128939,"3,293.70",WEST LODGE HOMES.
Children and Adult Services,Financing-Adult Services,Debtors,930024,Debtor-free nursing care,07-Nov-2013,2665842-2128688,925.37,YODEN HALL NURSING HOME.
Children and Adult Services,Financing-Adult Services,Debtors,930024,Debtor-free nursing care,07-Nov-2013,2665842-2131072,658.74,YODEN HALL NURSING HOME.
Children and Adult Services,Head of Adults,Third Party Payments,470101,Purchase of Care,07-Nov-2013,2664356-2126803,"1,864.56",ACOMB COURT.
Children and Adult Services,Head of Adults,Third Party Payments,470101,Purchase of Care,07-Nov-2013,2664399-2127450,"1,792.92",ALLIANCE CARE.
Children and Adult Services,Head of Adults,Third Party Payments,470101,Purchase of Care,07-Nov-2013,2664399-2127451,"1,267.96",ALLIANCE CARE.
Children and Adult Services,Head of Adults,Third Party Payments,470101,Purchase of Care,07-Nov-2013,2664399-2127452,"1,189.68",ALLIANCE CARE.
Children and Adult Services,Head of Adults,Third Party Payments,470101,Purchase of Care,07-Nov-2013,2664399-2127453,"6,694.22",ALLIANCE CARE.
Children and Adult Services,Head of Adults,Third Party Payments,470101,Purchase of Care,07-Nov-2013,2664399-2127454,866.96,ALLIANCE CARE.
Children and Adult Services,Head of Adults,Third Party Payments,470101,Purchase of Care,07-Nov-2013,2664399-2127455,"2,177.11",ALLIANCE CARE.
Children and Adult Services,Head of Adults,Third Party Payments,470101,Purchase of Care,07-Nov-2013,2664399-2127457,745.84,ALLIANCE CARE.
Children and Adult Services,Head of Adults,Third Party Payments,470101,Purchase of Care,07-Nov-2013,2664399-2127458,"1,216.62",ALLIANCE CARE.
Children and Adult Services,Head of Adults,Third Party Payments,470101,Purchase of Care,07-Nov-2013,2664399-2127459,546.64,ALLIANCE CARE.
Children and Adult Services,Head of Adults,Third Party Payments,470101,Purchase of Care,07-Nov-2013,2664399-2127461,"1,306.92",ALLIANCE CARE.
Children and Adult Services,Head of Adults,Third Party Payments,470101,Purchase of Care,07-Nov-2013,2664399-2127462,"1,257.08",ALLIANCE CARE.
Children and Adult Services,Head of Adults,Third Party Payments,470101,Purchase of Care,07-Nov-2013,2664399-2127463,"1,052.92",ALLIANCE CARE.
Children and Adult Services,Head of Adults,Third Party Payments,470101,Purchase of Care,07-Nov-2013,2664399-2127464,"1,068.72",ALLIANCE CARE.
Children and Adult Services,Head of Adults,Third Party Payments,470101,Purchase of Care,07-Nov-2013,2664399-2127465,"1,792.92",ALLIANCE CARE.
Children and Adult Services,Head of Adults,Third Party Payments,470101,Purchase of Care,07-Nov-2013,2664399-2127467,"1,306.92",ALLIANCE CARE.
Children and Adult Services,Head of Adults,Third Party Payments,470101,Purchase of Care,07-Nov-2013,2664399-2127468,"1,031.80",ALLIANCE CARE.
Children and Adult Services,Head of Adults,Third Party Payments,470101,Purchase of Care,07-Nov-2013,2664399-2127470,"1,911.52",ALLIANCE CARE.
Children and Adult Services,Head of Adults,Third Party Payments,470101,Purchase of Care,07-Nov-2013,2664399-2127471,"1,306.92",ALLIANCE CARE.
Children and Adult Services,Head of Adults,Third Party Payments,470101,Purchase of Care,07-Nov-2013,2664399-2127472,"1,306.92",ALLIANCE CARE.
Children and Adult Services,Head of Adults,Third Party Payments,470101,Purchase of Care,07-Nov-2013,2664399-2131342,"1,792.92",ALLIANCE CARE.
Children and Adult Services,Head of Adults,Third Party Payments,470101,Purchase of Care,07-Nov-2013,2664400-2129132,"1,644.56",ALLIANCE CARE.
Children and Adult Services,Head of Adults,Third Party Payments,470101,Purchase of Care,07-Nov-2013,2664400-2129140,"1,959.76",ALLIANCE CARE.
Children and Adult Services,Head of Adults,Third Party Payments,470101,Purchase of Care,07-Nov-2013,2664400-2129141,901.36,ALLIANCE CARE.
Children and Adult Services,Head of Adults,Third Party Payments,470101,Purchase of Care,07-Nov-2013,2664472-2127318,"1,752.00",BARCHESTER HEALTHCARE HOMES LTD.
Children and Adult Services,Head of Adults,Third Party Payments,470101,Purchase of Care,07-Nov-2013,2664478-2127019,"1,152.59",BEAMISH RESIDENTIAL HOME.
Children and Adult Services,Head of Adults,Third Party Payments,470101,Purchase of Care,07-Nov-2013,2664478-2127020,"1,024.52",BEAMISH RESIDENTIAL HOME.
Children and Adult Services,Head of Adults,Third Party Payments,470101,Purchase of Care,07-Nov-2013,2664478-2127023,"1,306.92",BEAMISH RESIDENTIAL HOME.
Children and Adult Services,Head of Adults,Third Party Payments,470101,Purchase of Care,07-Nov-2013,2664478-2127026,"1,289.40",BEAMISH RESIDENTIAL HOME.
Children and Adult Services,Head of Adults,Third Party Payments,470101,Purchase of Care,07-Nov-2013,2664478-2127027,"1,792.92",BEAMISH RESIDENTIAL HOME.
Children and Adult Services,Head of Adults,Third Party Payments,470101,Purchase of Care,07-Nov-2013,2664478-2127028,946.64,BEAMISH RESIDENTIAL HOME.
Children and Adult Services,Head of Adults,Third Party Payments,470101,Purchase of Care,07-Nov-2013,2664478-2127029,"1,248.44",BEAMISH RESIDENTIAL HOME.
Children and Adult Services,Head of Adults,Third Party Payments,470101,Purchase of Care,07-Nov-2013,2664478-2127030,"1,258.36",BEAMISH RESIDENTIAL HOME.
Children and Adult Services,Head of Adults,Third Party Payments,470101,Purchase of Care,07-Nov-2013,2664478-2127031,"1,792.92",BEAMISH RESIDENTIAL HOME.
Children and Adult Services,Head of Adults,Third Party Payments,470101,Purchase of Care,07-Nov-2013,2664480-2127570,"1,894.36",BEDDELL HOUSE.
Children and Adult Services,Head of Adults,Third Party Payments,470101,Purchase of Care,07-Nov-2013,2664483-2127280,"1,772.00",BELLE VUE HEALTHCARE LTD.
Children and Adult Services,Head of Adults,Third Party Payments,470101,Purchase of Care,07-Nov-2013,2664484-2127859,"1,036.40",BELMONT NURSING HOME.
Children and Adult Services,Head of Adults,Third Party Payments,470101,Purchase of Care,07-Nov-2013,2664584-2126947,"1,792.92",CHURCH VIEW RESIDENTIAL CARE HOME.
Children and Adult Services,Head of Adults,Third Party Payments,470101,Purchase of Care,07-Nov-2013,2664621-2127656,"1,252.00",CROFT UNIT.
Children and Adult Services,Head of Adults,Third Party Payments,470101,Purchase of Care,07-Nov-2013,2664675-2127085,"1,894.36",DERWENT CARE HOME.
Children and Adult Services,Head of Adults,Third Party Payments,470101,Purchase of Care,07-Nov-2013,2664675-2127086,"1,894.36",DERWENT CARE HOME.
Children and Adult Services,Head of Adults,Third Party Payments,470101,Purchase of Care,07-Nov-2013,2664675-2127105,"1,894.36",DERWENT CARE HOME.
Children and Adult Services,Head of Adults,Third Party Payments,470101,Purchase of Care,07-Nov-2013,2664675-2127107,"1,894.36",DERWENT CARE HOME.
Children and Adult Services,Head of Adults,Third Party Payments,470101,Purchase of Care,07-Nov-2013,2664675-2127108,"1,894.36",DERWENT CARE HOME.
Children and Adult Services,Head of Adults,Third Party Payments,470101,Purchase of Care,07-Nov-2013,2664684-2126806,879.52,DIPTON CARE HOME LTD.
Children and Adult Services,Head of Adults,Third Party Payments,470101,Purchase of Care,07-Nov-2013,2664684-2126807,"1,014.83",DIPTON CARE HOME LTD.
Children and Adult Services,Head of Adults,Third Party Payments,470101,Purchase of Care,07-Nov-2013,2664684-2126808,"1,894.36",DIPTON CARE HOME LTD.
Children and Adult Services,Head of Adults,Third Party Payments,470101,Purchase of Care,07-Nov-2013,2664684-2126809,"1,894.36",DIPTON CARE HOME LTD.
Children and Adult Services,Head of Adults,Third Party Payments,470101,Purchase of Care,07-Nov-2013,2664684-2126810,"1,894.36",DIPTON CARE HOME LTD.
Children and Adult Services,Head of Adults,Third Party Payments,470101,Purchase of Care,07-Nov-2013,2664684-2126811,"1,894.36",DIPTON CARE HOME LTD.
Children and Adult Services,Head of Adults,Third Party Payments,470101,Purchase of Care,07-Nov-2013,2664684-2126812,811.86,DIPTON CARE HOME LTD.
Children and Adult Services,Head of Adults,Third Party Payments,470101,Purchase of Care,07-Nov-2013,2664684-2126814,"1,894.36",DIPTON CARE HOME LTD.
Children and Adult Services,Head of Adults,Third Party Payments,470101,Purchase of Care,07-Nov-2013,2664684-2126815,"1,894.36",DIPTON CARE HOME LTD.
Children and Adult Services,Head of Adults,Third Party Payments,470101,Purchase of Care,07-Nov-2013,2664684-2126816,"1,894.36",DIPTON CARE HOME LTD.
Children and Adult Services,Head of Adults,Third Party Payments,470101,Purchase of Care,07-Nov-2013,2664684-2126818,"1,894.36",DIPTON CARE HOME LTD.
Children and Adult Services,Head of Adults,Third Party Payments,470101,Purchase of Care,07-Nov-2013,2664684-2126819,"1,894.36",DIPTON CARE HOME LTD.
Children and Adult Services,Head of Adults,Third Party Payments,470101,Purchase of Care,07-Nov-2013,2664684-2126820,"1,894.36",DIPTON CARE HOME LTD.
Children and Adult Services,Head of Adults,Third Party Payments,470101,Purchase of Care,07-Nov-2013,2664684-2131343,676.55,DIPTON CARE HOME LTD.
Children and Adult Services,Head of Adults,Third Party Payments,470101,Purchase of Care,07-Nov-2013,2664715-2129108,"1,471.00",DURHAM CARELINE LTD.
Children and Adult Services,Head of Adults,Third Party Payments,470101,Purchase of Care,07-Nov-2013,2664780-2127283,968.46,EUROPEAN CARE (ENGLAND) LTD.
Children and Adult Services,Head of Adults,Third Party Payments,470101,Purchase of Care,07-Nov-2013,2664789-2127290,"1,820.00",FERGUSON LODGE.
Children and Adult Services,Head of Adults,Third Party Payments,470101,Purchase of Care,07-Nov-2013,2664822-2126858,"1,894.36",GAINFORD CARE HOMES LTD.
Children and Adult Services,Head of Adults,Third Party Payments,470101,Purchase of Care,07-Nov-2013,2664822-2126860,"1,894.36",GAINFORD CARE HOMES LTD.
Children and Adult Services,Head of Adults,Third Party Payments,470101,Purchase of Care,07-Nov-2013,2664822-2126862,"1,894.36",GAINFORD CARE HOMES LTD.
Children and Adult Services,Head of Adults,Third Party Payments,470101,Purchase of Care,07-Nov-2013,2664822-2126863,"1,894.36",GAINFORD CARE HOMES LTD.
Children and Adult Services,Head of Adults,Third Party Payments,470101,Purchase of Care,07-Nov-2013,2664857-2127193,"1,800.00",GROSVENOR PARK CARE HOME.
Children and Adult Services,Head of Adults,Third Party Payments,470101,Purchase of Care,07-Nov-2013,2664862-2127060,"2,134.36",HADRIAN HEALTHCARE (NE) LTD (ORCHARD MANOR).
Children and Adult Services,Head of Adults,Third Party Payments,470101,Purchase of Care,07-Nov-2013,2664878-2127524,"1,894.36",HELEN MCARDLE CARE.
Children and Adult Services,Head of Adults,Third Party Payments,470101,Purchase of Care,07-Nov-2013,2664878-2127525,"1,894.36",HELEN MCARDLE CARE.
Children and Adult Services,Head of Adults,Third Party Payments,470101,Purchase of Care,07-Nov-2013,2664878-2127526,"1,894.36",HELEN MCARDLE CARE.
Children and Adult Services,Head of Adults,Third Party Payments,470101,Purchase of Care,07-Nov-2013,2664878-2127527,"1,894.36",HELEN MCARDLE CARE.
Children and Adult Services,Head of Adults,Third Party Payments,470101,Purchase of Care,07-Nov-2013,2664878-2127538,"1,894.36",HELEN MCARDLE CARE.
Children and Adult Services,Head of Adults,Third Party Payments,470101,Purchase of Care,07-Nov-2013,2664878-2127541,"1,894.36",HELEN MCARDLE CARE.
Children and Adult Services,Head of Adults,Third Party Payments,470101,Purchase of Care,07-Nov-2013,2664878-2127542,"1,894.36",HELEN MCARDLE CARE.
Children and Adult Services,Head of Adults,Third Party Payments,470101,Purchase of Care,07-Nov-2013,2664878-2127543,"1,894.36",HELEN MCARDLE CARE.
Children and Adult Services,Head of Adults,Third Party Payments,470101,Purchase of Care,07-Nov-2013,2664878-2127544,"1,894.36",HELEN MCARDLE CARE.
Children and Adult Services,Head of Adults,Third Party Payments,470101,Purchase of Care,07-Nov-2013,2664878-2127546,"1,894.36",HELEN MCARDLE CARE.
Children and Adult Services,Head of Adults,Third Party Payments,470101,Purchase of Care,07-Nov-2013,2664878-2127547,"1,894.36",HELEN MCARDLE CARE.
Children and Adult Services,Head of Adults,Third Party Payments,470101,Purchase of Care,07-Nov-2013,2664878-2127548,"1,894.36",HELEN MCARDLE CARE.
Children and Adult Services,Head of Adults,Third Party Payments,470101,Purchase of Care,07-Nov-2013,2664878-2127549,"1,894.36",HELEN MCARDLE CARE.
Children and Adult Services,Head of Adults,Third Party Payments,470101,Purchase of Care,07-Nov-2013,2664878-2127551,"1,894.36",HELEN MCARDLE CARE.
Children and Adult Services,Head of Adults,Third Party Payments,470101,Purchase of Care,07-Nov-2013,2664878-2127552,"1,894.36",HELEN MCARDLE CARE.
Children and Adult Services,Head of Adults,Third Party Payments,470101,Purchase of Care,07-Nov-2013,2664878-2127553,"1,894.36",HELEN MCARDLE CARE.
Children and Adult Services,Head of Adults,Third Party Payments,470101,Purchase of Care,07-Nov-2013,2665081-2127718,"1,792.92",LAMBTON HOUSE.
Children and Adult Services,Head of Adults,Third Party Payments,470101,Purchase of Care,07-Nov-2013,2665083-2127037,"1,792.92",LANGLEY PARK CARE HOME.
Children and Adult Services,Head of Adults,Third Party Payments,470101,Purchase of Care,07-Nov-2013,2665083-2127039,"1,792.92",LANGLEY PARK CARE HOME.
Children and Adult Services,Head of Adults,Third Party Payments,470101,Purchase of Care,07-Nov-2013,2665083-2127047,"1,792.92",LANGLEY PARK CARE HOME.
Children and Adult Services,Head of Adults,Third Party Payments,470101,Purchase of Care,07-Nov-2013,2665083-2127048,"1,792.92",LANGLEY PARK CARE HOME.
Children and Adult Services,Head of Adults,Third Party Payments,470101,Purchase of Care,07-Nov-2013,2665083-2127049,"1,792.92",LANGLEY PARK CARE HOME.
Children and Adult Services,Head of Adults,Third Party Payments,470101,Purchase of Care,07-Nov-2013,2665091-2127760,"1,297.88",LEAZES HALL RESIDENTIAL & NURSING HOME.
Children and Adult Services,Head of Adults,Third Party Payments,470101,Purchase of Care,07-Nov-2013,2665091-2127761,"1,306.92",LEAZES HALL RESIDENTIAL & NURSING HOME.
Children and Adult Services,Head of Adults,Third Party Payments,470101,Purchase of Care,07-Nov-2013,2665091-2127986,"1,541.39",LEAZES HALL RESIDENTIAL & NURSING HOME.
Children and Adult Services,Head of Adults,Third Party Payments,470101,Purchase of Care,07-Nov-2013,2665091-2127987,"1,307.56",LEAZES HALL RESIDENTIAL & NURSING HOME.
Children and Adult Services,Head of Adults,Third Party Payments,470101,Purchase of Care,07-Nov-2013,2665091-2127988,"1,227.76",LEAZES HALL RESIDENTIAL & NURSING HOME.
Children and Adult Services,Head of Adults,Third Party Payments,470101,Purchase of Care,07-Nov-2013,2665091-2127989,"1,792.92",LEAZES HALL RESIDENTIAL & NURSING HOME.
Children and Adult Services,Head of Adults,Third Party Payments,470101,Purchase of Care,07-Nov-2013,2665091-2127990,"1,257.92",LEAZES HALL RESIDENTIAL & NURSING HOME.
Children and Adult Services,Head of Adults,Third Party Payments,470101,Purchase of Care,07-Nov-2013,2665091-2127991,768.24,LEAZES HALL RESIDENTIAL & NURSING HOME.
Children and Adult Services,Head of Adults,Third Party Payments,470101,Purchase of Care,07-Nov-2013,2665091-2127992,"1,146.20",LEAZES HALL RESIDENTIAL & NURSING HOME.
Children and Adult Services,Head of Adults,Third Party Payments,470101,Purchase of Care,07-Nov-2013,2665091-2127994,"1,792.92",LEAZES HALL RESIDENTIAL & NURSING HOME.
Children and Adult Services,Head of Adults,Third Party Payments,470101,Purchase of Care,07-Nov-2013,2665091-2127996,"1,792.92",LEAZES HALL RESIDENTIAL & NURSING HOME.
Children and Adult Services,Head of Adults,Third Party Payments,470101,Purchase of Care,07-Nov-2013,2665091-2127997,"1,792.92",LEAZES HALL RESIDENTIAL & NURSING HOME.
Children and Adult Services,Head of Adults,Third Party Payments,470101,Purchase of Care,07-Nov-2013,2665108-2126854,"1,738.00",LIFESTYLES CARE & SUPPORT LTD.
Children and Adult Services,Head of Adults,Third Party Payments,470101,Purchase of Care,07-Nov-2013,2665117-2131217,"1,894.36",LINDISFARNE CARE HOME.
Children and Adult Services,Head of Adults,Third Party Payments,470101,Purchase of Care,07-Nov-2013,2665117-2131218,"1,894.36",LINDISFARNE CARE HOME.
Children and Adult Services,Head of Adults,Third Party Payments,470101,Purchase of Care,07-Nov-2013,2665117-2131219,"1,894.36",LINDISFARNE CARE HOME.
Children and Adult Services,Head of Adults,Third Party Payments,470101,Purchase of Care,07-Nov-2013,2665152-2127752,"1,109.12",MANOR HOUSE CARE HOME.
Children and Adult Services,Head of Adults,Third Party Payments,470101,Purchase of Care,07-Nov-2013,2665152-2127960,"1,595.12",MANOR HOUSE CARE HOME.
Children and Adult Services,Head of Adults,Third Party Payments,470101,Purchase of Care,07-Nov-2013,2665152-2127961,"1,595.12",MANOR HOUSE CARE HOME.
Children and Adult Services,Head of Adults,Third Party Payments,470101,Purchase of Care,07-Nov-2013,2665234-2127083,"1,894.36",MELBURY COURT.
Children and Adult Services,Head of Adults,Third Party Payments,470101,Purchase of Care,07-Nov-2013,2665234-2127090,"1,894.36",MELBURY COURT.
Children and Adult Services,Head of Adults,Third Party Payments,470101,Purchase of Care,07-Nov-2013,2665234-2127093,"1,894.36",MELBURY COURT.
Children and Adult Services,Head of Adults,Third Party Payments,470101,Purchase of Care,07-Nov-2013,2665234-2127097,"1,894.36",MELBURY COURT.
Children and Adult Services,Head of Adults,Third Party Payments,470101,Purchase of Care,07-Nov-2013,2665385-2127722,626.65,REDACTED - PAYMENT TO INDIVIDUAL
Children and Adult Services,Head of Adults,Third Party Payments,470101,Purchase of Care,07-Nov-2013,2665385-2127913,626.65,REDACTED - PAYMENT TO INDIVIDUAL
Children and Adult Services,Head of Adults,Third Party Payments,470101,Purchase of Care,07-Nov-2013,2665434-2127293,"1,864.40",NORTHUMBRIA CARE LTD.
Children and Adult Services,Head of Adults,Third Party Payments,470101,Purchase of Care,07-Nov-2013,2665456-2126804,"1,763.52",PARK LODGE.
Children and Adult Services,Head of Adults,Third Party Payments,470101,Purchase of Care,07-Nov-2013,2665458-2127624,951.36,PARKLANDS RESIDENTIAL HOME.
Children and Adult Services,Head of Adults,Third Party Payments,470101,Purchase of Care,07-Nov-2013,2665486-2127692,"1,079.40",PELTON GRANGE CARE HOME.
Children and Adult Services,Head of Adults,Third Party Payments,470101,Purchase of Care,07-Nov-2013,2665486-2127694,997.28,PELTON GRANGE CARE HOME.
Children and Adult Services,Head of Adults,Third Party Payments,470101,Purchase of Care,07-Nov-2013,2665486-2127840,"1,595.12",PELTON GRANGE CARE HOME.
Children and Adult Services,Head of Adults,Third Party Payments,470101,Purchase of Care,07-Nov-2013,2665486-2127842,797.56,PELTON GRANGE CARE HOME.
Children and Adult Services,Head of Adults,Third Party Payments,470101,Purchase of Care,07-Nov-2013,2665486-2127843,818.40,PELTON GRANGE CARE HOME.
Children and Adult Services,Head of Adults,Third Party Payments,470101,Purchase of Care,07-Nov-2013,2665486-2127847,"1,174.24",PELTON GRANGE CARE HOME.
Children and Adult Services,Head of Adults,Third Party Payments,470101,Purchase of Care,07-Nov-2013,2665486-2127848,"1,109.12",PELTON GRANGE CARE HOME.
Children and Adult Services,Head of Adults,Third Party Payments,470101,Purchase of Care,07-Nov-2013,2665486-2127851,"1,098.08",PELTON GRANGE CARE HOME.
Children and Adult Services,Head of Adults,Third Party Payments,470101,Purchase of Care,07-Nov-2013,2665486-2127852,"1,109.12",PELTON GRANGE CARE HOME.
Children and Adult Services,Head of Adults,Third Party Payments,470101,Purchase of Care,07-Nov-2013,2665486-2127854,"1,057.00",PELTON GRANGE CARE HOME.
Children and Adult Services,Head of Adults,Third Party Payments,470101,Purchase of Care,07-Nov-2013,2665512-2127725,"1,892.92",PREMIER CARE HOMES LTD.
Children and Adult Services,Head of Adults,Third Party Payments,470101,Purchase of Care,07-Nov-2013,2665513-2126830,"1,826.70",PREMIER CARE HOMES LTD.
Children and Adult Services,Head of Adults,Third Party Payments,470101,Purchase of Care,07-Nov-2013,2665513-2126837,"1,894.36",PREMIER CARE HOMES LTD.
Children and Adult Services,Head of Adults,Third Party Payments,470101,Purchase of Care,07-Nov-2013,2665513-2126849,"1,894.36",PREMIER CARE HOMES LTD.
Children and Adult Services,Head of Adults,Third Party Payments,470101,Purchase of Care,07-Nov-2013,2665535-2127661,"1,212.20",REDWELL HILLS.
Children and Adult Services,Head of Adults,Third Party Payments,470101,Purchase of Care,07-Nov-2013,2665535-2127696,"1,257.68",REDWELL HILLS.
Children and Adult Services,Head of Adults,Third Party Payments,470101,Purchase of Care,07-Nov-2013,2665535-2127697,"1,212.40",REDWELL HILLS.
Children and Adult Services,Head of Adults,Third Party Payments,470101,Purchase of Care,07-Nov-2013,2665535-2127698,"1,290.36",REDWELL HILLS.
Children and Adult Services,Head of Adults,Third Party Payments,470101,Purchase of Care,07-Nov-2013,2665535-2127868,"1,166.85",REDWELL HILLS.
Children and Adult Services,Head of Adults,Third Party Payments,470101,Purchase of Care,07-Nov-2013,2665535-2127869,"1,792.92",REDWELL HILLS.
Children and Adult Services,Head of Adults,Third Party Payments,470101,Purchase of Care,07-Nov-2013,2665535-2127870,"1,792.92",REDWELL HILLS.
Children and Adult Services,Head of Adults,Third Party Payments,470101,Purchase of Care,07-Nov-2013,2665535-2131407,"1,344.69",REDWELL HILLS.
Children and Adult Services,Head of Adults,Third Party Payments,470101,Purchase of Care,07-Nov-2013,2665568-2127750,"1,074.76",ROSEMOUNT.
Children and Adult Services,Head of Adults,Third Party Payments,470101,Purchase of Care,07-Nov-2013,2665568-2127952,569.68,ROSEMOUNT.
Children and Adult Services,Head of Adults,Third Party Payments,470101,Purchase of Care,07-Nov-2013,2665568-2127953,"1,337.66",ROSEMOUNT.
Children and Adult Services,Head of Adults,Third Party Payments,470101,Purchase of Care,07-Nov-2013,2665568-2127954,"1,109.12",ROSEMOUNT.
Children and Adult Services,Head of Adults,Third Party Payments,470101,Purchase of Care,07-Nov-2013,2665568-2127955,"1,595.12",ROSEMOUNT.
Children and Adult Services,Head of Adults,Third Party Payments,470101,Purchase of Care,07-Nov-2013,2665568-2127956,549.93,ROSEMOUNT.
Children and Adult Services,Head of Adults,Third Party Payments,470101,Purchase of Care,07-Nov-2013,2665568-2127957,"1,075.36",ROSEMOUNT.
Children and Adult Services,Head of Adults,Third Party Payments,470101,Purchase of Care,07-Nov-2013,2665631-2127664,"1,792.92",SHOTLEY PARK HOMES FOR THE ELDERLY LTD.
Children and Adult Services,Head of Adults,Third Party Payments,470101,Purchase of Care,07-Nov-2013,2665631-2127741,"1,792.92",SHOTLEY PARK HOMES FOR THE ELDERLY LTD.
Children and Adult Services,Head of Adults,Third Party Payments,470101,Purchase of Care,07-Nov-2013,2665631-2127742,"1,792.92",SHOTLEY PARK HOMES FOR THE ELDERLY LTD.
Children and Adult Services,Head of Adults,Third Party Payments,470101,Purchase of Care,07-Nov-2013,2665631-2127743,"1,792.92",SHOTLEY PARK HOMES FOR THE ELDERLY LTD.
Children and Adult Services,Head of Adults,Third Party Payments,470101,Purchase of Care,07-Nov-2013,2665631-2127744,896.44,SHOTLEY PARK HOMES FOR THE ELDERLY LTD.
Children and Adult Services,Head of Adults,Third Party Payments,470101,Purchase of Care,07-Nov-2013,2665631-2127745,"1,792.92",SHOTLEY PARK HOMES FOR THE ELDERLY LTD.
Children and Adult Services,Head of Adults,Third Party Payments,470101,Purchase of Care,07-Nov-2013,2665631-2127746,"1,792.92",SHOTLEY PARK HOMES FOR THE ELDERLY LTD.
Children and Adult Services,Head of Adults,Third Party Payments,470101,Purchase of Care,07-Nov-2013,2665631-2127747,"1,792.92",SHOTLEY PARK HOMES FOR THE ELDERLY LTD.
Children and Adult Services,Head of Adults,Third Party Payments,470101,Purchase of Care,07-Nov-2013,2665631-2127748,"1,792.92",SHOTLEY PARK HOMES FOR THE ELDERLY LTD.
Children and Adult Services,Head of Adults,Third Party Payments,470101,Purchase of Care,07-Nov-2013,2665631-2127749,"1,792.92",SHOTLEY PARK HOMES FOR THE ELDERLY LTD.
Children and Adult Services,Head of Adults,Third Party Payments,470101,Purchase of Care,07-Nov-2013,2665631-2127939,"1,792.92",SHOTLEY PARK HOMES FOR THE ELDERLY LTD.
Children and Adult Services,Head of Adults,Third Party Payments,470101,Purchase of Care,07-Nov-2013,2665631-2127940,896.46,SHOTLEY PARK HOMES FOR THE ELDERLY LTD.
Children and Adult Services,Head of Adults,Third Party Payments,470101,Purchase of Care,07-Nov-2013,2665631-2127942,"1,792.92",SHOTLEY PARK HOMES FOR THE ELDERLY LTD.
Children and Adult Services,Head of Adults,Third Party Payments,470101,Purchase of Care,07-Nov-2013,2665631-2127943,"1,792.92",SHOTLEY PARK HOMES FOR THE ELDERLY LTD.
Children and Adult Services,Head of Adults,Third Party Payments,470101,Purchase of Care,07-Nov-2013,2665631-2127944,"1,792.92",SHOTLEY PARK HOMES FOR THE ELDERLY LTD.
Children and Adult Services,Head of Adults,Third Party Payments,470101,Purchase of Care,07-Nov-2013,2665631-2127945,"1,792.92",SHOTLEY PARK HOMES FOR THE ELDERLY LTD.
Children and Adult Services,Head of Adults,Third Party Payments,470101,Purchase of Care,07-Nov-2013,2665631-2127946,"1,792.92",SHOTLEY PARK HOMES FOR THE ELDERLY LTD.
Children and Adult Services,Head of Adults,Third Party Payments,470101,Purchase of Care,07-Nov-2013,2665631-2127947,"1,792.92",SHOTLEY PARK HOMES FOR THE ELDERLY LTD.
Children and Adult Services,Head of Adults,Third Party Payments,470101,Purchase of Care,07-Nov-2013,2665631-2127948,"1,792.92",SHOTLEY PARK HOMES FOR THE ELDERLY LTD.
Children and Adult Services,Head of Adults,Third Party Payments,470101,Purchase of Care,07-Nov-2013,2665631-2127949,"1,792.92",SHOTLEY PARK HOMES FOR THE ELDERLY LTD.
Children and Adult Services,Head of Adults,Third Party Payments,470101,Purchase of Care,07-Nov-2013,2665631-2127950,"1,792.92",SHOTLEY PARK HOMES FOR THE ELDERLY LTD.
Children and Adult Services,Head of Adults,Third Party Payments,470101,Purchase of Care,07-Nov-2013,2665631-2127951,"1,792.92",SHOTLEY PARK HOMES FOR THE ELDERLY LTD.
Children and Adult Services,Head of Adults,Third Party Payments,470101,Purchase of Care,07-Nov-2013,2665652-2126821,"1,720.00",SPRINGFIELD HOUSE.
Children and Adult Services,Head of Adults,Third Party Payments,470101,Purchase of Care,07-Nov-2013,2665654-2127256,"1,408.36",ST AIDAN LODGE.
Children and Adult Services,Head of Adults,Third Party Payments,470101,Purchase of Care,07-Nov-2013,2665654-2127267,"1,894.36",ST AIDAN LODGE.
Children and Adult Services,Head of Adults,Third Party Payments,470101,Purchase of Care,07-Nov-2013,2665654-2127278,989.52,ST AIDAN LODGE.
Children and Adult Services,Head of Adults,Third Party Payments,470101,Purchase of Care,07-Nov-2013,2665654-2127279,"1,894.36",ST AIDAN LODGE.
Children and Adult Services,Head of Adults,Third Party Payments,470101,Purchase of Care,07-Nov-2013,2665655-2129100,"1,509.96",ST AIDENS COTTAGE.
Children and Adult Services,Head of Adults,Third Party Payments,470101,Purchase of Care,07-Nov-2013,2665656-2127735,940.36,ST ANDREWS MPS LTD.
Children and Adult Services,Head of Adults,Third Party Payments,470101,Purchase of Care,07-Nov-2013,2665656-2127737,"1,595.12",ST ANDREWS MPS LTD.
Children and Adult Services,Head of Adults,Third Party Payments,470101,Purchase of Care,07-Nov-2013,2665656-2127740,"1,595.12",ST ANDREWS MPS LTD.
Children and Adult Services,Head of Adults,Third Party Payments,470101,Purchase of Care,07-Nov-2013,2665656-2127934,775.32,ST ANDREWS MPS LTD.
Children and Adult Services,Head of Adults,Third Party Payments,470101,Purchase of Care,07-Nov-2013,2665656-2127935,"1,078.36",ST ANDREWS MPS LTD.
Children and Adult Services,Head of Adults,Third Party Payments,470101,Purchase of Care,07-Nov-2013,2665656-2127936,"1,000.04",ST ANDREWS MPS LTD.
Children and Adult Services,Head of Adults,Third Party Payments,470101,Purchase of Care,07-Nov-2013,2665656-2127937,"1,595.12",ST ANDREWS MPS LTD.
Children and Adult Services,Head of Adults,Third Party Payments,470101,Purchase of Care,07-Nov-2013,2665656-2127938,"1,595.12",ST ANDREWS MPS LTD.
Children and Adult Services,Head of Adults,Third Party Payments,470101,Purchase of Care,07-Nov-2013,2665656-2129135,"1,101.00",ST ANDREWS MPS LTD.
Children and Adult Services,Head of Adults,Third Party Payments,470101,Purchase of Care,07-Nov-2013,2665656-2129143,"1,501.72",ST ANDREWS MPS LTD.
Children and Adult Services,Head of Adults,Third Party Payments,470101,Purchase of Care,07-Nov-2013,2665665-2127378,"2,164.98",ST MARGARETS NURSING HOME.
Children and Adult Services,Head of Adults,Third Party Payments,470101,Purchase of Care,07-Nov-2013,2665665-2127389,"1,894.36",ST MARGARETS NURSING HOME.
Children and Adult Services,Head of Adults,Third Party Payments,470101,Purchase of Care,07-Nov-2013,2665667-2127731,"1,792.92",ST MARYS CONVENT.
Children and Adult Services,Head of Adults,Third Party Payments,470101,Purchase of Care,07-Nov-2013,2665667-2127733,"1,259.96",ST MARYS CONVENT.
Children and Adult Services,Head of Adults,Third Party Payments,470101,Purchase of Care,07-Nov-2013,2665667-2127734,"1,151.92",ST MARYS CONVENT.
Children and Adult Services,Head of Adults,Third Party Payments,470101,Purchase of Care,07-Nov-2013,2665667-2127751,"1,306.92",ST MARYS CONVENT.
Children and Adult Services,Head of Adults,Third Party Payments,470101,Purchase of Care,07-Nov-2013,2665667-2127926,"1,792.92",ST MARYS CONVENT.
Children and Adult Services,Head of Adults,Third Party Payments,470101,Purchase of Care,07-Nov-2013,2665667-2127927,"1,088.55",ST MARYS CONVENT.
Children and Adult Services,Head of Adults,Third Party Payments,470101,Purchase of Care,07-Nov-2013,2665667-2127928,"1,792.92",ST MARYS CONVENT.
Children and Adult Services,Head of Adults,Third Party Payments,470101,Purchase of Care,07-Nov-2013,2665667-2127929,"1,088.55",ST MARYS CONVENT.
Children and Adult Services,Head of Adults,Third Party Payments,470101,Purchase of Care,07-Nov-2013,2665667-2127932,"1,168.32",ST MARYS CONVENT.
Children and Adult Services,Head of Adults,Third Party Payments,470101,Purchase of Care,07-Nov-2013,2665668-2127816,"1,595.12",ST MARYS NURSING HOME.
Children and Adult Services,Head of Adults,Third Party Payments,470101,Purchase of Care,07-Nov-2013,2665668-2127817,"1,595.12",ST MARYS NURSING HOME.
Children and Adult Services,Head of Adults,Third Party Payments,470101,Purchase of Care,07-Nov-2013,2665668-2127818,"1,595.12",ST MARYS NURSING HOME.
Children and Adult Services,Head of Adults,Third Party Payments,470101,Purchase of Care,07-Nov-2013,2665668-2127819,"1,595.12",ST MARYS NURSING HOME.
Children and Adult Services,Head of Adults,Third Party Payments,470101,Purchase of Care,07-Nov-2013,2665676-2127112,"1,894.36",STANLEY PARK CARE CENTRE.
Children and Adult Services,Head of Adults,Third Party Payments,470101,Purchase of Care,07-Nov-2013,2665676-2127113,"1,894.36",STANLEY PARK CARE CENTRE.
Children and Adult Services,Head of Adults,Third Party Payments,470101,Purchase of Care,07-Nov-2013,2665676-2127114,"1,894.36",STANLEY PARK CARE CENTRE.
Children and Adult Services,Head of Adults,Third Party Payments,470101,Purchase of Care,07-Nov-2013,2665676-2127115,"1,894.36",STANLEY PARK CARE CENTRE.
Children and Adult Services,Head of Adults,Third Party Payments,470101,Purchase of Care,07-Nov-2013,2665676-2127138,"1,894.36",STANLEY PARK CARE CENTRE.
Children and Adult Services,Head of Adults,Third Party Payments,470101,Purchase of Care,07-Nov-2013,2665676-2127139,"1,894.36",STANLEY PARK CARE CENTRE.
Children and Adult Services,Head of Adults,Third Party Payments,470101,Purchase of Care,07-Nov-2013,2665676-2127140,"1,894.36",STANLEY PARK CARE CENTRE.
Children and Adult Services,Head of Adults,Third Party Payments,470101,Purchase of Care,07-Nov-2013,2665676-2127142,"1,894.36",STANLEY PARK CARE CENTRE.
Children and Adult Services,Head of Adults,Third Party Payments,470101,Purchase of Care,07-Nov-2013,2665676-2127143,"1,894.36",STANLEY PARK CARE CENTRE.
Children and Adult Services,Head of Adults,Third Party Payments,470101,Purchase of Care,07-Nov-2013,2665676-2127144,"1,894.36",STANLEY PARK CARE CENTRE.
Children and Adult Services,Head of Adults,Third Party Payments,470101,Purchase of Care,07-Nov-2013,2665676-2127145,"1,894.36",STANLEY PARK CARE CENTRE.
Children and Adult Services,Head of Adults,Third Party Payments,470101,Purchase of Care,07-Nov-2013,2665676-2127146,"1,894.36",STANLEY PARK CARE CENTRE.
Children and Adult Services,Head of Adults,Third Party Payments,470101,Purchase of Care,07-Nov-2013,2665676-2127147,"1,894.36",STANLEY PARK CARE CENTRE.
Children and Adult Services,Head of Adults,Third Party Payments,470101,Purchase of Care,07-Nov-2013,2665676-2127148,"1,894.36",STANLEY PARK CARE CENTRE.
Children and Adult Services,Head of Adults,Third Party Payments,470101,Purchase of Care,07-Nov-2013,2665676-2127149,"1,894.36",STANLEY PARK CARE CENTRE.
Children and Adult Services,Head of Adults,Third Party Payments,470101,Purchase of Care,07-Nov-2013,2665676-2127150,"1,894.36",STANLEY PARK CARE CENTRE.
Children and Adult Services,Head of Adults,Third Party Payments,470101,Purchase of Care,07-Nov-2013,2665676-2127151,"1,894.36",STANLEY PARK CARE CENTRE.
Children and Adult Services,Head of Adults,Third Party Payments,470101,Purchase of Care,07-Nov-2013,2665676-2127152,"1,894.36",STANLEY PARK CARE CENTRE.
Children and Adult Services,Head of Adults,Third Party Payments,470101,Purchase of Care,07-Nov-2013,2665676-2127153,"1,894.36",STANLEY PARK CARE CENTRE.
Children and Adult Services,Head of Adults,Third Party Payments,470101,Purchase of Care,07-Nov-2013,2665676-2127154,"1,894.36",STANLEY PARK CARE CENTRE.
Children and Adult Services,Head of Adults,Third Party Payments,470101,Purchase of Care,07-Nov-2013,2665676-2127155,"1,894.36",STANLEY PARK CARE CENTRE.
Children and Adult Services,Head of Adults,Third Party Payments,470101,Purchase of Care,07-Nov-2013,2665676-2131286,"1,894.36",STANLEY PARK CARE CENTRE.
Children and Adult Services,Head of Adults,Third Party Payments,470101,Purchase of Care,07-Nov-2013,2665691-2127726,"1,595.12",STONELEIGH NURSING HOME.
Children and Adult Services,Head of Adults,Third Party Payments,470101,Purchase of Care,07-Nov-2013,2665691-2127727,"1,595.12",STONELEIGH NURSING HOME.
Children and Adult Services,Head of Adults,Third Party Payments,470101,Purchase of Care,07-Nov-2013,2665691-2127728,"1,595.12",STONELEIGH NURSING HOME.
Children and Adult Services,Head of Adults,Third Party Payments,470101,Purchase of Care,07-Nov-2013,2665691-2127729,"1,595.12",STONELEIGH NURSING HOME.
Children and Adult Services,Head of Adults,Third Party Payments,470101,Purchase of Care,07-Nov-2013,2665691-2127730,"1,595.12",STONELEIGH NURSING HOME.
Children and Adult Services,Head of Adults,Third Party Payments,470101,Purchase of Care,07-Nov-2013,2665691-2127915,"1,595.12",STONELEIGH NURSING HOME.
Children and Adult Services,Head of Adults,Third Party Payments,470101,Purchase of Care,07-Nov-2013,2665691-2127916,"1,082.40",STONELEIGH NURSING HOME.
Children and Adult Services,Head of Adults,Third Party Payments,470101,Purchase of Care,07-Nov-2013,2665691-2127919,683.62,STONELEIGH NURSING HOME.
Children and Adult Services,Head of Adults,Third Party Payments,470101,Purchase of Care,07-Nov-2013,2665691-2127920,"1,595.12",STONELEIGH NURSING HOME.
Children and Adult Services,Head of Adults,Third Party Payments,470101,Purchase of Care,07-Nov-2013,2665691-2127921,"1,595.12",STONELEIGH NURSING HOME.
Children and Adult Services,Head of Adults,Third Party Payments,470101,Purchase of Care,07-Nov-2013,2665691-2127922,"1,595.12",STONELEIGH NURSING HOME.
Children and Adult Services,Head of Adults,Third Party Payments,470101,Purchase of Care,07-Nov-2013,2665691-2127923,"1,595.12",STONELEIGH NURSING HOME.
Children and Adult Services,Head of Adults,Third Party Payments,470101,Purchase of Care,07-Nov-2013,2665691-2127924,968.46,STONELEIGH NURSING HOME.
Children and Adult Services,Head of Adults,Third Party Payments,470101,Purchase of Care,07-Nov-2013,2665691-2127925,"1,595.12",STONELEIGH NURSING HOME.
Children and Adult Services,Head of Adults,Third Party Payments,470101,Purchase of Care,07-Nov-2013,2665691-2131070,"1,025.43",STONELEIGH NURSING HOME.
Children and Adult Services,Head of Adults,Third Party Payments,470101,Purchase of Care,07-Nov-2013,2665711-2126930,"1,792.92",TAMARIS HEALTHCARE LTD.
Children and Adult Services,Head of Adults,Third Party Payments,470101,Purchase of Care,07-Nov-2013,2665711-2126931,"1,792.92",TAMARIS HEALTHCARE LTD.
Children and Adult Services,Head of Adults,Third Party Payments,470101,Purchase of Care,07-Nov-2013,2665711-2126932,679.20,TAMARIS HEALTHCARE LTD.
Children and Adult Services,Head of Adults,Third Party Payments,470101,Purchase of Care,07-Nov-2013,2665711-2126951,"1,306.92",TAMARIS HEALTHCARE LTD.
Children and Adult Services,Head of Adults,Third Party Payments,470101,Purchase of Care,07-Nov-2013,2665711-2126953,"1,074.65",TAMARIS HEALTHCARE LTD.
Children and Adult Services,Head of Adults,Third Party Payments,470101,Purchase of Care,07-Nov-2013,2665711-2126954,"1,792.92",TAMARIS HEALTHCARE LTD.
Children and Adult Services,Head of Adults,Third Party Payments,470101,Purchase of Care,07-Nov-2013,2665711-2126955,"1,306.92",TAMARIS HEALTHCARE LTD.
Children and Adult Services,Head of Adults,Third Party Payments,470101,Purchase of Care,07-Nov-2013,2665711-2126956,"1,125.64",TAMARIS HEALTHCARE LTD.
Children and Adult Services,Head of Adults,Third Party Payments,470101,Purchase of Care,07-Nov-2013,2665711-2126957,"1,792.92",TAMARIS HEALTHCARE LTD.
Children and Adult Services,Head of Adults,Third Party Payments,470101,Purchase of Care,07-Nov-2013,2665711-2126958,"1,306.92",TAMARIS HEALTHCARE LTD.
Children and Adult Services,Head of Adults,Third Party Payments,470101,Purchase of Care,07-Nov-2013,2665711-2126959,640.32,TAMARIS HEALTHCARE LTD.
Children and Adult Services,Head of Adults,Third Party Payments,470101,Purchase of Care,07-Nov-2013,2665711-2126961,995.04,TAMARIS HEALTHCARE LTD.
Children and Adult Services,Head of Adults,Third Party Payments,470101,Purchase of Care,07-Nov-2013,2665711-2126962,"1,792.92",TAMARIS HEALTHCARE LTD.
Children and Adult Services,Head of Adults,Third Party Payments,470101,Purchase of Care,07-Nov-2013,2665711-2126963,"1,291.36",TAMARIS HEALTHCARE LTD.
Children and Adult Services,Head of Adults,Third Party Payments,470101,Purchase of Care,07-Nov-2013,2665711-2126964,"1,264.92",TAMARIS HEALTHCARE LTD.
Children and Adult Services,Head of Adults,Third Party Payments,470101,Purchase of Care,07-Nov-2013,2665716-2127306,"1,306.92",TAMARIS HEALTHCARE LTD.
Children and Adult Services,Head of Adults,Third Party Payments,470101,Purchase of Care,07-Nov-2013,2665716-2127328,"5,186.66",TAMARIS HEALTHCARE LTD.
Children and Adult Services,Head of Adults,Third Party Payments,470101,Purchase of Care,07-Nov-2013,2665716-2127329,"1,600.82",TAMARIS HEALTHCARE LTD.
Children and Adult Services,Head of Adults,Third Party Payments,470101,Purchase of Care,07-Nov-2013,2665716-2127331,778.68,TAMARIS HEALTHCARE LTD.
Children and Adult Services,Head of Adults,Third Party Payments,470101,Purchase of Care,07-Nov-2013,2665716-2127332,803.24,TAMARIS HEALTHCARE LTD.
Children and Adult Services,Head of Adults,Third Party Payments,470101,Purchase of Care,07-Nov-2013,2665716-2127333,"1,306.80",TAMARIS HEALTHCARE LTD.
Children and Adult Services,Head of Adults,Third Party Payments,470101,Purchase of Care,07-Nov-2013,2665716-2127334,"1,181.92",TAMARIS HEALTHCARE LTD.
Children and Adult Services,Head of Adults,Third Party Payments,470101,Purchase of Care,07-Nov-2013,2665716-2127335,"1,792.92",TAMARIS HEALTHCARE LTD.
Children and Adult Services,Head of Adults,Third Party Payments,470101,Purchase of Care,07-Nov-2013,2665716-2127336,"1,306.92",TAMARIS HEALTHCARE LTD.
Children and Adult Services,Head of Adults,Third Party Payments,470101,Purchase of Care,07-Nov-2013,2665716-2127337,"1,267.12",TAMARIS HEALTHCARE LTD.
Children and Adult Services,Head of Adults,Third Party Payments,470101,Purchase of Care,07-Nov-2013,2665716-2127338,"1,296.84",TAMARIS HEALTHCARE LTD.
Children and Adult Services,Head of Adults,Third Party Payments,470101,Purchase of Care,07-Nov-2013,2665716-2127339,"1,156.24",TAMARIS HEALTHCARE LTD.
Children and Adult Services,Head of Adults,Third Party Payments,470101,Purchase of Care,07-Nov-2013,2665716-2129109,"1,493.68",TAMARIS HEALTHCARE LTD.
Children and Adult Services,Head of Adults,Third Party Payments,470101,Purchase of Care,07-Nov-2013,2665716-2129110,"1,979.68",TAMARIS HEALTHCARE LTD.
Children and Adult Services,Head of Adults,Third Party Payments,470101,Purchase of Care,07-Nov-2013,2665716-2131381,896.46,TAMARIS HEALTHCARE LTD.
Children and Adult Services,Head of Adults,Third Party Payments,470101,Purchase of Care,07-Nov-2013,2665731-2127865,"1,792.92",THE BEECHES.
Children and Adult Services,Head of Adults,Third Party Payments,470101,Purchase of Care,07-Nov-2013,2665734-2129148,"2,784.72",THE COUNTY DURHAM CHESHIRE HOME.
Children and Adult Services,Head of Adults,Third Party Payments,470101,Purchase of Care,07-Nov-2013,2665817-2127810,"1,595.12",WEST HOUSE CARE HOME.
Children and Adult Services,Head of Adults,Third Party Payments,470101,Purchase of Care,07-Nov-2013,2665819-2127392,"1,792.92",WESTERLEIGH NURSING HOME.
Children and Adult Services,Head of Adults,Third Party Payments,470101,Purchase of Care,07-Nov-2013,2665819-2127393,"1,792.92",WESTERLEIGH NURSING HOME.
Children and Adult Services,Head of Adults,Third Party Payments,470101,Purchase of Care,07-Nov-2013,2665819-2127394,"3,137.61",WESTERLEIGH NURSING HOME.
Children and Adult Services,Head of Adults,Third Party Payments,470101,Purchase of Care,07-Nov-2013,2665819-2127395,576.29,WESTERLEIGH NURSING HOME.
Children and Adult Services,Head of Adults,Third Party Payments,470101,Purchase of Care,07-Nov-2013,2665819-2127396,"1,728.88",WESTERLEIGH NURSING HOME.
Children and Adult Services,Head of Adults,Third Party Payments,470101,Purchase of Care,07-Nov-2013,2665819-2127397,"1,664.85",WESTERLEIGH NURSING HOME.
Children and Adult Services,Head of Adults,Third Party Payments,470101,Purchase of Care,07-Nov-2013,2665819-2127398,"1,792.92",WESTERLEIGH NURSING HOME.
Children and Adult Services,Head of Adults,Third Party Payments,470101,Purchase of Care,07-Nov-2013,2665819-2127399,"1,792.92",WESTERLEIGH NURSING HOME.
Children and Adult Services,Head of Adults,Third Party Payments,470101,Purchase of Care,07-Nov-2013,2665819-2127400,"1,792.92",WESTERLEIGH NURSING HOME.
Children and Adult Services,Head of Adults,Third Party Payments,470101,Purchase of Care,07-Nov-2013,2665819-2127401,"1,664.85",WESTERLEIGH NURSING HOME.
Children and Adult Services,Head of Adults,Third Party Payments,470101,Purchase of Care,07-Nov-2013,2665819-2127402,"1,792.92",WESTERLEIGH NURSING HOME.
Children and Adult Services,Head of Adults,Third Party Payments,470101,Purchase of Care,07-Nov-2013,2665819-2127403,"1,792.92",WESTERLEIGH NURSING HOME.
Children and Adult Services,Head of Adults,Third Party Payments,470101,Purchase of Care,07-Nov-2013,2665819-2127404,"1,792.92",WESTERLEIGH NURSING HOME.
Children and Adult Services,Head of Adults,Third Party Payments,470101,Purchase of Care,07-Nov-2013,2665819-2127405,"1,792.92",WESTERLEIGH NURSING HOME.
Children and Adult Services,Head of Adults,Third Party Payments,470101,Purchase of Care,07-Nov-2013,2665819-2127406,"1,792.92",WESTERLEIGH NURSING HOME.
Children and Adult Services,Head of Adults,Third Party Payments,470101,Purchase of Care,07-Nov-2013,2665819-2127407,"1,792.92",WESTERLEIGH NURSING HOME.
Children and Adult Services,Head of Adults,Third Party Payments,470101,Purchase of Care,07-Nov-2013,2665819-2127408,"1,792.92",WESTERLEIGH NURSING HOME.
Children and Adult Services,Head of Adults,Third Party Payments,470101,Purchase of Care,07-Nov-2013,2665819-2127409,"1,792.92",WESTERLEIGH NURSING HOME.
Children and Adult Services,Head of Adults,Third Party Payments,470101,Purchase of Care,07-Nov-2013,2665819-2127410,"1,792.92",WESTERLEIGH NURSING HOME.
Children and Adult Services,Head of Adults,Third Party Payments,470101,Purchase of Care,07-Nov-2013,2665819-2127411,"1,792.92",WESTERLEIGH NURSING HOME.
Children and Adult Services,Head of Adults,Third Party Payments,470101,Purchase of Care,07-Nov-2013,2665819-2127414,"1,792.92",WESTERLEIGH NURSING HOME.
Children and Adult Services,Head of Adults,Third Party Payments,470101,Purchase of Care,07-Nov-2013,2665819-2127415,"1,792.92",WESTERLEIGH NURSING HOME.
Children and Adult Services,Head of Adults,Third Party Payments,470101,Purchase of Care,07-Nov-2013,2665819-2127416,"1,792.92",WESTERLEIGH NURSING HOME.
Children and Adult Services,Head of Adults,Third Party Payments,470101,Purchase of Care,07-Nov-2013,2665819-2127417,"1,792.92",WESTERLEIGH NURSING HOME.
Children and Adult Services,Head of Adults,Third Party Payments,470101,Purchase of Care,07-Nov-2013,2665819-2127418,"1,792.92",WESTERLEIGH NURSING HOME.
Children and Adult Services,Head of Adults,Third Party Payments,470101,Purchase of Care,07-Nov-2013,2665819-2127419,"1,792.92",WESTERLEIGH NURSING HOME.
Children and Adult Services,Head of Adults,Third Party Payments,470101,Purchase of Care,07-Nov-2013,2665819-2127420,"1,792.92",WESTERLEIGH NURSING HOME.
Children and Adult Services,Head of Adults,Third Party Payments,470101,Purchase of Care,07-Nov-2013,2665819-2127421,"1,792.92",WESTERLEIGH NURSING HOME.
Children and Adult Services,Head of Adults,Third Party Payments,470101,Purchase of Care,07-Nov-2013,2665819-2127422,"1,792.92",WESTERLEIGH NURSING HOME.
Children and Adult Services,Head of Adults,Third Party Payments,470101,Purchase of Care,07-Nov-2013,2665819-2127423,"1,792.92",WESTERLEIGH NURSING HOME.
Children and Adult Services,Head of Adults,Third Party Payments,470101,Purchase of Care,07-Nov-2013,2665819-2127424,"1,792.92",WESTERLEIGH NURSING HOME.
Children and Adult Services,Head of Adults,Third Party Payments,470101,Purchase of Care,07-Nov-2013,2665819-2127425,640.32,WESTERLEIGH NURSING HOME.
Children and Adult Services,Head of Adults,Third Party Payments,470101,Purchase of Care,07-Nov-2013,2665819-2127426,"1,792.92",WESTERLEIGH NURSING HOME.
Children and Adult Services,Head of Adults,Third Party Payments,470101,Purchase of Care,07-Nov-2013,2665819-2127427,"1,792.92",WESTERLEIGH NURSING HOME.
Children and Adult Services,Head of Adults,Third Party Payments,470101,Purchase of Care,07-Nov-2013,2665819-2127428,"1,792.92",WESTERLEIGH NURSING HOME.
Children and Adult Services,Head of Adults,Third Party Payments,470101,Purchase of Care,07-Nov-2013,2665819-2127429,"1,792.92",WESTERLEIGH NURSING HOME.
Children and Adult Services,Head of Adults,Third Party Payments,470101,Purchase of Care,07-Nov-2013,2665819-2127430,"1,792.92",WESTERLEIGH NURSING HOME.
Children and Adult Services,Head of Adults,Third Party Payments,470101,Purchase of Care,07-Nov-2013,2665819-2127431,"1,792.92",WESTERLEIGH NURSING HOME.
Children and Adult Services,Head of Adults,Third Party Payments,470101,Purchase of Care,07-Nov-2013,2665819-2127432,"1,792.92",WESTERLEIGH NURSING HOME.
Children and Adult Services,Head of Adults,Third Party Payments,470101,Purchase of Care,07-Nov-2013,2665819-2131421,832.42,WESTERLEIGH NURSING HOME.
Children and Adult Services,Head of Adults,Third Party Payments,470101,Purchase of Care,07-Nov-2013,2665819-2131430,"1,792.92",WESTERLEIGH NURSING HOME.
Children and Adult Services,Head of Adults,Third Party Payments,470101,Purchase of Care,07-Nov-2013,2665840-2127596,"1,894.36",X9 HEALTHCARE LTD.
Children and Adult Services,Head of Adults,Third Party Payments,471101,Purchase of Care,07-Nov-2013,2664399-2130649,"1,273.66",ALLIANCE CARE.
Children and Adult Services,Head of Adults,Third Party Payments,471101,Purchase of Care,07-Nov-2013,2664399-2130650,"1,261.96",ALLIANCE CARE.
Children and Adult Services,Head of Adults,Third Party Payments,471101,Purchase of Care,07-Nov-2013,2664399-2130651,"1,102.80",ALLIANCE CARE.
Children and Adult Services,Head of Adults,Third Party Payments,471101,Purchase of Care,07-Nov-2013,2664399-2130652,"1,377.80",ALLIANCE CARE.
Children and Adult Services,Head of Adults,Third Party Payments,471101,Purchase of Care,07-Nov-2013,2664399-2130653,"1,312.36",ALLIANCE CARE.
Children and Adult Services,Head of Adults,Third Party Payments,471101,Purchase of Care,07-Nov-2013,2664399-2130654,"1,377.80",ALLIANCE CARE.
Children and Adult Services,Head of Adults,Third Party Payments,471101,Purchase of Care,07-Nov-2013,2664399-2130655,"1,863.80",ALLIANCE CARE.
Children and Adult Services,Head of Adults,Third Party Payments,471101,Purchase of Care,07-Nov-2013,2664399-2130656,"1,144.36",ALLIANCE CARE.
Children and Adult Services,Head of Adults,Third Party Payments,471101,Purchase of Care,07-Nov-2013,2664399-2130657,"1,365.28",ALLIANCE CARE.
Children and Adult Services,Head of Adults,Third Party Payments,471101,Purchase of Care,07-Nov-2013,2664399-2130658,"1,272.60",ALLIANCE CARE.
Children and Adult Services,Head of Adults,Third Party Payments,471101,Purchase of Care,07-Nov-2013,2664399-2130659,"1,194.36",ALLIANCE CARE.
Children and Adult Services,Head of Adults,Third Party Payments,471101,Purchase of Care,07-Nov-2013,2664399-2130660,"1,863.80",ALLIANCE CARE.
Children and Adult Services,Head of Adults,Third Party Payments,471101,Purchase of Care,07-Nov-2013,2664399-2130661,916.68,ALLIANCE CARE.
Children and Adult Services,Head of Adults,Third Party Payments,471101,Purchase of Care,07-Nov-2013,2664449-2130212,"1,818.56",ASTOR LODGE VIEW.
Children and Adult Services,Head of Adults,Third Party Payments,471101,Purchase of Care,07-Nov-2013,2664471-2130170,"1,642.20",BARCHESTER HEALTHCARE HOMES LTD.
Children and Adult Services,Head of Adults,Third Party Payments,471101,Purchase of Care,07-Nov-2013,2664675-2130374,"1,964.28",DERWENT CARE HOME.
Children and Adult Services,Head of Adults,Third Party Payments,471101,Purchase of Care,07-Nov-2013,2664675-2130396,982.16,DERWENT CARE HOME.
Children and Adult Services,Head of Adults,Third Party Payments,471101,Purchase of Care,07-Nov-2013,2664675-2130397,"1,964.28",DERWENT CARE HOME.
Children and Adult Services,Head of Adults,Third Party Payments,471101,Purchase of Care,07-Nov-2013,2664675-2130400,"1,964.28",DERWENT CARE HOME.
Children and Adult Services,Head of Adults,Third Party Payments,471101,Purchase of Care,07-Nov-2013,2664675-2130401,"1,964.28",DERWENT CARE HOME.
Children and Adult Services,Head of Adults,Third Party Payments,471101,Purchase of Care,07-Nov-2013,2664675-2130402,"1,964.28",DERWENT CARE HOME.
Children and Adult Services,Head of Adults,Third Party Payments,471101,Purchase of Care,07-Nov-2013,2664675-2130403,"1,964.28",DERWENT CARE HOME.
Children and Adult Services,Head of Adults,Third Party Payments,471101,Purchase of Care,07-Nov-2013,2664675-2130404,"1,964.28",DERWENT CARE HOME.
Children and Adult Services,Head of Adults,Third Party Payments,471101,Purchase of Care,07-Nov-2013,2664675-2130405,"1,964.28",DERWENT CARE HOME.
Children and Adult Services,Head of Adults,Third Party Payments,471101,Purchase of Care,07-Nov-2013,2664684-2130162,"1,894.12",DIPTON CARE HOME LTD.
Children and Adult Services,Head of Adults,Third Party Payments,471101,Purchase of Care,07-Nov-2013,2664684-2130163,"1,964.28",DIPTON CARE HOME LTD.
Children and Adult Services,Head of Adults,Third Party Payments,471101,Purchase of Care,07-Nov-2013,2664684-2130166,"1,964.28",DIPTON CARE HOME LTD.
Children and Adult Services,Head of Adults,Third Party Payments,471101,Purchase of Care,07-Nov-2013,2664820-2130668,"1,863.80",GAINFORD CARE HOMES LTD.
Children and Adult Services,Head of Adults,Third Party Payments,471101,Purchase of Care,07-Nov-2013,2664820-2130669,"1,863.80",GAINFORD CARE HOMES LTD.
Children and Adult Services,Head of Adults,Third Party Payments,471101,Purchase of Care,07-Nov-2013,2664820-2130699,"1,863.80",GAINFORD CARE HOMES LTD.
Children and Adult Services,Head of Adults,Third Party Payments,471101,Purchase of Care,07-Nov-2013,2664820-2130707,"1,863.80",GAINFORD CARE HOMES LTD.
Children and Adult Services,Head of Adults,Third Party Payments,471101,Purchase of Care,07-Nov-2013,2664820-2130708,"1,863.80",GAINFORD CARE HOMES LTD.
Children and Adult Services,Head of Adults,Third Party Payments,471101,Purchase of Care,07-Nov-2013,2664822-2130186,"1,964.28",GAINFORD CARE HOMES LTD.
Children and Adult Services,Head of Adults,Third Party Payments,471101,Purchase of Care,07-Nov-2013,2664878-2130718,"1,964.28",HELEN MCARDLE CARE.
Children and Adult Services,Head of Adults,Third Party Payments,471101,Purchase of Care,07-Nov-2013,2664878-2130722,"1,964.28",HELEN MCARDLE CARE.
Children and Adult Services,Head of Adults,Third Party Payments,471101,Purchase of Care,07-Nov-2013,2664878-2130723,"1,964.28",HELEN MCARDLE CARE.
Children and Adult Services,Head of Adults,Third Party Payments,471101,Purchase of Care,07-Nov-2013,2664878-2130724,"1,964.28",HELEN MCARDLE CARE.
Children and Adult Services,Head of Adults,Third Party Payments,471101,Purchase of Care,07-Nov-2013,2665075-2130841,"1,331.28",KINGSWAY CARE HOME LTD.
Children and Adult Services,Head of Adults,Third Party Payments,471101,Purchase of Care,07-Nov-2013,2665075-2130842,"1,331.28",KINGSWAY CARE HOME LTD.
Children and Adult Services,Head of Adults,Third Party Payments,471101,Purchase of Care,07-Nov-2013,2665075-2130848,"1,863.80",KINGSWAY CARE HOME LTD.
Children and Adult Services,Head of Adults,Third Party Payments,471101,Purchase of Care,07-Nov-2013,2665081-2130874,"1,863.80",LAMBTON HOUSE.
Children and Adult Services,Head of Adults,Third Party Payments,471101,Purchase of Care,07-Nov-2013,2665083-2130316,"1,863.80",LANGLEY PARK CARE HOME.
Children and Adult Services,Head of Adults,Third Party Payments,471101,Purchase of Care,07-Nov-2013,2665083-2130319,"1,863.80",LANGLEY PARK CARE HOME.
Children and Adult Services,Head of Adults,Third Party Payments,471101,Purchase of Care,07-Nov-2013,2665083-2130326,"1,863.80",LANGLEY PARK CARE HOME.
Children and Adult Services,Head of Adults,Third Party Payments,471101,Purchase of Care,07-Nov-2013,2665083-2130329,"1,863.80",LANGLEY PARK CARE HOME.
Children and Adult Services,Head of Adults,Third Party Payments,471101,Purchase of Care,07-Nov-2013,2665083-2131390,732.20,LANGLEY PARK CARE HOME.
Children and Adult Services,Head of Adults,Third Party Payments,471101,Purchase of Care,07-Nov-2013,2665117-2131222,"1,964.28",LINDISFARNE CARE HOME.
Children and Adult Services,Head of Adults,Third Party Payments,471101,Purchase of Care,07-Nov-2013,2665117-2131224,"1,964.28",LINDISFARNE CARE HOME.
Children and Adult Services,Head of Adults,Third Party Payments,471101,Purchase of Care,07-Nov-2013,2665117-2131225,"1,964.28",LINDISFARNE CARE HOME.
Children and Adult Services,Head of Adults,Third Party Payments,471101,Purchase of Care,07-Nov-2013,2665117-2131226,"1,964.28",LINDISFARNE CARE HOME.
Children and Adult Services,Head of Adults,Third Party Payments,471101,Purchase of Care,07-Nov-2013,2665117-2131231,"1,964.28",LINDISFARNE CARE HOME.
Children and Adult Services,Head of Adults,Third Party Payments,471101,Purchase of Care,07-Nov-2013,2665117-2131232,"1,964.28",LINDISFARNE CARE HOME.
Children and Adult Services,Head of Adults,Third Party Payments,471101,Purchase of Care,07-Nov-2013,2665117-2131233,"1,964.28",LINDISFARNE CARE HOME.
Children and Adult Services,Head of Adults,Third Party Payments,471101,Purchase of Care,07-Nov-2013,2665117-2131237,"1,964.28",LINDISFARNE CARE HOME.
Children and Adult Services,Head of Adults,Third Party Payments,471101,Purchase of Care,07-Nov-2013,2665117-2131242,"1,964.28",LINDISFARNE CARE HOME.
Children and Adult Services,Head of Adults,Third Party Payments,471101,Purchase of Care,07-Nov-2013,2665117-2131244,"1,964.28",LINDISFARNE CARE HOME.
Children and Adult Services,Head of Adults,Third Party Payments,471101,Purchase of Care,07-Nov-2013,2665117-2131247,"1,964.28",LINDISFARNE CARE HOME.
Children and Adult Services,Head of Adults,Third Party Payments,471101,Purchase of Care,07-Nov-2013,2665128-2130168,"1,769.88",LONDESBOROUGH COURT CARE HOME.
Children and Adult Services,Head of Adults,Third Party Payments,471101,Purchase of Care,07-Nov-2013,2665152-2130798,"1,665.92",MANOR HOUSE CARE HOME.
Children and Adult Services,Head of Adults,Third Party Payments,471101,Purchase of Care,07-Nov-2013,2665152-2130799,"1,665.92",MANOR HOUSE CARE HOME.
Children and Adult Services,Head of Adults,Third Party Payments,471101,Purchase of Care,07-Nov-2013,2665152-2130800,"1,665.92",MANOR HOUSE CARE HOME.
Children and Adult Services,Head of Adults,Third Party Payments,471101,Purchase of Care,07-Nov-2013,2665152-2130801,"1,665.92",MANOR HOUSE CARE HOME.
Children and Adult Services,Head of Adults,Third Party Payments,471101,Purchase of Care,07-Nov-2013,2665152-2130802,"1,665.92",MANOR HOUSE CARE HOME.
Children and Adult Services,Head of Adults,Third Party Payments,471101,Purchase of Care,07-Nov-2013,2665152-2130803,"1,665.92",MANOR HOUSE CARE HOME.
Children and Adult Services,Head of Adults,Third Party Payments,471101,Purchase of Care,07-Nov-2013,2665152-2130889,"1,665.92",MANOR HOUSE CARE HOME.
Children and Adult Services,Head of Adults,Third Party Payments,471101,Purchase of Care,07-Nov-2013,2665152-2130890,"1,665.92",MANOR HOUSE CARE HOME.
Children and Adult Services,Head of Adults,Third Party Payments,471101,Purchase of Care,07-Nov-2013,2665152-2130891,"1,665.92",MANOR HOUSE CARE HOME.
Children and Adult Services,Head of Adults,Third Party Payments,471101,Purchase of Care,07-Nov-2013,2665152-2130892,"1,665.92",MANOR HOUSE CARE HOME.
Children and Adult Services,Head of Adults,Third Party Payments,471101,Purchase of Care,07-Nov-2013,2665234-2130379,"1,052.29",MELBURY COURT.
Children and Adult Services,Head of Adults,Third Party Payments,471101,Purchase of Care,07-Nov-2013,2665385-2130784,654.46,REDACTED - PAYMENT TO INDIVIDUAL
Children and Adult Services,Head of Adults,Third Party Payments,471101,Purchase of Care,07-Nov-2013,2665385-2131073,594.97,REDACTED - PAYMENT TO INDIVIDUAL
Children and Adult Services,Head of Adults,Third Party Payments,471101,Purchase of Care,07-Nov-2013,2665512-2130791,"1,863.80",PREMIER CARE HOMES LTD.
Children and Adult Services,Head of Adults,Third Party Payments,471101,Purchase of Care,07-Nov-2013,2665535-2130768,"1,377.80",REDWELL HILLS.
Children and Adult Services,Head of Adults,Third Party Payments,471101,Purchase of Care,07-Nov-2013,2665535-2130769,"1,863.80",REDWELL HILLS.
Children and Adult Services,Head of Adults,Third Party Payments,471101,Purchase of Care,07-Nov-2013,2665535-2130837,"1,863.80",REDWELL HILLS.
Children and Adult Services,Head of Adults,Third Party Payments,471101,Purchase of Care,07-Nov-2013,2665535-2130838,"1,377.80",REDWELL HILLS.
Children and Adult Services,Head of Adults,Third Party Payments,471101,Purchase of Care,07-Nov-2013,2665535-2130839,"1,364.28",REDWELL HILLS.
Children and Adult Services,Head of Adults,Third Party Payments,471101,Purchase of Care,07-Nov-2013,2665535-2130840,"1,863.80",REDWELL HILLS.
Children and Adult Services,Head of Adults,Third Party Payments,471101,Purchase of Care,07-Nov-2013,2665656-2130793,777.44,ST ANDREWS MPS LTD.
Children and Adult Services,Head of Adults,Third Party Payments,471101,Purchase of Care,07-Nov-2013,2665656-2130794,774.72,ST ANDREWS MPS LTD.
Children and Adult Services,Head of Adults,Third Party Payments,471101,Purchase of Care,07-Nov-2013,2665656-2130795,"1,056.56",ST ANDREWS MPS LTD.
Children and Adult Services,Head of Adults,Third Party Payments,471101,Purchase of Care,07-Nov-2013,2665656-2130796,"1,665.92",ST ANDREWS MPS LTD.
Children and Adult Services,Head of Adults,Third Party Payments,471101,Purchase of Care,07-Nov-2013,2665656-2130797,"1,179.92",ST ANDREWS MPS LTD.
Children and Adult Services,Head of Adults,Third Party Payments,471101,Purchase of Care,07-Nov-2013,2665656-2130885,"1,665.92",ST ANDREWS MPS LTD.
Children and Adult Services,Head of Adults,Third Party Payments,471101,Purchase of Care,07-Nov-2013,2665656-2130886,832.96,ST ANDREWS MPS LTD.
Children and Adult Services,Head of Adults,Third Party Payments,471101,Purchase of Care,07-Nov-2013,2665656-2130887,"1,044.96",ST ANDREWS MPS LTD.
Children and Adult Services,Head of Adults,Third Party Payments,471101,Purchase of Care,07-Nov-2013,2665656-2130888,"1,665.92",ST ANDREWS MPS LTD.
Children and Adult Services,Head of Adults,Third Party Payments,471101,Purchase of Care,07-Nov-2013,2665665-2130591,"1,964.28",ST MARGARETS NURSING HOME.
Children and Adult Services,Head of Adults,Third Party Payments,471101,Purchase of Care,07-Nov-2013,2665665-2130616,"1,964.28",ST MARGARETS NURSING HOME.
Children and Adult Services,Head of Adults,Third Party Payments,471101,Purchase of Care,07-Nov-2013,2665676-2130418,"1,964.28",STANLEY PARK CARE CENTRE.
Children and Adult Services,Head of Adults,Third Party Payments,471101,Purchase of Care,07-Nov-2013,2665676-2130419,701.52,STANLEY PARK CARE CENTRE.
Children and Adult Services,Head of Adults,Third Party Payments,471101,Purchase of Care,07-Nov-2013,2665676-2130440,"1,964.28",STANLEY PARK CARE CENTRE.
Children and Adult Services,Head of Adults,Third Party Payments,471101,Purchase of Care,07-Nov-2013,2665676-2130441,"1,964.28",STANLEY PARK CARE CENTRE.
Children and Adult Services,Head of Adults,Third Party Payments,471101,Purchase of Care,07-Nov-2013,2665676-2130442,"1,964.28",STANLEY PARK CARE CENTRE.
Children and Adult Services,Head of Adults,Third Party Payments,471101,Purchase of Care,07-Nov-2013,2665676-2130443,"1,964.28",STANLEY PARK CARE CENTRE.
Children and Adult Services,Head of Adults,Third Party Payments,471101,Purchase of Care,07-Nov-2013,2665676-2130444,"1,964.28",STANLEY PARK CARE CENTRE.
Children and Adult Services,Head of Adults,Third Party Payments,471101,Purchase of Care,07-Nov-2013,2665676-2130445,"1,964.28",STANLEY PARK CARE CENTRE.
Children and Adult Services,Head of Adults,Third Party Payments,471101,Purchase of Care,07-Nov-2013,2665676-2130446,"1,964.28",STANLEY PARK CARE CENTRE.
Children and Adult Services,Head of Adults,Third Party Payments,471101,Purchase of Care,07-Nov-2013,2665676-2130447,"1,964.28",STANLEY PARK CARE CENTRE.
Children and Adult Services,Head of Adults,Third Party Payments,471101,Purchase of Care,07-Nov-2013,2665676-2130448,"1,964.28",STANLEY PARK CARE CENTRE.
Children and Adult Services,Head of Adults,Third Party Payments,471101,Purchase of Care,07-Nov-2013,2665676-2130450,"1,964.28",STANLEY PARK CARE CENTRE.
Children and Adult Services,Head of Adults,Third Party Payments,471101,Purchase of Care,07-Nov-2013,2665676-2130451,"1,964.28",STANLEY PARK CARE CENTRE.
Children and Adult Services,Head of Adults,Third Party Payments,471101,Purchase of Care,07-Nov-2013,2665676-2130454,"1,964.28",STANLEY PARK CARE CENTRE.
Children and Adult Services,Head of Adults,Third Party Payments,471101,Purchase of Care,07-Nov-2013,2665676-2130455,"1,964.28",STANLEY PARK CARE CENTRE.
Children and Adult Services,Head of Adults,Third Party Payments,471101,Purchase of Care,07-Nov-2013,2665676-2131283,"1,192.59",STANLEY PARK CARE CENTRE.
Children and Adult Services,Head of Adults,Third Party Payments,471101,Purchase of Care,07-Nov-2013,2665711-2130265,"1,285.88",TAMARIS HEALTHCARE LTD.
Children and Adult Services,Head of Adults,Third Party Payments,471101,Purchase of Care,07-Nov-2013,2665711-2130266,"1,271.87",TAMARIS HEALTHCARE LTD.
Children and Adult Services,Head of Adults,Third Party Payments,471101,Purchase of Care,07-Nov-2013,2665711-2130267,"1,863.80",TAMARIS HEALTHCARE LTD.
Children and Adult Services,Head of Adults,Third Party Payments,471101,Purchase of Care,07-Nov-2013,2665711-2130268,931.92,TAMARIS HEALTHCARE LTD.
Children and Adult Services,Head of Adults,Third Party Payments,471101,Purchase of Care,07-Nov-2013,2665711-2130269,"1,863.80",TAMARIS HEALTHCARE LTD.
Children and Adult Services,Head of Adults,Third Party Payments,471101,Purchase of Care,07-Nov-2013,2665711-2130270,"1,377.80",TAMARIS HEALTHCARE LTD.
Children and Adult Services,Head of Adults,Third Party Payments,471101,Purchase of Care,07-Nov-2013,2665711-2130271,910.76,TAMARIS HEALTHCARE LTD.
Children and Adult Services,Head of Adults,Third Party Payments,471101,Purchase of Care,07-Nov-2013,2665714-2130868,"1,179.92",TAMARIS HEALTHCARE LTD.
Children and Adult Services,Head of Adults,Third Party Payments,471101,Purchase of Care,07-Nov-2013,2665716-2130588,"1,377.80",TAMARIS HEALTHCARE LTD.
Children and Adult Services,Head of Adults,Third Party Payments,471101,Purchase of Care,07-Nov-2013,2665716-2130601,"1,253.96",TAMARIS HEALTHCARE LTD.
Children and Adult Services,Head of Adults,Third Party Payments,471101,Purchase of Care,07-Nov-2013,2665716-2130602,"1,377.80",TAMARIS HEALTHCARE LTD.
Children and Adult Services,Head of Adults,Third Party Payments,471101,Purchase of Care,07-Nov-2013,2665716-2130603,"1,210.68",TAMARIS HEALTHCARE LTD.
